date,department/service,beneficiary,amount,summary of purpose,category,transaction number,vendor number
01.12.2017,ADULT SOCIAL CARE,EASYLINK UK,689.25,SOUTHWARK RESOURCE CENTRE,EQUIPMENT PURCHASE & REPAIR,5902279300,1000066550
01.12.2017,CENTRAL FUNCTIONS,STANBURY BUILDING SERVICES LTD,"3,995.00",COMMERCIAL PROPERTIES,BUILDING R&M,2102752077,1000078207
01.12.2017,CENTRAL FUNCTIONS,OVE ARUP & PARTNERS LTD,"41,003.00",LEDBURY ESTATE,OTHER R&M,5902279260,1000066606
01.12.2017,COMMUNITIES,WHATEVER DESIGN LTD,"3,110.00",COMMUNITY ENGAGEMENT,OTHER CONTRACTORS,5902279096,1000036500
01.12.2017,COMMUNITIES,LOOK AHEAD CARE AND SUPPORT LTD,974.85,NO RECOURSE TO PUBLIC FUNDS,ACCOMMODATION CHARGES,5902279235,1000047299
01.12.2017,CUSTOMER EXPERIENCE HGF,CHARTERED INSTITUTE OF HOUSING,490,HOMELESS & HOUSING OPTIONS MGT,TRAINING,5902278909,1914585
01.12.2017,CUSTOMER EXPERIENCE HGF,CHARTERED INSTITUTE OF HOUSING,490,HOMELESS & HOUSING OPTIONS MGT,TRAINING,5902278911,1914585
01.12.2017,ENVIRONMENT DIRECTORATE,SMI GROUP,"1,562.25",MANAGEMENT TEAM,MATERIALS,5902279032,1000076606
01.12.2017,ENVIRONMENT DIRECTORATE,IMPERIAL POLYTHENE PRODUCTS LTD,"4,698.45",MANAGEMENT TEAM,MATERIALS,5902279255,1000061299
01.12.2017,ENVIRONMENT DIRECTORATE,IMPERIAL POLYTHENE PRODUCTS LTD,"1,987.50",MANAGEMENT TEAM,MATERIALS,5902279294,1000061299
01.12.2017,ENVIRONMENT DIRECTORATE,CROWN OIL UK,"1,288.47",SANDGATE STREET,VEHICLE FUEL,5902279754,1000074865
01.12.2017,LEISURE DIRECTORATE,TACKLESTORE LTD,"1,554.23",SDM BUDGET,EQUIPMENT PURCHASE & REPAIR,5902278770,1000077906
01.12.2017,MODERNISATION HGF,INTERSERVE (FACILITIES MANAGEMENT),"1,963.11",FM SERVICES BY INTERSERVE,BUILDING R&M,5902278735,1000070792
01.12.2017,REGENERATION,KENT COUNTY COUNCIL - LASER,"1,264.82",TOWER WORKSHOPS,ELECTRICITY,5902278839,1000012926
02.12.2017,ADULT SOCIAL CARE,SUPRA UK LTD T/A THE KEYSAFE COMPANY,"4,541.00",SOUTHWARK RESOURCE CENTRE,EQUIPMENT PURCHASE & REPAIR,5902279253,1000048522
02.12.2017,ASSET MANAGEMENT,T BROWN & SONS (HEATING) LTD,"4,952.70",ENG CONTRACTS (NORTH),PLANNED MAINTENANCE,5902279720,1000040191
02.12.2017,COMMUNITIES,HADDON HALL RESIDENTS TMO,"1,799.12",HADDON HALL CO-OP,M&M ALLOWANCE CO-OPS,5902278701,1040504
02.12.2017,COMMUNITIES,LOOK AHEAD CARE AND SUPPORT LTD,"1,174.75",NO RECOURSE TO PUBLIC FUNDS,ACCOMMODATION CHARGES,5902279238,1000047299
02.12.2017,COMMUNITIES,LOOK AHEAD CARE AND SUPPORT LTD,403.74,NO RECOURSE TO PUBLIC FUNDS,ACCOMMODATION CHARGES,5902279240,1000047299
02.12.2017,COMMUNITIES,LOOK AHEAD CARE AND SUPPORT LTD,839.82,NO RECOURSE TO PUBLIC FUNDS,ACCOMMODATION CHARGES,5902279240,1000047299
02.12.2017,CUSTOMER EXPERIENCE HGF,IMPERIAL COLLEGE PROJECTS LTD,456,CORONER'S,PROFESSIONAL FEES,5902279645,1000080106
02.12.2017,CUSTOMER EXPERIENCE HGF,IMPERIAL COLLEGE PROJECTS LTD,424,CORONER'S,PROFESSIONAL FEES,5902279664,1000080106
02.12.2017,CUSTOMER EXPERIENCE HGF,IMPERIAL COLLEGE PROJECTS LTD,520,CORONER'S,PROFESSIONAL FEES,5902279666,1000080106
02.12.2017,CUSTOMER EXPERIENCE HGF,IMPERIAL COLLEGE PROJECTS LTD,444,CORONER'S,PROFESSIONAL FEES,5902279677,1000080106
02.12.2017,CUSTOMER EXPERIENCE HGF,IMPERIAL COLLEGE PROJECTS LTD,276,CORONER'S,PROFESSIONAL FEES,5902279678,1000080106
02.12.2017,CUSTOMER EXPERIENCE HGF,IMPERIAL COLLEGE PROJECTS LTD,680,CORONER'S,PROFESSIONAL FEES,5902279689,1000080106
02.12.2017,ENVIRONMENT AND LEISURE,FAITHFUL & GOULD,"4,526.00",CAPITAL PS (LEISURE),"PLANT, MACHINERY & EQUIPMENT ACQUISITION",5902279594,1000061390
02.12.2017,ENVIRONMENT DIRECTORATE,SCOT GROUP LIMITED,451.5,FLEET INSURANCE WORKS,TRANSPORT INSURANCE COSTS,5902279415,1709512
02.12.2017,HOUSING HRA,POTTER RAPER AND PARTNERS,"5,000.00",CAPITAL PS (HRA),CONSTRUCTION FEES  - EXTERNAL,5902279768,1009369
02.12.2017,LEISURE DIRECTORATE,ALDO RINALDI,"2,400.00",ARTS SERVICES,CONSULTANTS SERVICES,5902279324,1000079649
02.12.2017,LEISURE DIRECTORATE,NEWLINE (ESSEX) LTD,627.49,CREMATORIUM,PREMISES CLEANING,5902278850,1000047169
02.12.2017,LEISURE DIRECTORATE,SPORTS AND LEISURE MANAGEMENT LTD,"10,479.27",FACILITIES MANAGEMENT,OTHER CONTRACTORS,5902278791,1000077862
02.12.2017,PUBLIC HEALTH,CITY OF LONDON CORPORATION,"8,016.27",SEXUAL HEALTH - STI,EXTERNAL AGENCIES AND BODIES,5902278838,1000052061
02.12.2017,STRATEGIC FINANCING BUDGETS,JOHNSON AUSTIN PARTNERSHIP LLP,310,PROPERTY RELATED INSURANCE,PROFESSIONAL FEES,5902278878,1000040202
03.12.2017,COMMUNITIES,PARENT AND FAMILY CONSULTING LTD,325,PREVENT,PROFESSIONAL FEES,5902279718,1000079801
03.12.2017,COMMUNITIES,PARENT AND FAMILY CONSULTING LTD,597,PREVENT,PROFESSIONAL FEES,5902279718,1000079801
03.12.2017,COMMUNITIES,PARENT AND FAMILY CONSULTING LTD,600,PREVENT,PROFESSIONAL FEES,5902279718,1000079801
03.12.2017,COMMUNITIES,PARENT AND FAMILY CONSULTING LTD,650,PREVENT,PROFESSIONAL FEES,5902279718,1000079801
03.12.2017,COMMUNITIES,PARENT AND FAMILY CONSULTING LTD,"1,300.00",PREVENT,PROFESSIONAL FEES,5902279718,1000079801
03.12.2017,COMMUNITIES,PARENT AND FAMILY CONSULTING LTD,"2,388.00",PREVENT,PROFESSIONAL FEES,5902279718,1000079801
03.12.2017,CUSTOMER EXPERIENCE HGF,IMPERIAL COLLEGE PROJECTS LTD,276,CORONER'S,PROFESSIONAL FEES,5902279647,1000080106
03.12.2017,CUSTOMER EXPERIENCE HGF,IMPERIAL COLLEGE PROJECTS LTD,368,CORONER'S,PROFESSIONAL FEES,5902279650,1000080106
03.12.2017,CUSTOMER EXPERIENCE HGF,IMPERIAL COLLEGE PROJECTS LTD,324,CORONER'S,PROFESSIONAL FEES,5902279652,1000080106
03.12.2017,ENVIRONMENT AND LEISURE,ST JOHNS & ST PETERS PILGRIMAGE,"7,450.00",CAPITAL PS (LEISURE),CAPITAL GRANTS,5902279387,1000052299
03.12.2017,ENVIRONMENT AND LEISURE,CONWAY AECOM LTD,"7,144.56",CAPITAL PS (LEISURE),CONSTR'N SUB CONTRACT - NON CERTIFICATED,5902279064,1000071205
03.12.2017,ENVIRONMENT AND LEISURE,CONWAY AECOM LTD,"9,204.53",CAPITAL PS (LEISURE),CONSTR'N SUB CONTRACT - NON CERTIFICATED,5902279690,1000071205
03.12.2017,ENVIRONMENT AND LEISURE,BAILY GARNER,466.4,CAPITAL PS (LEISURE),CONSTRUCTION FEES,5902278936,1000033754
03.12.2017,F & C S EXCLUDING CORPORATE BUDGETS,DSI BILLING SERVICES LTD,"2,036.07",ADMINISTRATIVE SUPPORT,POSTAGES,5902279159,1000058640
03.12.2017,F & C S EXCLUDING CORPORATE BUDGETS,INFORM CPI LTD,"12,322.50",ADMINISTRATIVE SUPPORT,PROFESSIONAL FEES,5902279369,1000073418
03.12.2017,F & C S EXCLUDING CORPORATE BUDGETS,CIPFA BUSINESS LTD,440,CORPORATE SERVICES AND F&G,BOOKS & PUBLICATIONS,5902279722,1000024688
03.12.2017,F & C S EXCLUDING CORPORATE BUDGETS,CIPFA BUSINESS LTD,670,CORPORATE SERVICES AND F&G,BOOKS & PUBLICATIONS,5902279722,1000024688
03.12.2017,F & C S EXCLUDING CORPORATE BUDGETS,CIPFA BUSINESS LTD,995,CORPORATE SERVICES AND F&G,BOOKS & PUBLICATIONS,5902279722,1000024688
03.12.2017,F & C S EXCLUDING CORPORATE BUDGETS,CIPFA BUSINESS LTD,"1,590.00",CORPORATE SERVICES AND F&G,BOOKS & PUBLICATIONS,5902279722,1000024688
03.12.2017,LEISURE DIRECTORATE,COMPLETE TREE CARE LTD,697.32,TREES O'HEADS,CONSULTANTS SERVICES,5902279124,1000041410
03.12.2017,PLANNING AND TRANSPORT,SOUTHWARK NEWSPAPER LTD,840,DEVELOPMENT CONTROL ADMINSTRATION,MARKETING & PUBLICITY SERVICES,5902279102,1556957
04.12.2017,ADULT SOCIAL CARE,CYGNET HOSPITAL BURY,340,APPOINTEESHIPS,OTHER PAYMENTS FOR CLIENTS,2102753307,1000079492
04.12.2017,ADULT SOCIAL CARE,DANSHELL GROUP,280,APPOINTEESHIPS,OTHER PAYMENTS FOR CLIENTS,2102753308,1000079284
04.12.2017,ADULT SOCIAL CARE,ELIZABETH PETERS CARE HOMES LTD,280,APPOINTEESHIPS,OTHER PAYMENTS FOR CLIENTS,2102753309,1000078858
04.12.2017,ADULT SOCIAL CARE,EQUINOX CARE,"1,090.20",APPOINTEESHIPS,OTHER PAYMENTS FOR CLIENTS,2102753311,11325422
04.12.2017,ADULT SOCIAL CARE,HEXAGON HOUSING ASSOCIATION LTD,537.08,APPOINTEESHIPS,OTHER PAYMENTS FOR CLIENTS,2102753314,1000056905
04.12.2017,ADULT SOCIAL CARE,LONDON CYRENIANS HOUSING LTD,600,APPOINTEESHIPS,OTHER PAYMENTS FOR CLIENTS,2102753315,1000078600
04.12.2017,ADULT SOCIAL CARE,METRO HOMECARE LTD,480,APPOINTEESHIPS,OTHER PAYMENTS FOR CLIENTS,2102753319,1000070695
04.12.2017,ADULT SOCIAL CARE,POP INN CAFE,280,APPOINTEESHIPS,OTHER PAYMENTS FOR CLIENTS,2102753328,1000079353
04.12.2017,ADULT SOCIAL CARE,RIGHT SUPPORT MANAGEMENT LTD,500,APPOINTEESHIPS,OTHER PAYMENTS FOR CLIENTS,2102753329,1000070289
04.12.2017,ADULT SOCIAL CARE,REDACTED PERSONAL DATA,460,APPOINTEESHIPS,OTHER PAYMENTS FOR CLIENTS,2102753303,REDACTED
04.12.2017,ADULT SOCIAL CARE,REDACTED PERSONAL DATA,320,APPOINTEESHIPS,OTHER PAYMENTS FOR CLIENTS,2102753306,REDACTED
04.12.2017,ADULT SOCIAL CARE,REDACTED PERSONAL DATA,260,APPOINTEESHIPS,OTHER PAYMENTS FOR CLIENTS,2102753326,REDACTED
04.12.2017,ADULT SOCIAL CARE,REDACTED PERSONAL DATA,558.32,APPOINTEESHIPS,OTHER PAYMENTS FOR CLIENTS,2102753327,REDACTED
04.12.2017,ADULT SOCIAL CARE,SHUTTLEWORTH (UK) LTD,"1,116.00",ASC TEMPORARY ACCOMMODATION,EXTERNAL AGENCIES AND BODIES,5902279800,1000056468
04.12.2017,ADULT SOCIAL CARE,HEALTH PERSONNEL LTD,"3,676.00",LD LTS 18-64,RESIDENTIAL CARE,2102752884,1000076377
04.12.2017,ADULT SOCIAL CARE,SEQUENCE CARE LTD,"13,736.25",LD LTS 18-64,SUPPORTED LIVING,2102750090,1000080343
04.12.2017,ADULT SOCIAL CARE,HEALTH PERSONNEL LTD,"5,057.64",LD LTS 18-64,SUPPORTED LIVING,2102750347,1000076377
04.12.2017,ADULT SOCIAL CARE,ROYAL ASSOCIATION FOR DEAF PEOPLE,"2,160.00",LD LTS 18-64,SUPPORTED LIVING,2102753775,1000062283
04.12.2017,ADULT SOCIAL CARE,ROYAL ASSOCIATION FOR DEAF PEOPLE,"2,160.00",LD LTS 18-64,SUPPORTED LIVING,2102753776,1000062283
04.12.2017,ADULT SOCIAL CARE,LONDON CARE LTD,588.56,MEM LTS 65+,HOMECARE - C&V,2102753470,1000003398
04.12.2017,ADULT SOCIAL CARE,LONDON CARE LTD,529.79,MEM LTS 65+,HOMECARE - C&V,2102753507,1000003398
04.12.2017,ADULT SOCIAL CARE,CARE DIRECT UK LTD,565.39,MEM LTS 65+,HOMECARE - SPOT,2102753644,1000066322
04.12.2017,ADULT SOCIAL CARE,LONDON CARE LTD,395.18,MH LTS 18-64,HOMECARE - C&V,2102753510,1000003398
04.12.2017,ADULT SOCIAL CARE,LONDON CARE LTD,891.28,MH LTS 65+,HOMECARE - C&V,2102753563,1000003398
04.12.2017,ADULT SOCIAL CARE,CARE DIRECT UK LTD,372.33,MH LTS 65+,HOMECARE - SPOT,2102753655,1000066322
04.12.2017,ADULT SOCIAL CARE,METRO HOMECARE LTD,289.59,PHY LTS 18-64,HOMECARE - C&V,2102753417,1000070695
04.12.2017,ADULT SOCIAL CARE,LONDON CARE LTD,268.96,PHY LTS 18-64,HOMECARE - C&V,2102753475,1000003398
04.12.2017,ADULT SOCIAL CARE,LONDON CARE LTD,290.02,PHY LTS 18-64,HOMECARE - C&V,2102753483,1000003398
04.12.2017,ADULT SOCIAL CARE,LONDON CARE LTD,"1,311.60",PHY LTS 18-64,HOMECARE - C&V,2102753486,1000003398
04.12.2017,ADULT SOCIAL CARE,LONDON CARE LTD,828.03,PHY LTS 18-64,HOMECARE - C&V,2102753491,1000003398
04.12.2017,ADULT SOCIAL CARE,LONDON CARE LTD,706.16,PHY LTS 18-64,HOMECARE - C&V,2102753499,1000003398
04.12.2017,ADULT SOCIAL CARE,LONDON CARE LTD,583.81,PHY LTS 18-64,HOMECARE - C&V,2102753516,1000003398
04.12.2017,ADULT SOCIAL CARE,LONDON CARE LTD,760.83,PHY LTS 18-64,HOMECARE - C&V,2102753517,1000003398
04.12.2017,ADULT SOCIAL CARE,LONDON CARE LTD,403.44,PHY LTS 18-64,HOMECARE - C&V,2102753534,1000003398
04.12.2017,ADULT SOCIAL CARE,LONDON CARE LTD,390.9,PHY LTS 18-64,HOMECARE - C&V,2102753535,1000003398
04.12.2017,ADULT SOCIAL CARE,LONDON CARE LTD,369.92,PHY LTS 18-64,HOMECARE - C&V,2102753543,1000003398
04.12.2017,ADULT SOCIAL CARE,LONDON CARE LTD,269.08,PHY LTS 18-64,HOMECARE - C&V,2102753557,1000003398
04.12.2017,ADULT SOCIAL CARE,LONDON CARE LTD,521.11,PHY LTS 18-64,HOMECARE - C&V,2102753559,1000003398
04.12.2017,ADULT SOCIAL CARE,METRO HOMECARE LTD,-330.51,PHY LTS 18-64,HOMECARE - SPOT,2102753397,1000070695
04.12.2017,ADULT SOCIAL CARE,METRO HOMECARE LTD,379.23,PHY LTS 18-64,HOMECARE - SPOT,2102753406,1000070695
04.12.2017,ADULT SOCIAL CARE,METRO HOMECARE LTD,586.08,PHY LTS 18-64,HOMECARE - SPOT,2102753412,1000070695
04.12.2017,ADULT SOCIAL CARE,METRO HOMECARE LTD,"1,089.41",PHY LTS 18-64,HOMECARE - SPOT,2102753426,1000070695
04.12.2017,ADULT SOCIAL CARE,METRO HOMECARE LTD,"1,351.42",PHY LTS 18-64,HOMECARE - SPOT,2102753435,1000070695
04.12.2017,ADULT SOCIAL CARE,METRO HOMECARE LTD,482.65,PHY LTS 18-64,HOMECARE - SPOT,2102753438,1000070695
04.12.2017,ADULT SOCIAL CARE,METRO HOMECARE LTD,296.49,PHY LTS 18-64,HOMECARE - SPOT,2102753453,1000070695
04.12.2017,ADULT SOCIAL CARE,METRO HOMECARE LTD,372.33,PHY LTS 18-64,HOMECARE - SPOT,2102753454,1000070695
04.12.2017,ADULT SOCIAL CARE,METRO HOMECARE LTD,337.86,PHY LTS 18-64,HOMECARE - SPOT,2102753464,1000070695
04.12.2017,ADULT SOCIAL CARE,LONDON CARE LTD,260.58,PHY LTS 18-64,HOMECARE - SPOT,2102753492,1000003398
04.12.2017,ADULT SOCIAL CARE,CARE DIRECT UK LTD,268.91,PHY LTS 18-64,HOMECARE - SPOT,2102753575,1000066322
04.12.2017,ADULT SOCIAL CARE,CARE DIRECT UK LTD,727.42,PHY LTS 18-64,HOMECARE - SPOT,2102753598,1000066322
04.12.2017,ADULT SOCIAL CARE,CARE DIRECT UK LTD,317.17,PHY LTS 18-64,HOMECARE - SPOT,2102753612,1000066322
04.12.2017,ADULT SOCIAL CARE,PROFAD CARE AGENCY,"1,042.15",PHY LTS 18-64,HOMECARE - SPOT,2102753774,1000079032
04.12.2017,ADULT SOCIAL CARE,METRO HOMECARE LTD,277.51,PHY LTS 65+,HOMECARE - C&V,2102753389,1000070695
04.12.2017,ADULT SOCIAL CARE,METRO HOMECARE LTD,268.91,PHY LTS 65+,HOMECARE - C&V,2102753439,1000070695
04.12.2017,ADULT SOCIAL CARE,METRO HOMECARE LTD,"1,323.84",PHY LTS 65+,HOMECARE - C&V,2102753457,1000070695
04.12.2017,ADULT SOCIAL CARE,METRO HOMECARE LTD,"1,061.83",PHY LTS 65+,HOMECARE - C&V,2102753458,1000070695
04.12.2017,ADULT SOCIAL CARE,LONDON CARE LTD,"1,626.85",PHY LTS 65+,HOMECARE - C&V,2102753468,1000003398
04.12.2017,ADULT SOCIAL CARE,LONDON CARE LTD,"1,345.24",PHY LTS 65+,HOMECARE - C&V,2102753469,1000003398
04.12.2017,ADULT SOCIAL CARE,LONDON CARE LTD,756.6,PHY LTS 65+,HOMECARE - C&V,2102753471,1000003398
04.12.2017,ADULT SOCIAL CARE,LONDON CARE LTD,563.15,PHY LTS 65+,HOMECARE - C&V,2102753472,1000003398
04.12.2017,ADULT SOCIAL CARE,LONDON CARE LTD,"1,185.59",PHY LTS 65+,HOMECARE - C&V,2102753476,1000003398
04.12.2017,ADULT SOCIAL CARE,LONDON CARE LTD,975.24,PHY LTS 65+,HOMECARE - C&V,2102753479,1000003398
04.12.2017,ADULT SOCIAL CARE,LONDON CARE LTD,281.64,PHY LTS 65+,HOMECARE - C&V,2102753481,1000003398
04.12.2017,ADULT SOCIAL CARE,LONDON CARE LTD,706.44,PHY LTS 65+,HOMECARE - C&V,2102753482,1000003398
04.12.2017,ADULT SOCIAL CARE,LONDON CARE LTD,563.33,PHY LTS 65+,HOMECARE - C&V,2102753484,1000003398
04.12.2017,ADULT SOCIAL CARE,LONDON CARE LTD,407.71,PHY LTS 65+,HOMECARE - C&V,2102753487,1000003398
04.12.2017,ADULT SOCIAL CARE,LONDON CARE LTD,"1,021.68",PHY LTS 65+,HOMECARE - C&V,2102753488,1000003398
04.12.2017,ADULT SOCIAL CARE,LONDON CARE LTD,470.96,PHY LTS 65+,HOMECARE - C&V,2102753489,1000003398
04.12.2017,ADULT SOCIAL CARE,LONDON CARE LTD,"1,227.28",PHY LTS 65+,HOMECARE - C&V,2102753490,1000003398
04.12.2017,ADULT SOCIAL CARE,LONDON CARE LTD,712.11,PHY LTS 65+,HOMECARE - C&V,2102753493,1000003398
04.12.2017,ADULT SOCIAL CARE,LONDON CARE LTD,554.75,PHY LTS 65+,HOMECARE - C&V,2102753494,1000003398
04.12.2017,ADULT SOCIAL CARE,LONDON CARE LTD,"1,117.93",PHY LTS 65+,HOMECARE - C&V,2102753496,1000003398
04.12.2017,ADULT SOCIAL CARE,LONDON CARE LTD,"1,639.67",PHY LTS 65+,HOMECARE - C&V,2102753497,1000003398
04.12.2017,ADULT SOCIAL CARE,LONDON CARE LTD,332.95,PHY LTS 65+,HOMECARE - C&V,2102753500,1000003398
04.12.2017,ADULT SOCIAL CARE,LONDON CARE LTD,302.6,PHY LTS 65+,HOMECARE - C&V,2102753501,1000003398
04.12.2017,ADULT SOCIAL CARE,LONDON CARE LTD,363.56,PHY LTS 65+,HOMECARE - C&V,2102753503,1000003398
04.12.2017,ADULT SOCIAL CARE,LONDON CARE LTD,706.16,PHY LTS 65+,HOMECARE - C&V,2102753505,1000003398
04.12.2017,ADULT SOCIAL CARE,LONDON CARE LTD,786.16,PHY LTS 65+,HOMECARE - C&V,2102753506,1000003398
04.12.2017,ADULT SOCIAL CARE,LONDON CARE LTD,597.02,PHY LTS 65+,HOMECARE - C&V,2102753508,1000003398
04.12.2017,ADULT SOCIAL CARE,LONDON CARE LTD,588.56,PHY LTS 65+,HOMECARE - C&V,2102753509,1000003398
04.12.2017,ADULT SOCIAL CARE,LONDON CARE LTD,437.32,PHY LTS 65+,HOMECARE - C&V,2102753511,1000003398
04.12.2017,ADULT SOCIAL CARE,LONDON CARE LTD,"2,161.11",PHY LTS 65+,HOMECARE - C&V,2102753512,1000003398
04.12.2017,ADULT SOCIAL CARE,LONDON CARE LTD,648.73,PHY LTS 65+,HOMECARE - C&V,2102753513,1000003398
04.12.2017,ADULT SOCIAL CARE,LONDON CARE LTD,394.96,PHY LTS 65+,HOMECARE - C&V,2102753514,1000003398
04.12.2017,ADULT SOCIAL CARE,LONDON CARE LTD,449.83,PHY LTS 65+,HOMECARE - C&V,2102753515,1000003398
04.12.2017,ADULT SOCIAL CARE,LONDON CARE LTD,952.97,PHY LTS 65+,HOMECARE - C&V,2102753518,1000003398
04.12.2017,ADULT SOCIAL CARE,LONDON CARE LTD,559.02,PHY LTS 65+,HOMECARE - C&V,2102753519,1000003398
04.12.2017,ADULT SOCIAL CARE,LONDON CARE LTD,428.73,PHY LTS 65+,HOMECARE - C&V,2102753520,1000003398
04.12.2017,ADULT SOCIAL CARE,LONDON CARE LTD,470.68,PHY LTS 65+,HOMECARE - C&V,2102753525,1000003398
04.12.2017,ADULT SOCIAL CARE,LONDON CARE LTD,844.77,PHY LTS 65+,HOMECARE - C&V,2102753530,1000003398
04.12.2017,ADULT SOCIAL CARE,LONDON CARE LTD,470.82,PHY LTS 65+,HOMECARE - C&V,2102753536,1000003398
04.12.2017,ADULT SOCIAL CARE,LONDON CARE LTD,874.44,PHY LTS 65+,HOMECARE - C&V,2102753538,1000003398
04.12.2017,ADULT SOCIAL CARE,LONDON CARE LTD,"1,135.08",PHY LTS 65+,HOMECARE - C&V,2102753539,1000003398
04.12.2017,ADULT SOCIAL CARE,LONDON CARE LTD,302.6,PHY LTS 65+,HOMECARE - C&V,2102753541,1000003398
04.12.2017,ADULT SOCIAL CARE,LONDON CARE LTD,924.92,PHY LTS 65+,HOMECARE - C&V,2102753542,1000003398
04.12.2017,ADULT SOCIAL CARE,LONDON CARE LTD,470.96,PHY LTS 65+,HOMECARE - C&V,2102753544,1000003398
04.12.2017,ADULT SOCIAL CARE,LONDON CARE LTD,344.68,PHY LTS 65+,HOMECARE - C&V,2102753545,1000003398
04.12.2017,ADULT SOCIAL CARE,LONDON CARE LTD,"1,332.55",PHY LTS 65+,HOMECARE - C&V,2102753547,1000003398
04.12.2017,ADULT SOCIAL CARE,LONDON CARE LTD,285.94,PHY LTS 65+,HOMECARE - C&V,2102753548,1000003398
04.12.2017,ADULT SOCIAL CARE,LONDON CARE LTD,512.99,PHY LTS 65+,HOMECARE - C&V,2102753549,1000003398
04.12.2017,ADULT SOCIAL CARE,LONDON CARE LTD,"1,387.10",PHY LTS 65+,HOMECARE - C&V,2102753550,1000003398
04.12.2017,ADULT SOCIAL CARE,LONDON CARE LTD,"2,354.24",PHY LTS 65+,HOMECARE - C&V,2102753556,1000003398
04.12.2017,ADULT SOCIAL CARE,LONDON CARE LTD,331.63,PHY LTS 65+,HOMECARE - C&V,2102753558,1000003398
04.12.2017,ADULT SOCIAL CARE,LONDON CARE LTD,353.08,PHY LTS 65+,HOMECARE - C&V,2102753561,1000003398
04.12.2017,ADULT SOCIAL CARE,LONDON CARE LTD,588.56,PHY LTS 65+,HOMECARE - C&V,2102753564,1000003398
04.12.2017,ADULT SOCIAL CARE,LONDON CARE LTD,"1,926.83",PHY LTS 65+,HOMECARE - C&V,2102753565,1000003398
04.12.2017,ADULT SOCIAL CARE,CARE DIRECT UK LTD,286.14,PHY LTS 65+,HOMECARE - C&V,2102753583,1000066322
04.12.2017,ADULT SOCIAL CARE,CARE DIRECT UK LTD,503.34,PHY LTS 65+,HOMECARE - C&V,2102753596,1000066322
04.12.2017,ADULT SOCIAL CARE,METRO HOMECARE LTD,-388.78,PHY LTS 65+,HOMECARE - SPOT,2102753388,1000070695
04.12.2017,ADULT SOCIAL CARE,METRO HOMECARE LTD,627.29,PHY LTS 65+,HOMECARE - SPOT,2102753391,1000070695
04.12.2017,ADULT SOCIAL CARE,METRO HOMECARE LTD,505.88,PHY LTS 65+,HOMECARE - SPOT,2102753392,1000070695
04.12.2017,ADULT SOCIAL CARE,METRO HOMECARE LTD,448.18,PHY LTS 65+,HOMECARE - SPOT,2102753398,1000070695
04.12.2017,ADULT SOCIAL CARE,METRO HOMECARE LTD,"1,572.06",PHY LTS 65+,HOMECARE - SPOT,2102753402,1000070695
04.12.2017,ADULT SOCIAL CARE,METRO HOMECARE LTD,310.28,PHY LTS 65+,HOMECARE - SPOT,2102753403,1000070695
04.12.2017,ADULT SOCIAL CARE,METRO HOMECARE LTD,406.81,PHY LTS 65+,HOMECARE - SPOT,2102753407,1000070695
04.12.2017,ADULT SOCIAL CARE,METRO HOMECARE LTD,337.86,PHY LTS 65+,HOMECARE - SPOT,2102753408,1000070695
04.12.2017,ADULT SOCIAL CARE,METRO HOMECARE LTD,386.12,PHY LTS 65+,HOMECARE - SPOT,2102753410,1000070695
04.12.2017,ADULT SOCIAL CARE,METRO HOMECARE LTD,558.5,PHY LTS 65+,HOMECARE - SPOT,2102753411,1000070695
04.12.2017,ADULT SOCIAL CARE,METRO HOMECARE LTD,310.28,PHY LTS 65+,HOMECARE - SPOT,2102753413,1000070695
04.12.2017,ADULT SOCIAL CARE,METRO HOMECARE LTD,372.33,PHY LTS 65+,HOMECARE - SPOT,2102753414,1000070695
04.12.2017,ADULT SOCIAL CARE,METRO HOMECARE LTD,"1,061.83",PHY LTS 65+,HOMECARE - SPOT,2102753418,1000070695
04.12.2017,ADULT SOCIAL CARE,METRO HOMECARE LTD,379.23,PHY LTS 65+,HOMECARE - SPOT,2102753420,1000070695
04.12.2017,ADULT SOCIAL CARE,METRO HOMECARE LTD,868.77,PHY LTS 65+,HOMECARE - SPOT,2102753421,1000070695
04.12.2017,ADULT SOCIAL CARE,METRO HOMECARE LTD,"1,048.04",PHY LTS 65+,HOMECARE - SPOT,2102753422,1000070695
04.12.2017,ADULT SOCIAL CARE,METRO HOMECARE LTD,393.02,PHY LTS 65+,HOMECARE - SPOT,2102753423,1000070695
04.12.2017,ADULT SOCIAL CARE,METRO HOMECARE LTD,551.6,PHY LTS 65+,HOMECARE - SPOT,2102753434,1000070695
04.12.2017,ADULT SOCIAL CARE,METRO HOMECARE LTD,551.6,PHY LTS 65+,HOMECARE - SPOT,2102753436,1000070695
04.12.2017,ADULT SOCIAL CARE,METRO HOMECARE LTD,282.7,PHY LTS 65+,HOMECARE - SPOT,2102753442,1000070695
04.12.2017,ADULT SOCIAL CARE,METRO HOMECARE LTD,361.99,PHY LTS 65+,HOMECARE - SPOT,2102753443,1000070695
04.12.2017,ADULT SOCIAL CARE,METRO HOMECARE LTD,"1,185.94",PHY LTS 65+,HOMECARE - SPOT,2102753444,1000070695
04.12.2017,ADULT SOCIAL CARE,METRO HOMECARE LTD,482.65,PHY LTS 65+,HOMECARE - SPOT,2102753445,1000070695
04.12.2017,ADULT SOCIAL CARE,METRO HOMECARE LTD,"1,627.22",PHY LTS 65+,HOMECARE - SPOT,2102753446,1000070695
04.12.2017,ADULT SOCIAL CARE,METRO HOMECARE LTD,434.39,PHY LTS 65+,HOMECARE - SPOT,2102753448,1000070695
04.12.2017,ADULT SOCIAL CARE,METRO HOMECARE LTD,337.86,PHY LTS 65+,HOMECARE - SPOT,2102753449,1000070695
04.12.2017,ADULT SOCIAL CARE,METRO HOMECARE LTD,503.34,PHY LTS 65+,HOMECARE - SPOT,2102753450,1000070695
04.12.2017,ADULT SOCIAL CARE,METRO HOMECARE LTD,337.86,PHY LTS 65+,HOMECARE - SPOT,2102753451,1000070695
04.12.2017,ADULT SOCIAL CARE,METRO HOMECARE LTD,868.77,PHY LTS 65+,HOMECARE - SPOT,2102753460,1000070695
04.12.2017,ADULT SOCIAL CARE,METRO HOMECARE LTD,586.08,PHY LTS 65+,HOMECARE - SPOT,2102753463,1000070695
04.12.2017,ADULT SOCIAL CARE,METRO HOMECARE LTD,868.77,PHY LTS 65+,HOMECARE - SPOT,2102753465,1000070695
04.12.2017,ADULT SOCIAL CARE,METRO HOMECARE LTD,306.83,PHY LTS 65+,HOMECARE - SPOT,2102753466,1000070695
04.12.2017,ADULT SOCIAL CARE,METRO HOMECARE LTD,372.33,PHY LTS 65+,HOMECARE - SPOT,2102753467,1000070695
04.12.2017,ADULT SOCIAL CARE,CARE DIRECT UK LTD,472.31,PHY LTS 65+,HOMECARE - SPOT,2102753568,1000066322
04.12.2017,ADULT SOCIAL CARE,CARE DIRECT UK LTD,272.35,PHY LTS 65+,HOMECARE - SPOT,2102753570,1000066322
04.12.2017,ADULT SOCIAL CARE,CARE DIRECT UK LTD,399.91,PHY LTS 65+,HOMECARE - SPOT,2102753573,1000066322
04.12.2017,ADULT SOCIAL CARE,CARE DIRECT UK LTD,655.03,PHY LTS 65+,HOMECARE - SPOT,2102753591,1000066322
04.12.2017,ADULT SOCIAL CARE,CARE DIRECT UK LTD,482.65,PHY LTS 65+,HOMECARE - SPOT,2102753592,1000066322
04.12.2017,ADULT SOCIAL CARE,CARE DIRECT UK LTD,306.83,PHY LTS 65+,HOMECARE - SPOT,2102753599,1000066322
04.12.2017,ADULT SOCIAL CARE,CARE DIRECT UK LTD,530.92,PHY LTS 65+,HOMECARE - SPOT,2102753615,1000066322
04.12.2017,ADULT SOCIAL CARE,CARE DIRECT UK LTD,482.65,PHY LTS 65+,HOMECARE - SPOT,2102753626,1000066322
04.12.2017,ADULT SOCIAL CARE,CARE DIRECT UK LTD,406.81,PHY LTS 65+,HOMECARE - SPOT,2102753627,1000066322
04.12.2017,ADULT SOCIAL CARE,CARE DIRECT UK LTD,723.98,PHY LTS 65+,HOMECARE - SPOT,2102753635,1000066322
04.12.2017,ADULT SOCIAL CARE,CARE DIRECT UK LTD,434.39,PHY LTS 65+,HOMECARE - SPOT,2102753638,1000066322
04.12.2017,ADULT SOCIAL CARE,CARE DIRECT UK LTD,265.46,PHY LTS 65+,HOMECARE - SPOT,2102753640,1000066322
04.12.2017,ADULT SOCIAL CARE,CARE DIRECT UK LTD,723.98,PHY LTS 65+,HOMECARE - SPOT,2102753641,1000066322
04.12.2017,ADULT SOCIAL CARE,CARE DIRECT UK LTD,482.65,PHY LTS 65+,HOMECARE - SPOT,2102753650,1000066322
04.12.2017,ADULT SOCIAL CARE,CARE DIRECT UK LTD,730.87,PHY LTS 65+,HOMECARE - SPOT,2102753654,1000066322
04.12.2017,ADULT SOCIAL CARE,CARE DIRECT UK LTD,262.01,PHY LTS 65+,HOMECARE - SPOT,2102753658,1000066322
04.12.2017,ADULT SOCIAL CARE,CARE DIRECT UK LTD,399.91,PHY LTS 65+,HOMECARE - SPOT,2102753659,1000066322
04.12.2017,ADULT SOCIAL CARE,CARE DIRECT UK LTD,551.6,PHY LTS 65+,HOMECARE - SPOT,2102753665,1000066322
04.12.2017,ADULT SOCIAL CARE,CARE DIRECT UK LTD,530.92,PHY LTS 65+,HOMECARE - SPOT,2102753668,1000066322
04.12.2017,ADULT SOCIAL CARE,CARE DIRECT UK LTD,265.46,PHY LTS 65+,HOMECARE - SPOT,2102753672,1000066322
04.12.2017,ADULT SOCIAL CARE,CARE DIRECT UK LTD,427.49,PHY LTS 65+,HOMECARE - SPOT,2102753677,1000066322
04.12.2017,ADULT SOCIAL CARE,CAPITAL HOMECARE (UK) LTD,"1,647.91",PHY LTS 65+,HOMECARE - SPOT,2102753777,1000042589
04.12.2017,ADULT SOCIAL CARE,CULTURE CARE AGENCY,294,PHY LTS 65+,HOMECARE - SPOT,2102753778,1000062127
04.12.2017,ADULT SOCIAL CARE,HEATHERDENE NURSING HOME,-509.84,PHY LTS 65+,"MAND STATUTORY CHARGES, NURSING",2102750015,1000076774
04.12.2017,ADULT SOCIAL CARE,HEATHERDENE NURSING HOME,"2,183.00",PHY LTS 65+,NURSING PLACEMENTS FEES,2102750016,1000076774
04.12.2017,ADULT SOCIAL CARE,REDACTED PERSONAL DATA,"1,115.52",PHY LTS 65+,PAYMENTS TO CLIENTS (DIRECT PAYMENTS),2102748035,REDACTED
04.12.2017,ADULT SOCIAL CARE,LONDON CARE LTD,"1,143.36",SOCIAL ISOLATION,HOMECARE - C&V,2102753485,1000003398
04.12.2017,ADULT SOCIAL CARE,LONDON CARE LTD,333.19,SOCIAL ISOLATION,HOMECARE - C&V,2102753560,1000003398
04.12.2017,ADULT SOCIAL CARE,METRO HOMECARE LTD,296.49,SOCIAL ISOLATION,HOMECARE - SPOT,2102753415,1000070695
04.12.2017,ASSET MANAGEMENT,STANNAH LIFT SERVICES LTD,"1,925.00",ADAPTATIONS,BUILDING R&M,5902280064,1063595
04.12.2017,ASSET MANAGEMENT,ADRIAN MOODY,505.54,ADAPTATIONS,BUILDING R&M,5902280114,1000080297
04.12.2017,ASSET MANAGEMENT,ADRIAN MOODY,391.69,ADAPTATIONS,BUILDING R&M,5902280116,1000080297
04.12.2017,ASSET MANAGEMENT,BRIDGEWATER ROOFING CONTRACTORS LTD,"1,520.00",VISIBLE DIFFERENCE (NORTH),BUILDING R&M,2102753340,3000001482
04.12.2017,ASSET MANAGEMENT,BUILDTRUST LTD,"9,737.00",VOIDS (SOUTH),BUILDING R&M,2102753786,3000002010
04.12.2017,ASSET MANAGEMENT,BUILDTRUST LTD,"4,893.50",VOIDS (SOUTH),BUILDING R&M,2102753787,3000002010
04.12.2017,CENTRAL FUNCTIONS,EDF ENERGY PLC,410.95,COMMERCIAL PROPERTIES,ELECTRICITY,5902280044,1008746
04.12.2017,CENTRAL FUNCTIONS,NPOWER LTD,329.05,COMMERCIAL PROPERTIES,ELECTRICITY,5902280049,1000078994
04.12.2017,CENTRAL FUNCTIONS,KENT COUNTY COUNCIL - LASER,326.47,COMMERCIAL PROPERTIES,GAS,5902280022,1000012926
04.12.2017,CHIEF EXECUTIVE,MOUNTVIEW ACADEMY OF THEATRE ARTS,"797,495.39",CAPITAL PS (REGEN),CAPITAL GRANTS,5902280152,1000076966
04.12.2017,CHIEF EXECUTIVE,RED R DESIGN,450,CAPITAL PS (REGEN),CONSTR'N SUB CONTRACT - NON CERTIFICATED,5902280167,1000035984
04.12.2017,CHILDREN AND ADULT,GLEEDS ADVISORY LTD,"3,030.00",CAPITAL PS (EDUCATION),CONSTRUCTION FEES  - EXTERNAL,5902280104,1000076155
04.12.2017,CHILDREN AND ADULT,GLEEDS ADVISORY LTD,500,CAPITAL PS (EDUCATION),CONSTRUCTION FEES  - EXTERNAL,5902280105,1000076155
04.12.2017,CHILDREN'S SERVICES,REDACTED PERSONAL DATA,"20,250.00",ADOPTION PLACEMENTS & INTER AGENCY,EXTERNAL AGENCIES AND BODIES,5902280130,REDACTED
04.12.2017,CHILDREN'S SERVICES,COMPASS FOSTERING SOUTH LTD,"2,881.25",AGENCY FOSTERING,EXTERNAL AGENCIES AND BODIES,2102753347,1000073772
04.12.2017,CHILDREN'S SERVICES,COMPASS FOSTERING SOUTH LTD,"2,516.75",AGENCY FOSTERING,EXTERNAL AGENCIES AND BODIES,2102753348,1000073772
04.12.2017,CHILDREN'S SERVICES,COMPASS FOSTERING SOUTH LTD,"2,889.60",AGENCY FOSTERING,EXTERNAL AGENCIES AND BODIES,2102753349,1000073772
04.12.2017,CHILDREN'S SERVICES,COMPASS FOSTERING SOUTH LTD,"3,308.10",AGENCY FOSTERING,EXTERNAL AGENCIES AND BODIES,2102753350,1000073772
04.12.2017,CHILDREN'S SERVICES,COMPASS FOSTERING SOUTH LTD,"2,978.70",AGENCY FOSTERING,EXTERNAL AGENCIES AND BODIES,2102753351,1000073772
04.12.2017,CHILDREN'S SERVICES,COMPASS FOSTERING SOUTH LTD,"2,796.39",AGENCY FOSTERING,EXTERNAL AGENCIES AND BODIES,2102753352,1000073772
04.12.2017,CHILDREN'S SERVICES,COMPASS FOSTERING SOUTH LTD,"3,201.39",AGENCY FOSTERING,EXTERNAL AGENCIES AND BODIES,2102753353,1000073772
04.12.2017,CHILDREN'S SERVICES,HEATH FARM FAMILY SOLUTION (FOSTERING),"3,142.80",AGENCY FOSTERING,EXTERNAL AGENCIES AND BODIES,2102753354,11271268
04.12.2017,CHILDREN'S SERVICES,BY THE BRIDGE LTD,"4,523.49",AGENCY FOSTERING,EXTERNAL AGENCIES AND BODIES,2102753687,1000043961
04.12.2017,CHILDREN'S SERVICES,CHILDREN OF ALL NATIONS LTD,"4,417.93",AGENCY FOSTERING,EXTERNAL AGENCIES AND BODIES,2102753688,1000060151
04.12.2017,CHILDREN'S SERVICES,INTEGRATED SERVICES PROGRAMME,"5,164.20",AGENCY FOSTERING,EXTERNAL AGENCIES AND BODIES,2102753689,1642068
04.12.2017,CHILDREN'S SERVICES,RYANCARE FOSTERING,"3,427.50",AGENCY FOSTERING,EXTERNAL AGENCIES AND BODIES,2102753690,1000062376
04.12.2017,CHILDREN'S SERVICES,BY THE BRIDGE LTD,"4,650.47",AGENCY FOSTERING,EXTERNAL AGENCIES AND BODIES,2102753691,1000043961
04.12.2017,CHILDREN'S SERVICES,PARENT AND CHILD FOSTERING ASSESSMENTS,"5,142.85",AGENCY FOSTERING,EXTERNAL AGENCIES AND BODIES,2102753692,1000078962
04.12.2017,CHILDREN'S SERVICES,RAINBOW FOSTERING SERVICES LTD,"3,268.80",AGENCY FOSTERING,EXTERNAL AGENCIES AND BODIES,2102753693,1000076620
04.12.2017,CHILDREN'S SERVICES,COMPASS FOSTERING LONDON LTD,"3,167.10",AGENCY FOSTERING,EXTERNAL AGENCIES AND BODIES,2102753694,1000057908
04.12.2017,CHILDREN'S SERVICES,SANKOFA CARE LTD,"3,803.10",AGENCY FOSTERING,EXTERNAL AGENCIES AND BODIES,2102753695,1000030717
04.12.2017,CHILDREN'S SERVICES,TIME FOR CHILDREN LTD,"3,000.00",AGENCY FOSTERING,EXTERNAL AGENCIES AND BODIES,2102753696,1000024439
04.12.2017,CHILDREN'S SERVICES,BY THE BRIDGE LTD,"5,571.43",AGENCY FOSTERING,EXTERNAL AGENCIES AND BODIES,2102753697,1000043961
04.12.2017,CHILDREN'S SERVICES,ACTION FOR CHILDREN,"3,767.10",AGENCY FOSTERING,EXTERNAL AGENCIES AND BODIES,2102753698,1000049964
04.12.2017,CHILDREN'S SERVICES,NEXT STEP FOSTERING SERVICES LTD,"4,209.00",AGENCY FOSTERING,EXTERNAL AGENCIES AND BODIES,2102753699,1000044973
04.12.2017,CHILDREN'S SERVICES,INTEGRATED SERVICES PROGRAMME,"5,164.20",AGENCY FOSTERING,EXTERNAL AGENCIES AND BODIES,2102753700,1642068
04.12.2017,CHILDREN'S SERVICES,FIVE RIVERS CHILD CARE LTD,"3,257.14",AGENCY FOSTERING,EXTERNAL AGENCIES AND BODIES,2102753701,1000018792
04.12.2017,CHILDREN'S SERVICES,INTEGRATED SERVICES PROGRAMME,"5,164.20",AGENCY FOSTERING,EXTERNAL AGENCIES AND BODIES,2102753702,1642068
04.12.2017,CHILDREN'S SERVICES,CHILDREN OF ALL NATIONS LTD,"3,975.90",AGENCY FOSTERING,EXTERNAL AGENCIES AND BODIES,2102753703,1000060151
04.12.2017,CHILDREN'S SERVICES,COMPASS FOSTERING SOUTH LTD,"2,978.70",AGENCY FOSTERING,EXTERNAL AGENCIES AND BODIES,2102753704,1000073772
04.12.2017,CHILDREN'S SERVICES,CHILDREN OF COLOUR,"3,444.00",AGENCY FOSTERING,EXTERNAL AGENCIES AND BODIES,2102753705,1000044955
04.12.2017,CHILDREN'S SERVICES,HELP ME GROW FOSTERING SERVICES LTD,"6,314.14",AGENCY FOSTERING,EXTERNAL AGENCIES AND BODIES,2102753706,1000079302
04.12.2017,CHILDREN'S SERVICES,HELP ME GROW FOSTERING SERVICES LTD,"2,777.10",AGENCY FOSTERING,EXTERNAL AGENCIES AND BODIES,2102753707,1000079302
04.12.2017,CHILDREN'S SERVICES,ETHELBERT SPECIALIST HOMES,"3,559.46",AGENCY FOSTERING,EXTERNAL AGENCIES AND BODIES,2102753708,1796129
04.12.2017,CHILDREN'S SERVICES,ETHELBERT SPECIALIST HOMES,"3,559.46",AGENCY FOSTERING,EXTERNAL AGENCIES AND BODIES,2102753709,1796129
04.12.2017,CHILDREN'S SERVICES,ANCHOR FOSTERCARE,"3,677.10",AGENCY FOSTERING,EXTERNAL AGENCIES AND BODIES,2102753710,1000065675
04.12.2017,CHILDREN'S SERVICES,CHILDREN FIRST FOSTERING AGENCY LTD,"3,750.00",AGENCY FOSTERING,EXTERNAL AGENCIES AND BODIES,2102753711,1000060081
04.12.2017,CHILDREN'S SERVICES,INTEGRATED SERVICES PROGRAMME,"6,235.50",AGENCY FOSTERING,EXTERNAL AGENCIES AND BODIES,2102753712,1642068
04.12.2017,CHILDREN'S SERVICES,BY THE BRIDGE LTD,"4,745.36",AGENCY FOSTERING,EXTERNAL AGENCIES AND BODIES,2102753713,1000043961
04.12.2017,CHILDREN'S SERVICES,MOSAIC FOSTER CARE LTD,"6,428.40",AGENCY FOSTERING,EXTERNAL AGENCIES AND BODIES,2102753714,1000076259
04.12.2017,CHILDREN'S SERVICES,FIVE RIVERS CHILD CARE LTD,"6,317.14",AGENCY FOSTERING,EXTERNAL AGENCIES AND BODIES,2102753715,1000018792
04.12.2017,CHILDREN'S SERVICES,CHILDREN FIRST FOSTERING AGENCY LTD,"3,750.00",AGENCY FOSTERING,EXTERNAL AGENCIES AND BODIES,2102753716,1000060081
04.12.2017,CHILDREN'S SERVICES,MOSAIC FOSTER CARE LTD,"6,750.00",AGENCY FOSTERING,EXTERNAL AGENCIES AND BODIES,2102753717,1000076259
04.12.2017,CHILDREN'S SERVICES,MOMENTS FOSTERING LTD,"4,350.00",AGENCY FOSTERING,EXTERNAL AGENCIES AND BODIES,2102753718,1000037317
04.12.2017,CHILDREN'S SERVICES,COMPASS FOSTERING LONDON LTD,"3,720.73",AGENCY FOSTERING,EXTERNAL AGENCIES AND BODIES,2102753719,1000057908
04.12.2017,CHILDREN'S SERVICES,BY THE BRIDGE LTD,"4,082.44",AGENCY FOSTERING,EXTERNAL AGENCIES AND BODIES,2102753720,1000043961
04.12.2017,CHILDREN'S SERVICES,ETHELBERT SPECIALIST HOMES,"3,757.16",AGENCY FOSTERING,EXTERNAL AGENCIES AND BODIES,2102753721,1796129
04.12.2017,CHILDREN'S SERVICES,BY THE BRIDGE LTD,"4,745.36",AGENCY FOSTERING,EXTERNAL AGENCIES AND BODIES,2102753722,1000043961
04.12.2017,CHILDREN'S SERVICES,SANKOFA CARE LTD,"4,392.30",AGENCY FOSTERING,EXTERNAL AGENCIES AND BODIES,2102753723,1000030717
04.12.2017,CHILDREN'S SERVICES,BY THE BRIDGE LTD,"4,297.33",AGENCY FOSTERING,EXTERNAL AGENCIES AND BODIES,2102753724,1000043961
04.12.2017,CHILDREN'S SERVICES,INTEGRATED SERVICES PROGRAMME,"5,009.40",AGENCY FOSTERING,EXTERNAL AGENCIES AND BODIES,2102753725,1642068
04.12.2017,CHILDREN'S SERVICES,INTEGRATED SERVICES PROGRAMME,"5,009.40",AGENCY FOSTERING,EXTERNAL AGENCIES AND BODIES,2102753726,1642068
04.12.2017,CHILDREN'S SERVICES,ASCENT FOSTERING AGENCY LTD,"5,507.10",AGENCY FOSTERING,EXTERNAL AGENCIES AND BODIES,2102753727,1000074714
04.12.2017,CHILDREN'S SERVICES,BY THE BRIDGE LTD,"4,297.33",AGENCY FOSTERING,EXTERNAL AGENCIES AND BODIES,2102753728,1000043961
04.12.2017,CHILDREN'S SERVICES,SANKOFA CARE LTD,"3,477.30",AGENCY FOSTERING,EXTERNAL AGENCIES AND BODIES,2102753729,1000030717
04.12.2017,CHILDREN'S SERVICES,CHILDREN OF COLOUR,"3,360.00",AGENCY FOSTERING,EXTERNAL AGENCIES AND BODIES,2102753730,1000044955
04.12.2017,CHILDREN'S SERVICES,CONNECT FOSTERING SERVICES LTD,"3,407.14",AGENCY FOSTERING,EXTERNAL AGENCIES AND BODIES,2102753731,1000079969
04.12.2017,CHILDREN'S SERVICES,CROHAM SERVICES FOR CHILDREN,"3,531.90",AGENCY FOSTERING,EXTERNAL AGENCIES AND BODIES,2102753732,1556859
04.12.2017,CHILDREN'S SERVICES,HEATH FARM FAMILY SOLUTION (FOSTERING),"4,714.20",AGENCY FOSTERING,EXTERNAL AGENCIES AND BODIES,2102753733,11271268
04.12.2017,CHILDREN'S SERVICES,SELECT FOSTERCARE SERVICES LTD,"3,535.80",AGENCY FOSTERING,EXTERNAL AGENCIES AND BODIES,2102753734,1000079277
04.12.2017,CHILDREN'S SERVICES,HEATH FARM FAMILY SOLUTION (FOSTERING),"4,871.34",AGENCY FOSTERING,EXTERNAL AGENCIES AND BODIES,2102753735,11271268
04.12.2017,CHILDREN'S SERVICES,BY THE BRIDGE LTD,"4,433.01",AGENCY FOSTERING,EXTERNAL AGENCIES AND BODIES,2102753736,1000043961
04.12.2017,CHILDREN'S SERVICES,BY THE BRIDGE LTD,"4,433.01",AGENCY FOSTERING,EXTERNAL AGENCIES AND BODIES,2102753737,1000043961
04.12.2017,CHILDREN'S SERVICES,COMPASS FOSTERING SOUTH LTD,"3,201.39",AGENCY FOSTERING,EXTERNAL AGENCIES AND BODIES,2102753739,1000073772
04.12.2017,CHILDREN'S SERVICES,KENT HOMEFINDING & FOSTERING LTD,"8,829.00",AGENCY FOSTERING,EXTERNAL AGENCIES AND BODIES,2102753740,1000033978
04.12.2017,CHILDREN'S SERVICES,CHILDREN OF ALL NATIONS LTD,"3,975.90",AGENCY FOSTERING,EXTERNAL AGENCIES AND BODIES,2102753741,1000060151
04.12.2017,CHILDREN'S SERVICES,BY THE BRIDGE LTD,"4,523.49",AGENCY FOSTERING,EXTERNAL AGENCIES AND BODIES,2102753742,1000043961
04.12.2017,CHILDREN'S SERVICES,BY THE BRIDGE LTD,"4,359.64",AGENCY FOSTERING,EXTERNAL AGENCIES AND BODIES,2102753743,1000043961
04.12.2017,CHILDREN'S SERVICES,THE XCEL 2000 PARTNERSHIP LTD,"3,248.57",AGENCY FOSTERING,EXTERNAL AGENCIES AND BODIES,2102753744,1000024427
04.12.2017,CHILDREN'S SERVICES,HELP ME GROW FOSTERING SERVICES LTD,"3,085.50",AGENCY FOSTERING,EXTERNAL AGENCIES AND BODIES,2102753745,1000079302
04.12.2017,CHILDREN'S SERVICES,HELP ME GROW FOSTERING SERVICES LTD,"2,777.10",AGENCY FOSTERING,EXTERNAL AGENCIES AND BODIES,2102753746,1000079302
04.12.2017,CHILDREN'S SERVICES,SANKOFA CARE LTD,"3,477.30",AGENCY FOSTERING,EXTERNAL AGENCIES AND BODIES,2102753747,1000030717
04.12.2017,CHILDREN'S SERVICES,ANCHOR FOSTERCARE,"3,163.20",AGENCY FOSTERING,EXTERNAL AGENCIES AND BODIES,2102753749,1000065675
04.12.2017,CHILDREN'S SERVICES,DIAGRAMA FOUNDATION CHILDREN SERVICES,"3,711.43",AGENCY FOSTERING,EXTERNAL AGENCIES AND BODIES,2102753750,1000078697
04.12.2017,CHILDREN'S SERVICES,ANCHOR FOSTERCARE,"3,163.20",AGENCY FOSTERING,EXTERNAL AGENCIES AND BODIES,2102753751,1000065675
04.12.2017,CHILDREN'S SERVICES,MOMENTS FOSTERING LTD,"5,357.10",AGENCY FOSTERING,EXTERNAL AGENCIES AND BODIES,2102753752,1000037317
04.12.2017,CHILDREN'S SERVICES,COMPASS FOSTERING SOUTH LTD,"2,796.39",AGENCY FOSTERING,EXTERNAL AGENCIES AND BODIES,2102753753,1000073772
04.12.2017,CHILDREN'S SERVICES,BY THE BRIDGE LTD,"6,030.00",AGENCY FOSTERING,EXTERNAL AGENCIES AND BODIES,2102753754,1000043961
04.12.2017,CHILDREN'S SERVICES,ETHELBERT SPECIALIST HOMES,"3,559.46",AGENCY FOSTERING,EXTERNAL AGENCIES AND BODIES,2102753755,1796129
04.12.2017,CHILDREN'S SERVICES,HELP ME GROW FOSTERING SERVICES LTD,"3,085.50",AGENCY FOSTERING,EXTERNAL AGENCIES AND BODIES,2102753756,1000079302
04.12.2017,CHILDREN'S SERVICES,ETHELBERT SPECIALIST HOMES,"3,757.16",AGENCY FOSTERING,EXTERNAL AGENCIES AND BODIES,2102753757,1796129
04.12.2017,CHILDREN'S SERVICES,BY THE BRIDGE LTD,"4,433.01",AGENCY FOSTERING,EXTERNAL AGENCIES AND BODIES,2102753758,1000043961
04.12.2017,CHILDREN'S SERVICES,COMPASS FOSTERING LONDON LTD,"2,660.61",AGENCY FOSTERING,EXTERNAL AGENCIES AND BODIES,2102753759,1000057908
04.12.2017,CHILDREN'S SERVICES,FOSTERCARE UK LTD,"3,094.29",AGENCY FOSTERING,EXTERNAL AGENCIES AND BODIES,2102753760,1000073002
04.12.2017,CHILDREN'S SERVICES,CHILDREN OF COLOUR,"4,114.27",AGENCY FOSTERING,EXTERNAL AGENCIES AND BODIES,2102753761,1000044955
04.12.2017,CHILDREN'S SERVICES,COMPASS FOSTERING LONDON LTD,"2,978.70",AGENCY FOSTERING,EXTERNAL AGENCIES AND BODIES,2102753762,1000057908
04.12.2017,CHILDREN'S SERVICES,BY THE BRIDGE LTD,"4,650.47",AGENCY FOSTERING,EXTERNAL AGENCIES AND BODIES,2102753763,1000043961
04.12.2017,CHILDREN'S SERVICES,BARNARDOS SERVICES LTD,"3,444.30",AGENCY FOSTERING,EXTERNAL AGENCIES AND BODIES,2102753764,1000063730
04.12.2017,CHILDREN'S SERVICES,BARNARDOS SERVICES LTD,"1,435.34",AGENCY FOSTERING,EXTERNAL AGENCIES AND BODIES,2102753765,1000063730
04.12.2017,CHILDREN'S SERVICES,INTEGRATED SERVICES PROGRAMME,"5,009.40",AGENCY FOSTERING,EXTERNAL AGENCIES AND BODIES,2102753766,1642068
04.12.2017,CHILDREN'S SERVICES,INTEGRATED SERVICES PROGRAMME,"5,009.40",AGENCY FOSTERING,EXTERNAL AGENCIES AND BODIES,2102753767,1642068
04.12.2017,CHILDREN'S SERVICES,CHILDREN OF COLOUR,"3,360.00",AGENCY FOSTERING,EXTERNAL AGENCIES AND BODIES,2102753768,1000044955
04.12.2017,CHILDREN'S SERVICES,COMPASS FOSTERING LONDON LTD,"2,785.16",AGENCY FOSTERING,EXTERNAL AGENCIES AND BODIES,2102753769,1000057908
04.12.2017,CHILDREN'S SERVICES,BY THE BRIDGE LTD,"4,206.86",AGENCY FOSTERING,EXTERNAL AGENCIES AND BODIES,2102753770,1000043961
04.12.2017,CHILDREN'S SERVICES,BY THE BRIDGE LTD,"4,433.01",AGENCY FOSTERING,EXTERNAL AGENCIES AND BODIES,2102753771,1000043961
04.12.2017,CHILDREN'S SERVICES,CROHAM SERVICES FOR CHILDREN,"3,531.90",AGENCY FOSTERING,EXTERNAL AGENCIES AND BODIES,2102753772,1556859
04.12.2017,CHILDREN'S SERVICES,YOUNG PEOPLE AT HEART LTD,"3,000.00",AGENCY FOSTERING,EXTERNAL AGENCIES AND BODIES,2102753773,1000076694
04.12.2017,CHILDREN'S SERVICES,BY THE BRIDGE LTD,"-3,321.75",AGENCY FOSTERING,EXTERNAL AGENCIES AND BODIES,5902279843,1000043961
04.12.2017,CHILDREN'S SERVICES,BEATRICE WEYDERT,"2,200.00",DISABILITY & HIV,PROFESSIONAL FEES,5902280160,1000034579
04.12.2017,CHILDREN'S SERVICES,CORAL COMMUNITY ASSESSMENTS LTD,486.8,DISABILITY & HIV,PROFESSIONAL FEES,5902280159,1000056464
04.12.2017,CHILDREN'S SERVICES,REDACTED PERSONAL DATA,300,FURTHER EDUCATION SUPPORT,CLIENT TRANSPORT,2102753209,REDACTED
04.12.2017,CHILDREN'S SERVICES,LYNNE RADIO LTD,789.95,LEAVING CARE GRANT,OTHER PAYMENTS FOR CLIENTS,5902280169,1000051823
04.12.2017,CHILDREN'S SERVICES,TFL TELESALES / OYSTER FULFILMENT,350,MANAGEMENT,PUBLIC TRANSPORT,5902280117,1000059727
04.12.2017,CHILDREN'S SERVICES,ST STEPHENS CHURCH OF ENGLAND PRIMARY SCHOOL,"1,460.00",PUPIL PREMIUM CURRENT YEAR,SCHOOLS CAPITATION,2102752117,1000080351
04.12.2017,CHILDREN'S SERVICES,PRESTIGE ADOLESCENT CARE & EDUCATION LTD,"14,785.80",RESIDENTIAL,RESIDENTIAL CARE,2102753355,1000077596
04.12.2017,CHILDREN'S SERVICES,ALLIANCE CARE & EDUCATION LTD,"20,207.14",RESIDENTIAL,RESIDENTIAL CARE,2102753356,1000079956
04.12.2017,CHILDREN'S SERVICES,HILLCREST CHILDRENS SERVICES LTD,"15,900.00",RESIDENTIAL,RESIDENTIAL CARE,2102753357,1000077489
04.12.2017,CHILDREN'S SERVICES,CAMBIAN CHILDCARE LTD,"20,571.30",RESIDENTIAL,RESIDENTIAL CARE,2102753358,1000075351
04.12.2017,CHILDREN'S SERVICES,DIRECT CARE LIMITED,"14,571.30",RESIDENTIAL,RESIDENTIAL CARE,2102753359,1000064606
04.12.2017,CHILDREN'S SERVICES,NEWRAYS CARE SERVICES LTD,"15,428.57",RESIDENTIAL,RESIDENTIAL CARE,2102753360,1000079537
04.12.2017,CHILDREN'S SERVICES,MEADOWS CARE LTD,"16,714.29",RESIDENTIAL,RESIDENTIAL CARE,2102753361,1000077238
04.12.2017,CHILDREN'S SERVICES,THE AMICUS COMMUNITY (ARUNDEL) LTD,"19,907.10",RESIDENTIAL,RESIDENTIAL CARE,2102753362,1000079012
04.12.2017,CHILDREN'S SERVICES,NEW HORIZONS CHILD CARE LTD,"19,285.80",RESIDENTIAL,RESIDENTIAL CARE,2102753363,1000051063
04.12.2017,CHILDREN'S SERVICES,FOOTSTEPS CARE LTD,"18,783.70",RESIDENTIAL,RESIDENTIAL CARE,2102753364,1000045464
04.12.2017,CHILDREN'S SERVICES,CHILDHOOD FIRST,"18,428.57",RESIDENTIAL,RESIDENTIAL CARE,2102753365,1000076330
04.12.2017,CHILDREN'S SERVICES,CHILDHOOD FIRST,"19,080.00",RESIDENTIAL,RESIDENTIAL CARE,2102753366,1000076330
04.12.2017,CHILDREN'S SERVICES,CARE FOCUS LTD,"16,071.43",RESIDENTIAL,RESIDENTIAL CARE,2102753367,1000079318
04.12.2017,CHILDREN'S SERVICES,NEW HORIZONS CHILD CARE LTD,"18,857.10",RESIDENTIAL,RESIDENTIAL CARE,2102753368,1000051063
04.12.2017,CHILDREN'S SERVICES,PLUS ONE LTD,"15,852.86",RESIDENTIAL,RESIDENTIAL CARE,2102753369,1000013874
04.12.2017,CHILDREN'S SERVICES,NEW HORIZONS CHILD CARE LTD,"16,714.20",RESIDENTIAL,RESIDENTIAL CARE,2102753370,1000051063
04.12.2017,CHILDREN'S SERVICES,REAMCARE LTD,"17,571.42",RESIDENTIAL,RESIDENTIAL CARE,2102753371,1000078284
04.12.2017,CHILDREN'S SERVICES,MEADOWS CARE LTD,"16,714.29",RESIDENTIAL,RESIDENTIAL CARE,2102753372,1000077238
04.12.2017,CHILDREN'S SERVICES,ALLIANCE CARE & EDUCATION LTD,"16,165.71",RESIDENTIAL,RESIDENTIAL CARE,2102753373,1000079956
04.12.2017,CHILDREN'S SERVICES,SPORTFIT SHORT BREAK CARE LTD,"9,900.00",RESIDENTIAL,RESIDENTIAL CARE,2102753374,1000078113
04.12.2017,CHILDREN'S SERVICES,LIONCARE LIMITED,"15,512.14",RESIDENTIAL,RESIDENTIAL CARE,2102753375,1000065330
04.12.2017,CHILDREN'S SERVICES,CASTLE HOMES LIMITED,"17,046.30",RESIDENTIAL,RESIDENTIAL CARE,2102753376,1000019388
04.12.2017,CHILDREN'S SERVICES,CAMBIAN CHILDCARE LTD,"14,357.10",RESIDENTIAL,RESIDENTIAL CARE,2102753377,1000075351
04.12.2017,CHILDREN'S SERVICES,KINGDOM CARE CHILDRENS HOMES LTD,"14,914.28",RESIDENTIAL,RESIDENTIAL CARE,2102753378,1000080146
04.12.2017,CHILDREN'S SERVICES,CASTLE HOMES LIMITED,"16,344.69",RESIDENTIAL,RESIDENTIAL CARE,2102753379,1000019388
04.12.2017,CHILDREN'S SERVICES,THE AMICUS COMMUNITY (ARUNDEL) LTD,"18,214.20",RESIDENTIAL,RESIDENTIAL CARE,2102753380,1000079012
04.12.2017,CHILDREN'S SERVICES,ESLAND SOUTH LTD,"28,928.57",RESIDENTIAL,RESIDENTIAL CARE,2102753381,1000074184
04.12.2017,CHILDREN'S SERVICES,THE DRIVE CARE HOMES LTD,"12,751.20",RESIDENTIAL,RESIDENTIAL CARE,2102753382,1000003889
04.12.2017,CHILDREN'S SERVICES,PLUS ONE LTD,"14,921.14",RESIDENTIAL,RESIDENTIAL CARE,2102753383,1000013874
04.12.2017,CHILDREN'S SERVICES,INMIND CHILDRENS SERVICES LTD,"31,928.70",RESIDENTIAL,RESIDENTIAL CARE,2102753384,1000078280
04.12.2017,CHILDREN'S SERVICES,SANKOFA CARE LTD,"18,000.00",RESIDENTIAL,RESIDENTIAL CARE,2102753385,1000030717
04.12.2017,CHILDREN'S SERVICES,CASTLE HOMES LIMITED,"15,121.07",RESIDENTIAL,RESIDENTIAL CARE,2102753386,1000019388
04.12.2017,CHILDREN'S SERVICES,THE DRIVE CARE HOMES LTD,"12,198.76",RESIDENTIAL,RESIDENTIAL CARE,2102753387,1000003889
04.12.2017,CHILDREN'S SERVICES,REDACTED PERSONAL DATA,346,SEMI INDEPENDENT,OTHER PAYMENTS FOR CLIENTS,2102753203,REDACTED
04.12.2017,COMMUNITIES,DEYNSFORD TENANT MANAGEMENT ORGANISATION,654.72,D'EYNSFORD ESTATE,M&M ALLOWANCE CO-OPS,5902280147,1000075613
04.12.2017,COMMUNITIES,FALCON POINT MANAGEMENT GROUP LTD,"3,268.00",FALCON POINT TMO,M&M ALLOWANCE CO-OPS,5902279344,11117573
04.12.2017,COMMUNITIES,SOUTH LONDON CARES LTD,"4,500.00",JOINT SECURITY INITIATIVES,GRANTS,5902279994,1000073924
04.12.2017,COMMUNITIES,ANDREW KING PHOTOGRAPHY,315,TENANTS FUND,MARKETING & PUBLICITY SERVICES,5902280073,1000076704
04.12.2017,CUSTOMER EXPERIENCE HGF,DIGNITY FUNERALS LTD,"12,475.00",CORONER'S,OTHER CONTRACTORS,5902279998,1000041373
04.12.2017,CUSTOMER EXPERIENCE HGF,CHARTERED INSTITUTE OF HOUSING,490,HOMELESS & HOUSING OPTIONS MGT,TRAINING,5902279144,1914585
04.12.2017,CUSTOMER EXPERIENCE HGF,CHARTERED INSTITUTE OF HOUSING,490,HOMELESS & HOUSING OPTIONS MGT,TRAINING,5902279145,1914585
04.12.2017,CUSTOMER EXPERIENCE HGF,CHARTERED INSTITUTE OF HOUSING,490,HOMELESS & HOUSING OPTIONS MGT,TRAINING,5902279146,1914585
04.12.2017,CUSTOMER EXPERIENCE HGF,CHARTERED INSTITUTE OF HOUSING,490,HOMELESS & HOUSING OPTIONS MGT,TRAINING,5902279148,1914585
04.12.2017,CUSTOMER EXPERIENCE HGF,CHARTERED INSTITUTE OF HOUSING,490,HOMELESS & HOUSING OPTIONS MGT,TRAINING,5902279149,1914585
04.12.2017,CUSTOMER EXPERIENCE HGF,FINEFAIR LTD,840,NIGHTLY TA (NSC),EXTERNAL AGENCIES AND BODIES,5902280074,1000075570
04.12.2017,CUSTOMER EXPERIENCE HGF,SOLACE WOMEN'S AID,"6,587.50",NIGHTLY TA (NSC),EXTERNAL AGENCIES AND BODIES,5902280090,1000057231
04.12.2017,CUSTOMER EXPERIENCE HGF,SOLACE WOMEN'S AID,"4,929.00",NIGHTLY TA (NSC),EXTERNAL AGENCIES AND BODIES,5902280150,1000057231
04.12.2017,CUSTOMER EXPERIENCE HGF,SOLACE WOMEN'S AID,"5,305.00",NIGHTLY TA (NSC),EXTERNAL AGENCIES AND BODIES,5902280162,1000057231
04.12.2017,ENVIRONMENT AND LEISURE,INTO SERVICES LONDON LTD,"1,180.00",CAPITAL PS (LEISURE),CONST'N MAIN CONTRACT - NON CERTIFICATED,5902280106,1000059328
04.12.2017,ENVIRONMENT AND LEISURE,FWDESIGN LTD,500,CAPITAL PS (LEISURE),CONSTRUCTION FEES  - EXTERNAL,5902280041,1000069629
04.12.2017,ENVIRONMENT AND LEISURE,THAMES WATER UTILITIES LTD,485,CAPITAL PS (LEISURE),CONSTRUCTION FEES  - EXTERNAL,5902280156,1000051868
04.12.2017,ENVIRONMENT AND SOCIAL REGENERATION,MALLATITE LTD,"12,750.00",STORES,CREDITORS -GR/IR CLEARING ACCOUNT,5902279924,1000080157
04.12.2017,ENVIRONMENT AND SOCIAL REGENERATION,A T & T (GB LTD ),"1,648.44",STORES,CREDITORS -GR/IR CLEARING ACCOUNT,5902280113,1000078342
04.12.2017,ENVIRONMENT AND SOCIAL REGENERATION,GLASDON UK LIMITED,"7,940.40",STORES,CREDITORS -GR/IR CLEARING ACCOUNT,5902280118,1024073
04.12.2017,ENVIRONMENT DIRECTORATE,PURPOSE POWDER COATINGS LTD,548.17,ENGINEERING CRAFTS,MATERIALS,5902280066,1000059450
04.12.2017,ENVIRONMENT DIRECTORATE,PURPOSE POWDER COATINGS LTD,"1,054.32",ENGINEERING CRAFTS,MATERIALS,5902280068,1000059450
04.12.2017,ENVIRONMENT DIRECTORATE,METCRAFT FINISHED PRODUCTS,640,ENGINEERING CRAFTS,MATERIALS,5902280069,1000078141
04.12.2017,ENVIRONMENT DIRECTORATE,D W WINDSOR LIMITED,"19,337.40",LIGHTING RECOVERABLE WORKS,SOUTHWARK DIRECT CHARGES,5902280096,1149856
04.12.2017,ENVIRONMENT DIRECTORATE,D W WINDSOR LIMITED,"3,139.40",LIGHTING RECOVERABLE WORKS,SOUTHWARK DIRECT CHARGES,5902280102,1149856
04.12.2017,ENVIRONMENT DIRECTORATE,CABLE TEST LTD,411,LIGHTING RECOVERABLE WORKS,SOUTHWARK DIRECT CHARGES,5902280124,1000079183
04.12.2017,ENVIRONMENT DIRECTORATE,CABLE TEST LTD,468.73,LIGHTING RECOVERABLE WORKS,SOUTHWARK DIRECT CHARGES,5902280125,1000079183
04.12.2017,ENVIRONMENT DIRECTORATE,CABLE TEST LTD,765,LIGHTING RECOVERABLE WORKS,SOUTHWARK DIRECT CHARGES,5902280126,1000079183
04.12.2017,ENVIRONMENT DIRECTORATE,BELL BRUSH COMPANY,272,MANAGEMENT TEAM,MATERIALS,5902279162,1259776
04.12.2017,ENVIRONMENT DIRECTORATE,BELL BRUSH COMPANY,340,MANAGEMENT TEAM,MATERIALS,5902279250,1259776
04.12.2017,ENVIRONMENT DIRECTORATE,FENLAND LEISURE PRODUCTS LTD,936.82,PARKS TECH UNIT (PREMISES),HIGHWAYS R&M,5902280086,1000074654
04.12.2017,ENVIRONMENT DIRECTORATE,GRAFTON MERCHANTING GB LTD,290.25,PUBLIC LIGHTING,EQUIPMENT PURCHASE & REPAIR,5902280019,11296147
04.12.2017,ENVIRONMENT DIRECTORATE,EDMUNDSON ELECTRICAL LTD,"4,596.87",PUBLIC LIGHTING,MATERIALS,5902280033,1000066568
04.12.2017,ENVIRONMENT DIRECTORATE,EDMUNDSON ELECTRICAL LTD,310.05,PUBLIC LIGHTING,MATERIALS,5902280040,1000066568
04.12.2017,ENVIRONMENT DIRECTORATE,EDMUNDSON ELECTRICAL LTD,861,PUBLIC LIGHTING,MATERIALS,5902280046,1000066568
04.12.2017,ENVIRONMENT DIRECTORATE,MARWOOD ELECTRICAL COMPANY LTD,"1,115.41",PUBLIC LIGHTING,MATERIALS,5902280092,1001874
04.12.2017,ENVIRONMENT DIRECTORATE,MARWOOD ELECTRICAL COMPANY LTD,541.52,PUBLIC LIGHTING,MATERIALS,5902280093,1001874
04.12.2017,ENVIRONMENT DIRECTORATE,COMMUNITY CYCLEWORKS,"1,930.00","ROAD SAFETY EDUCATION,TRAINING&PUBLICITY",PROFESSIONAL FEES,5902279671,1000073000
04.12.2017,ENVIRONMENT DIRECTORATE,JULIE ANDERSON,650,"ROAD SAFETY EDUCATION,TRAINING&PUBLICITY",PROFESSIONAL FEES,5902280149,1000064767
04.12.2017,ENVIRONMENT DIRECTORATE,SPANDEX LTD,840.4,SIGN SHOP,MATERIALS,5902280094,1015608
04.12.2017,ENVIRONMENT DIRECTORATE,REDFORD CHARLES LTD,650,SPECIAL PROJECTS,TRAINING,5902280088,1000060421
04.12.2017,ENVIRONMENT DIRECTORATE,REDFORD CHARLES LTD,850,SPECIAL PROJECTS,TRAINING,5902280088,1000060421
04.12.2017,ENVIRONMENT DIRECTORATE,SOUTHWARK NEWSPAPER LTD,276,STREET WORKS OVERHEADS,MARKETING & PUBLICITY SERVICES,5902280085,1556957
04.12.2017,ENVIRONMENT DIRECTORATE,SOUTHWARK NEWSPAPER LTD,348,STREET WORKS OVERHEADS,MARKETING & PUBLICITY SERVICES,5902280099,1556957
04.12.2017,ENVIRONMENT DIRECTORATE,SOUTHWARK NEWSPAPER LTD,300,STREET WORKS OVERHEADS,MARKETING & PUBLICITY SERVICES,5902280100,1556957
04.12.2017,ENVIRONMENT DIRECTORATE,SOUTHWARK NEWSPAPER LTD,300,STREET WORKS OVERHEADS,MARKETING & PUBLICITY SERVICES,5902280101,1556957
04.12.2017,ENVIRONMENT DIRECTORATE,SOUTHWARK NEWSPAPER LTD,348,STREET WORKS OVERHEADS,MARKETING & PUBLICITY SERVICES,5902280120,1556957
04.12.2017,ENVIRONMENT DIRECTORATE,SOUTHWARK NEWSPAPER LTD,336,STREET WORKS OVERHEADS,MARKETING & PUBLICITY SERVICES,5902280121,1556957
04.12.2017,F & C S EXCLUDING CORPORATE BUDGETS,GOVNET COMMUNICATIONS,395,FINANCE DIRECTOR,TRAINING,5902280166,1000050132
04.12.2017,F & C S EXCLUDING CORPORATE BUDGETS,BDO LLP,"21,617.88",INTERNAL AUDIT CONTRACTS,PAYMENTS FOR FINANCIAL SERVICES,5902279213,1000057898
04.12.2017,F & C S EXCLUDING CORPORATE BUDGETS,LONDON METROPOLITAN UNIVERSITY,277,PROFESSIONAL QUALIFICATIONS,TRAINING,5902280168,1000035367
04.12.2017,HOUSING HRA,CALFORD SEADEN LLP,"1,629.04",CAPITAL PS (HRA),CONSTRUCTION FEES  - EXTERNAL,5902280006,1061592
04.12.2017,HOUSING HRA,MONTAGU EVANS LLP,"5,000.00",CAPITAL PS (HRA),CONSTRUCTION FEES  - EXTERNAL,5902280080,1000073283
04.12.2017,HOUSING HRA,CALFORD SEADEN LLP,"4,837.92",CAPITAL PS (HRA),CONSTRUCTION FEES  - EXTERNAL,5902280089,1061592
04.12.2017,HOUSING HRA,KEEPMOAT REGENERATION (APOLLO) LTD,"264,447.08",CAPITAL PS (HRA),CONSTRUCTION MAIN CONTRACT -CERTIFICATED,2102753301,4000449
04.12.2017,HOUSING HRA,KEEPMOAT REGENERATION (APOLLO) LTD,"328,936.72",CAPITAL PS (HRA),CONSTRUCTION MAIN CONTRACT -CERTIFICATED,2102753302,4000449
04.12.2017,HOUSING HRA,STANDAGE & CO LTD,"111,522.61",CAPITAL PS (HRA),CONSTRUCTION MAIN CONTRACT -CERTIFICATED,2102753341,4002817
04.12.2017,HOUSING HRA,KEEPMOAT REGENERATION (APOLLO) LTD,"107,728.83",CAPITAL PS (HRA),CONSTRUCTION MAIN CONTRACT -CERTIFICATED,2102753342,4000449
04.12.2017,HOUSING HRA,STANDAGE & CO LTD,"33,738.64",CAPITAL PS (HRA),CONSTRUCTION MAIN CONTRACT -CERTIFICATED,2102753784,4002817
04.12.2017,HOUSING HRA,A & E ELKINS LTD,"389,942.46",CAPITAL PS (HRA),CONSTRUCTION MAIN CONTRACT -CERTIFICATED,2102753785,4012501
04.12.2017,HOUSING HRA,SALTASH ENTERPRISES LTD,"100,167.20",CAPITAL PS (HRA),CONSTRUCTION MAIN CONTRACT -CERTIFICATED,2102753788,4013605
04.12.2017,LEISURE DIRECTORATE,PHS GROUP PLC,488.64,BURGESS SPORTS CENTRE,OTHER R&M,5902280143,1851993
04.12.2017,LEISURE DIRECTORATE,SOUTHWARK MEDIATION CENTRE,950,LIBARIES DEVELOPMENT,TRAINING,5902280098,1980301
04.12.2017,MODERNISATION HGF,SHERRIDAN HUGHES,"1,900.00",OCCUPATIONAL ASSESSMENT,CONSULTANTS SERVICES,5902279802,1000074250
04.12.2017,MODERNISATION HGF,KENT COUNTY COUNCIL - LASER,"6,445.99",QUEENS RD 1 (BLOCK F),ELECTRICITY,5902279938,1000012926
04.12.2017,REGENERATION,NPOWER LTD,"1,341.49",5/5A WESTMINSTER BRIDGE ROAD.,ELECTRICITY,5902280052,1000078994
04.12.2017,REGENERATION,NPOWER LTD,"-1,607.78",5/5A WESTMINSTER BRIDGE ROAD.,ELECTRICITY,5902280059,1000078994
04.12.2017,REGENERATION,BRITISH GAS BUSINESS,855.05,5/5A WESTMINSTER BRIDGE ROAD.,GAS,5902280016,1000054825
04.12.2017,REGENERATION,MONTAGU EVANS LLP,"4,000.00",CPHA SURPLUS,PROFESSIONAL FEES,5902280062,1000073283
04.12.2017,REGENERATION,RICS,519,DIRECTORS OFFICE,SUBSCRIPTIONS,5902279153,1000078821
04.12.2017,REGENERATION,EDF ENERGY PLC,383.5,KENNINGTON WORKSHOPS,ELECTRICITY,5902280170,1008746
04.12.2017,REGENERATION,INITIAL WASHROOM SOLUTIONS,"1,661.92",KENNINGTON WORKSHOPS,PREMISES CLEANING,5902280013,1644695
04.12.2017,REGENERATION,CASTLE WATER LTD,483.23,KENNINGTON WORKSHOPS,WATER,5902280009,1000078867
04.12.2017,REGENERATION,KENT COUNTY COUNCIL - LASER,266.45,LBS SOJOURNER TRUTH COMMUNITY CENTRE,GAS,5902280129,1000012926
04.12.2017,REGENERATION,CASTLE WATER LTD,"1,135.48",LBS SOJOURNER TRUTH COMMUNITY CENTRE,WATER,5902280131,1000078867
04.12.2017,REGENERATION,CASTLE WATER LTD,"1,753.54",LBS SOJOURNER TRUTH COMMUNITY CENTRE,WATER,5902280131,1000078867
04.12.2017,REGENERATION,RICS,"7,343.00",PROPERTY SERVICES,SUBSCRIPTIONS,5902279153,1000078821
04.12.2017,REGENERATION,RICS,"1,038.00",REGENERATION NORTH - M & A,SUBSCRIPTIONS,5902279153,1000078821
04.12.2017,REGENERATION,RICS,"1,038.00",REGENERATION SOUTH - M & A,SUBSCRIPTIONS,5902279153,1000078821
04.12.2017,REGENERATION,CHUBB FIRE LIMITED,303.76,TOWER WORKSHOPS,BUILDING R&M,5902280172,1000006333
04.12.2017,REGENERATION,KENT COUNTY COUNCIL - LASER,"1,181.72",TOWER WORKSHOPS,ELECTRICITY,5902280000,1000012926
04.12.2017,REGENERATION,KENT COUNTY COUNCIL - LASER,"1,237.70",TOWER WORKSHOPS,ELECTRICITY,5902280002,1000012926
04.12.2017,REGENERATION,KENT COUNTY COUNCIL - LASER,"1,307.20",TOWER WORKSHOPS,ELECTRICITY,5902280004,1000012926
04.12.2017,REGENERATION,KENT COUNTY COUNCIL - LASER,"1,135.80",TOWER WORKSHOPS,ELECTRICITY,5902280005,1000012926
04.12.2017,REGENERATION,KENT COUNTY COUNCIL - LASER,"1,121.14",TOWER WORKSHOPS,ELECTRICITY,5902280007,1000012926
04.12.2017,REGENERATION,KENT COUNTY COUNCIL - LASER,887.85,TOWER WORKSHOPS,ELECTRICITY,5902280054,1000012926
04.12.2017,REGENERATION,KENT COUNTY COUNCIL - LASER,"1,011.55",TOWER WORKSHOPS,ELECTRICITY,5902280076,1000012926
04.12.2017,REGENERATION,KENT COUNTY COUNCIL - LASER,953.76,TOWER WORKSHOPS,ELECTRICITY,5902280079,1000012926
04.12.2017,REGENERATION,KENT COUNTY COUNCIL - LASER,860.14,TOWER WORKSHOPS,ELECTRICITY,5902280081,1000012926
04.12.2017,REGENERATION,KENT COUNTY COUNCIL - LASER,848.7,TOWER WORKSHOPS,ELECTRICITY,5902280087,1000012926
04.12.2017,REGENERATION,BYWATERS (LEYTON) LTD,463,TOWER WORKSHOPS,REFUSE COLLECTION CONTRACT,5902280132,1822101
04.12.2017,REGENERATION,EDF ENERGY PLC,382.96,VCS MANAGED MSC BUILDILNGS,ELECTRICITY,5902280058,1008746
04.12.2017,REGENERATION,EDF ENERGY PLC,325.54,VCS MANAGED MSC BUILDILNGS,ELECTRICITY,5902280060,1008746
04.12.2017,SOUTHWARK BUILDING SERVICES,BUDMAX CONSTRUCTION LTD,"20,867.70",BUSINESS SUPPORT,OTHER CONTRACTORS,2102753343,3000001936
04.12.2017,SOUTHWARK BUILDING SERVICES,BRIDGEWATER ROOFING CONTRACTORS LTD,"22,577.00",BUSINESS SUPPORT,OTHER CONTRACTORS,2102753344,3000001482
04.12.2017,SOUTHWARK BUILDING SERVICES,ALLIED REMEDIAL TREATMENTS LTD,"1,581.42",BUSINESS SUPPORT,OTHER CONTRACTORS,2102753345,4000538
04.12.2017,SOUTHWARK BUILDING SERVICES,E & E BUILDING SERVICES LTD,"8,122.22",BUSINESS SUPPORT,OTHER CONTRACTORS,2102753346,3000001176
04.12.2017,SOUTHWARK BUILDING SERVICES,FRANKLYN SHAW ASSOCIATES LTD,"10,862.29",BUSINESS SUPPORT,OTHER CONTRACTORS,2102753521,3000001465
04.12.2017,SOUTHWARK BUILDING SERVICES,FRANKLYN SHAW ASSOCIATES LTD,"2,281.70",BUSINESS SUPPORT,OTHER CONTRACTORS,2102753779,3000001465
04.12.2017,SOUTHWARK BUILDING SERVICES,BUDMAX CONSTRUCTION LTD,822.07,BUSINESS SUPPORT,OTHER CONTRACTORS,2102753782,3000001936
04.12.2017,SOUTHWARK BUILDING SERVICES,BRIDGEWATER ROOFING CONTRACTORS LTD,"12,446.44",BUSINESS SUPPORT,OTHER CONTRACTORS,2102753783,3000001482
05.12.2017,ADULT SOCIAL CARE,NATIONAL AUTISTIC SOCIETY CARE PACK,"3,656.94",LD LTS 18-64,DAYCARE,2102754152,1000020538
05.12.2017,ADULT SOCIAL CARE,THE NEW SHOOTS,375,LD LTS 18-64,DAYCARE,2102754153,1000073970
05.12.2017,ADULT SOCIAL CARE,LONDON CARE LTD,455.21,LD LTS 18-64,HOMECARE - C&V,2102754090,1000003398
05.12.2017,ADULT SOCIAL CARE,CARE O LINE,852.5,LD LTS 18-64,HOMECARE - SPOT,2102754154,11241743
05.12.2017,ADULT SOCIAL CARE,CARE O LINE,990,LD LTS 18-64,HOMECARE - SPOT,2102754155,11241743
05.12.2017,ADULT SOCIAL CARE,CARE O LINE,990,LD LTS 18-64,HOMECARE - SPOT,2102754157,11241743
05.12.2017,ADULT SOCIAL CARE,CARE O LINE,990,LD LTS 18-64,HOMECARE - SPOT,2102754158,11241743
05.12.2017,ADULT SOCIAL CARE,CARE O LINE,990,LD LTS 18-64,HOMECARE - SPOT,2102754159,11241743
05.12.2017,ADULT SOCIAL CARE,CARE O LINE,990,LD LTS 18-64,HOMECARE - SPOT,2102754160,11241743
05.12.2017,ADULT SOCIAL CARE,CARE O LINE,990,LD LTS 18-64,HOMECARE - SPOT,2102754161,11241743
05.12.2017,ADULT SOCIAL CARE,CARE O LINE,990,LD LTS 18-64,HOMECARE - SPOT,2102754162,11241743
05.12.2017,ADULT SOCIAL CARE,CARE O LINE,990,LD LTS 18-64,HOMECARE - SPOT,2102754163,11241743
05.12.2017,ADULT SOCIAL CARE,CARE O LINE,990,LD LTS 18-64,HOMECARE - SPOT,2102754166,11241743
05.12.2017,ADULT SOCIAL CARE,LONDON CARE LTD,840.92,MEM LTS 18-64,HOMECARE - C&V,2102754071,1000003398
05.12.2017,ADULT SOCIAL CARE,LONDON CARE LTD,"1,059.52",MEM LTS 65+,HOMECARE - C&V,2102753841,1000003398
05.12.2017,ADULT SOCIAL CARE,LONDON CARE LTD,639.08,MEM LTS 65+,HOMECARE - C&V,2102753858,1000003398
05.12.2017,ADULT SOCIAL CARE,LONDON CARE LTD,"2,333.22",MEM LTS 65+,HOMECARE - C&V,2102753859,1000003398
05.12.2017,ADULT SOCIAL CARE,LONDON CARE LTD,"1,290.68",MEM LTS 65+,HOMECARE - C&V,2102753981,1000003398
05.12.2017,ADULT SOCIAL CARE,LONDON CARE LTD,521.38,MEM LTS 65+,HOMECARE - C&V,2102753990,1000003398
05.12.2017,ADULT SOCIAL CARE,LONDON CARE LTD,"1,244.36",MEM LTS 65+,HOMECARE - C&V,2102754056,1000003398
05.12.2017,ADULT SOCIAL CARE,LONDON CARE LTD,537.96,MH LTS 18-64,HOMECARE - C&V,2102754078,1000003398
05.12.2017,ADULT SOCIAL CARE,LONDON CARE LTD,601.15,MH LTS 65+,HOMECARE - C&V,2102753971,1000003398
05.12.2017,ADULT SOCIAL CARE,LONDON CARE LTD,588.56,MH LTS 65+,HOMECARE - C&V,2102754026,1000003398
05.12.2017,ADULT SOCIAL CARE,LONDON CARE LTD,941.64,MH LTS 65+,HOMECARE - C&V,2102754080,1000003398
05.12.2017,ADULT SOCIAL CARE,LONDON CARE LTD,861.67,PHY LTS 18-64,HOMECARE - C&V,2102753857,1000003398
05.12.2017,ADULT SOCIAL CARE,LONDON CARE LTD,891.18,PHY LTS 18-64,HOMECARE - C&V,2102753866,1000003398
05.12.2017,ADULT SOCIAL CARE,LONDON CARE LTD,"1,370.36",PHY LTS 18-64,HOMECARE - C&V,2102753867,1000003398
05.12.2017,ADULT SOCIAL CARE,LONDON CARE LTD,292.52,PHY LTS 18-64,HOMECARE - C&V,2102753872,1000003398
05.12.2017,ADULT SOCIAL CARE,LONDON CARE LTD,807.2,PHY LTS 18-64,HOMECARE - C&V,2102753873,1000003398
05.12.2017,ADULT SOCIAL CARE,LONDON CARE LTD,928.99,PHY LTS 18-64,HOMECARE - C&V,2102753895,1000003398
05.12.2017,ADULT SOCIAL CARE,LONDON CARE LTD,908.01,PHY LTS 18-64,HOMECARE - C&V,2102753911,1000003398
05.12.2017,ADULT SOCIAL CARE,LONDON CARE LTD,676.83,PHY LTS 18-64,HOMECARE - C&V,2102753913,1000003398
05.12.2017,ADULT SOCIAL CARE,LONDON CARE LTD,529.83,PHY LTS 18-64,HOMECARE - C&V,2102753919,1000003398
05.12.2017,ADULT SOCIAL CARE,LONDON CARE LTD,929.03,PHY LTS 18-64,HOMECARE - C&V,2102753948,1000003398
05.12.2017,ADULT SOCIAL CARE,LONDON CARE LTD,353.08,PHY LTS 18-64,HOMECARE - C&V,2102753950,1000003398
05.12.2017,ADULT SOCIAL CARE,LONDON CARE LTD,521.2,PHY LTS 18-64,HOMECARE - C&V,2102753960,1000003398
05.12.2017,ADULT SOCIAL CARE,LONDON CARE LTD,866.06,PHY LTS 18-64,HOMECARE - C&V,2102753962,1000003398
05.12.2017,ADULT SOCIAL CARE,LONDON CARE LTD,462.34,PHY LTS 18-64,HOMECARE - C&V,2102753965,1000003398
05.12.2017,ADULT SOCIAL CARE,LONDON CARE LTD,987.68,PHY LTS 18-64,HOMECARE - C&V,2102753977,1000003398
05.12.2017,ADULT SOCIAL CARE,LONDON CARE LTD,458.1,PHY LTS 18-64,HOMECARE - C&V,2102753980,1000003398
05.12.2017,ADULT SOCIAL CARE,LONDON CARE LTD,659.91,PHY LTS 18-64,HOMECARE - C&V,2102753986,1000003398
05.12.2017,ADULT SOCIAL CARE,LONDON CARE LTD,"1,496.24",PHY LTS 18-64,HOMECARE - C&V,2102754000,1000003398
05.12.2017,ADULT SOCIAL CARE,LONDON CARE LTD,958.52,PHY LTS 18-64,HOMECARE - C&V,2102754005,1000003398
05.12.2017,ADULT SOCIAL CARE,LONDON CARE LTD,"2,202.86",PHY LTS 18-64,HOMECARE - C&V,2102754012,1000003398
05.12.2017,ADULT SOCIAL CARE,LONDON CARE LTD,529.71,PHY LTS 18-64,HOMECARE - C&V,2102754015,1000003398
05.12.2017,ADULT SOCIAL CARE,LONDON CARE LTD,899.79,PHY LTS 18-64,HOMECARE - C&V,2102754022,1000003398
05.12.2017,ADULT SOCIAL CARE,LONDON CARE LTD,537.92,PHY LTS 18-64,HOMECARE - C&V,2102754042,1000003398
05.12.2017,ADULT SOCIAL CARE,LONDON CARE LTD,554.88,PHY LTS 18-64,HOMECARE - C&V,2102754045,1000003398
05.12.2017,ADULT SOCIAL CARE,LONDON CARE LTD,596.87,PHY LTS 18-64,HOMECARE - C&V,2102754046,1000003398
05.12.2017,ADULT SOCIAL CARE,LONDON CARE LTD,815.39,PHY LTS 18-64,HOMECARE - C&V,2102754051,1000003398
05.12.2017,ADULT SOCIAL CARE,LONDON CARE LTD,"1,042.36",PHY LTS 18-64,HOMECARE - C&V,2102754069,1000003398
05.12.2017,ADULT SOCIAL CARE,LONDON CARE LTD,353.04,PHY LTS 18-64,HOMECARE - C&V,2102754075,1000003398
05.12.2017,ADULT SOCIAL CARE,LONDON CARE LTD,739.8,PHY LTS 18-64,HOMECARE - C&V,2102754077,1000003398
05.12.2017,ADULT SOCIAL CARE,CARE DIRECT UK LTD,641.24,PHY LTS 18-64,HOMECARE - C&V,2102754144,1000066322
05.12.2017,ADULT SOCIAL CARE,CONTACT PROFESSIONALS,931,PHY LTS 18-64,HOMECARE - SPOT,2102744441,1000057263
05.12.2017,ADULT SOCIAL CARE,LONDON CARE LTD,630.6,PHY LTS 18-64,HOMECARE - SPOT,2102753850,1000003398
05.12.2017,ADULT SOCIAL CARE,CARE DIRECT UK LTD,317.17,PHY LTS 18-64,HOMECARE - SPOT,2102754104,1000066322
05.12.2017,ADULT SOCIAL CARE,LONDON CARE LTD,739.64,PHY LTS 65+,HOMECARE - C&V,2102753837,1000003398
05.12.2017,ADULT SOCIAL CARE,LONDON CARE LTD,348.88,PHY LTS 65+,HOMECARE - C&V,2102753839,1000003398
05.12.2017,ADULT SOCIAL CARE,LONDON CARE LTD,"1,101.35",PHY LTS 65+,HOMECARE - C&V,2102753840,1000003398
05.12.2017,ADULT SOCIAL CARE,LONDON CARE LTD,723.04,PHY LTS 65+,HOMECARE - C&V,2102753842,1000003398
05.12.2017,ADULT SOCIAL CARE,LONDON CARE LTD,580.15,PHY LTS 65+,HOMECARE - C&V,2102753843,1000003398
05.12.2017,ADULT SOCIAL CARE,LONDON CARE LTD,"1,177.12",PHY LTS 65+,HOMECARE - C&V,2102753846,1000003398
05.12.2017,ADULT SOCIAL CARE,LONDON CARE LTD,840.84,PHY LTS 65+,HOMECARE - C&V,2102753849,1000003398
05.12.2017,ADULT SOCIAL CARE,LONDON CARE LTD,353.08,PHY LTS 65+,HOMECARE - C&V,2102753852,1000003398
05.12.2017,ADULT SOCIAL CARE,LONDON CARE LTD,941.92,PHY LTS 65+,HOMECARE - C&V,2102753853,1000003398
05.12.2017,ADULT SOCIAL CARE,LONDON CARE LTD,302.64,PHY LTS 65+,HOMECARE - C&V,2102753854,1000003398
05.12.2017,ADULT SOCIAL CARE,LONDON CARE LTD,285.8,PHY LTS 65+,HOMECARE - C&V,2102753855,1000003398
05.12.2017,ADULT SOCIAL CARE,LONDON CARE LTD,336.2,PHY LTS 65+,HOMECARE - C&V,2102753860,1000003398
05.12.2017,ADULT SOCIAL CARE,LONDON CARE LTD,907.26,PHY LTS 65+,HOMECARE - C&V,2102753861,1000003398
05.12.2017,ADULT SOCIAL CARE,LONDON CARE LTD,353.22,PHY LTS 65+,HOMECARE - C&V,2102753862,1000003398
05.12.2017,ADULT SOCIAL CARE,LONDON CARE LTD,"1,176.84",PHY LTS 65+,HOMECARE - C&V,2102753863,1000003398
05.12.2017,ADULT SOCIAL CARE,LONDON CARE LTD,821.29,PHY LTS 65+,HOMECARE - C&V,2102753864,1000003398
05.12.2017,ADULT SOCIAL CARE,LONDON CARE LTD,"1,412.32",PHY LTS 65+,HOMECARE - C&V,2102753865,1000003398
05.12.2017,ADULT SOCIAL CARE,LONDON CARE LTD,"1,412.40",PHY LTS 65+,HOMECARE - C&V,2102753869,1000003398
05.12.2017,ADULT SOCIAL CARE,LONDON CARE LTD,"1,109.76",PHY LTS 65+,HOMECARE - C&V,2102753870,1000003398
05.12.2017,ADULT SOCIAL CARE,LONDON CARE LTD,723.03,PHY LTS 65+,HOMECARE - C&V,2102753874,1000003398
05.12.2017,ADULT SOCIAL CARE,LONDON CARE LTD,546.52,PHY LTS 65+,HOMECARE - C&V,2102753881,1000003398
05.12.2017,ADULT SOCIAL CARE,LONDON CARE LTD,924.92,PHY LTS 65+,HOMECARE - C&V,2102753883,1000003398
05.12.2017,ADULT SOCIAL CARE,LONDON CARE LTD,336.2,PHY LTS 65+,HOMECARE - C&V,2102753891,1000003398
05.12.2017,ADULT SOCIAL CARE,LONDON CARE LTD,941.64,PHY LTS 65+,HOMECARE - C&V,2102753893,1000003398
05.12.2017,ADULT SOCIAL CARE,LONDON CARE LTD,336.4,PHY LTS 65+,HOMECARE - C&V,2102753897,1000003398
05.12.2017,ADULT SOCIAL CARE,LONDON CARE LTD,"1,210.76",PHY LTS 65+,HOMECARE - C&V,2102753899,1000003398
05.12.2017,ADULT SOCIAL CARE,LONDON CARE LTD,912.23,PHY LTS 65+,HOMECARE - C&V,2102753901,1000003398
05.12.2017,ADULT SOCIAL CARE,LONDON CARE LTD,984.32,PHY LTS 65+,HOMECARE - C&V,2102753903,1000003398
05.12.2017,ADULT SOCIAL CARE,LONDON CARE LTD,369.88,PHY LTS 65+,HOMECARE - C&V,2102753905,1000003398
05.12.2017,ADULT SOCIAL CARE,LONDON CARE LTD,941.64,PHY LTS 65+,HOMECARE - C&V,2102753907,1000003398
05.12.2017,ADULT SOCIAL CARE,LONDON CARE LTD,924.92,PHY LTS 65+,HOMECARE - C&V,2102753921,1000003398
05.12.2017,ADULT SOCIAL CARE,LONDON CARE LTD,277.53,PHY LTS 65+,HOMECARE - C&V,2102753923,1000003398
05.12.2017,ADULT SOCIAL CARE,LONDON CARE LTD,252.12,PHY LTS 65+,HOMECARE - C&V,2102753925,1000003398
05.12.2017,ADULT SOCIAL CARE,LONDON CARE LTD,"1,017.30",PHY LTS 65+,HOMECARE - C&V,2102753927,1000003398
05.12.2017,ADULT SOCIAL CARE,LONDON CARE LTD,702.01,PHY LTS 65+,HOMECARE - C&V,2102753929,1000003398
05.12.2017,ADULT SOCIAL CARE,LONDON CARE LTD,718.83,PHY LTS 65+,HOMECARE - C&V,2102753932,1000003398
05.12.2017,ADULT SOCIAL CARE,LONDON CARE LTD,756.68,PHY LTS 65+,HOMECARE - C&V,2102753933,1000003398
05.12.2017,ADULT SOCIAL CARE,LONDON CARE LTD,575.4,PHY LTS 65+,HOMECARE - C&V,2102753936,1000003398
05.12.2017,ADULT SOCIAL CARE,LONDON CARE LTD,769.27,PHY LTS 65+,HOMECARE - C&V,2102753940,1000003398
05.12.2017,ADULT SOCIAL CARE,LONDON CARE LTD,672.52,PHY LTS 65+,HOMECARE - C&V,2102753942,1000003398
05.12.2017,ADULT SOCIAL CARE,LONDON CARE LTD,"1,361.96",PHY LTS 65+,HOMECARE - C&V,2102753944,1000003398
05.12.2017,ADULT SOCIAL CARE,LONDON CARE LTD,835.36,PHY LTS 65+,HOMECARE - C&V,2102753946,1000003398
05.12.2017,ADULT SOCIAL CARE,LONDON CARE LTD,908.12,PHY LTS 65+,HOMECARE - C&V,2102753955,1000003398
05.12.2017,ADULT SOCIAL CARE,LONDON CARE LTD,588.56,PHY LTS 65+,HOMECARE - C&V,2102753956,1000003398
05.12.2017,ADULT SOCIAL CARE,LONDON CARE LTD,"1,088.00",PHY LTS 65+,HOMECARE - C&V,2102753958,1000003398
05.12.2017,ADULT SOCIAL CARE,LONDON CARE LTD,639,PHY LTS 65+,HOMECARE - C&V,2102753964,1000003398
05.12.2017,ADULT SOCIAL CARE,LONDON CARE LTD,"1,013.16",PHY LTS 65+,HOMECARE - C&V,2102753966,1000003398
05.12.2017,ADULT SOCIAL CARE,LONDON CARE LTD,336.24,PHY LTS 65+,HOMECARE - C&V,2102753967,1000003398
05.12.2017,ADULT SOCIAL CARE,LONDON CARE LTD,470.68,PHY LTS 65+,HOMECARE - C&V,2102753968,1000003398
05.12.2017,ADULT SOCIAL CARE,LONDON CARE LTD,"2,206.46",PHY LTS 65+,HOMECARE - C&V,2102753970,1000003398
05.12.2017,ADULT SOCIAL CARE,LONDON CARE LTD,807.04,PHY LTS 65+,HOMECARE - C&V,2102753973,1000003398
05.12.2017,ADULT SOCIAL CARE,LONDON CARE LTD,403.44,PHY LTS 65+,HOMECARE - C&V,2102753974,1000003398
05.12.2017,ADULT SOCIAL CARE,LONDON CARE LTD,706.16,PHY LTS 65+,HOMECARE - C&V,2102753975,1000003398
05.12.2017,ADULT SOCIAL CARE,LONDON CARE LTD,908.16,PHY LTS 65+,HOMECARE - C&V,2102753976,1000003398
05.12.2017,ADULT SOCIAL CARE,LONDON CARE LTD,706.16,PHY LTS 65+,HOMECARE - C&V,2102753978,1000003398
05.12.2017,ADULT SOCIAL CARE,LONDON CARE LTD,"1,046.91",PHY LTS 65+,HOMECARE - C&V,2102753979,1000003398
05.12.2017,ADULT SOCIAL CARE,LONDON CARE LTD,807.16,PHY LTS 65+,HOMECARE - C&V,2102753983,1000003398
05.12.2017,ADULT SOCIAL CARE,LONDON CARE LTD,"1,378.84",PHY LTS 65+,HOMECARE - C&V,2102753984,1000003398
05.12.2017,ADULT SOCIAL CARE,LONDON CARE LTD,706.16,PHY LTS 65+,HOMECARE - C&V,2102753985,1000003398
05.12.2017,ADULT SOCIAL CARE,LONDON CARE LTD,975.32,PHY LTS 65+,HOMECARE - C&V,2102753988,1000003398
05.12.2017,ADULT SOCIAL CARE,LONDON CARE LTD,823.76,PHY LTS 65+,HOMECARE - C&V,2102753989,1000003398
05.12.2017,ADULT SOCIAL CARE,LONDON CARE LTD,"2,454.56",PHY LTS 65+,HOMECARE - C&V,2102753991,1000003398
05.12.2017,ADULT SOCIAL CARE,LONDON CARE LTD,563.42,PHY LTS 65+,HOMECARE - C&V,2102753994,1000003398
05.12.2017,ADULT SOCIAL CARE,LONDON CARE LTD,941.36,PHY LTS 65+,HOMECARE - C&V,2102753996,1000003398
05.12.2017,ADULT SOCIAL CARE,LONDON CARE LTD,327.93,PHY LTS 65+,HOMECARE - C&V,2102753997,1000003398
05.12.2017,ADULT SOCIAL CARE,LONDON CARE LTD,"1,059.52",PHY LTS 65+,HOMECARE - C&V,2102753998,1000003398
05.12.2017,ADULT SOCIAL CARE,LONDON CARE LTD,840.64,PHY LTS 65+,HOMECARE - C&V,2102753999,1000003398
05.12.2017,ADULT SOCIAL CARE,LONDON CARE LTD,311.17,PHY LTS 65+,HOMECARE - C&V,2102754001,1000003398
05.12.2017,ADULT SOCIAL CARE,LONDON CARE LTD,475.13,PHY LTS 65+,HOMECARE - C&V,2102754002,1000003398
05.12.2017,ADULT SOCIAL CARE,LONDON CARE LTD,554.84,PHY LTS 65+,HOMECARE - C&V,2102754003,1000003398
05.12.2017,ADULT SOCIAL CARE,LONDON CARE LTD,"3,362.28",PHY LTS 65+,HOMECARE - C&V,2102754004,1000003398
05.12.2017,ADULT SOCIAL CARE,LONDON CARE LTD,"2,394.82",PHY LTS 65+,HOMECARE - C&V,2102754006,1000003398
05.12.2017,ADULT SOCIAL CARE,LONDON CARE LTD,807.01,PHY LTS 65+,HOMECARE - C&V,2102754007,1000003398
05.12.2017,ADULT SOCIAL CARE,LONDON CARE LTD,"1,269.56",PHY LTS 65+,HOMECARE - C&V,2102754009,1000003398
05.12.2017,ADULT SOCIAL CARE,LONDON CARE LTD,853.43,PHY LTS 65+,HOMECARE - C&V,2102754010,1000003398
05.12.2017,ADULT SOCIAL CARE,LONDON CARE LTD,537.92,PHY LTS 65+,HOMECARE - C&V,2102754013,1000003398
05.12.2017,ADULT SOCIAL CARE,LONDON CARE LTD,773.4,PHY LTS 65+,HOMECARE - C&V,2102754016,1000003398
05.12.2017,ADULT SOCIAL CARE,LONDON CARE LTD,"1,025.16",PHY LTS 65+,HOMECARE - C&V,2102754017,1000003398
05.12.2017,ADULT SOCIAL CARE,LONDON CARE LTD,348.88,PHY LTS 65+,HOMECARE - C&V,2102754018,1000003398
05.12.2017,ADULT SOCIAL CARE,LONDON CARE LTD,790.26,PHY LTS 65+,HOMECARE - C&V,2102754019,1000003398
05.12.2017,ADULT SOCIAL CARE,LONDON CARE LTD,983.65,PHY LTS 65+,HOMECARE - C&V,2102754021,1000003398
05.12.2017,ADULT SOCIAL CARE,LONDON CARE LTD,706.16,PHY LTS 65+,HOMECARE - C&V,2102754023,1000003398
05.12.2017,ADULT SOCIAL CARE,LONDON CARE LTD,"2,841.52",PHY LTS 65+,HOMECARE - C&V,2102754024,1000003398
05.12.2017,ADULT SOCIAL CARE,LONDON CARE LTD,882.87,PHY LTS 65+,HOMECARE - C&V,2102754025,1000003398
05.12.2017,ADULT SOCIAL CARE,LONDON CARE LTD,"2,824.64",PHY LTS 65+,HOMECARE - C&V,2102754030,1000003398
05.12.2017,ADULT SOCIAL CARE,LONDON CARE LTD,353.08,PHY LTS 65+,HOMECARE - C&V,2102754032,1000003398
05.12.2017,ADULT SOCIAL CARE,LONDON CARE LTD,504.3,PHY LTS 65+,HOMECARE - C&V,2102754034,1000003398
05.12.2017,ADULT SOCIAL CARE,LONDON CARE LTD,"2,118.48",PHY LTS 65+,HOMECARE - C&V,2102754035,1000003398
05.12.2017,ADULT SOCIAL CARE,LONDON CARE LTD,924.88,PHY LTS 65+,HOMECARE - C&V,2102754037,1000003398
05.12.2017,ADULT SOCIAL CARE,LONDON CARE LTD,"2,329.02",PHY LTS 65+,HOMECARE - C&V,2102754039,1000003398
05.12.2017,ADULT SOCIAL CARE,LONDON CARE LTD,588.64,PHY LTS 65+,HOMECARE - C&V,2102754040,1000003398
05.12.2017,ADULT SOCIAL CARE,LONDON CARE LTD,588.56,PHY LTS 65+,HOMECARE - C&V,2102754041,1000003398
05.12.2017,ADULT SOCIAL CARE,LONDON CARE LTD,512.8,PHY LTS 65+,HOMECARE - C&V,2102754048,1000003398
05.12.2017,ADULT SOCIAL CARE,LONDON CARE LTD,403.57,PHY LTS 65+,HOMECARE - C&V,2102754049,1000003398
05.12.2017,ADULT SOCIAL CARE,LONDON CARE LTD,"2,387.80",PHY LTS 65+,HOMECARE - C&V,2102754050,1000003398
05.12.2017,ADULT SOCIAL CARE,LONDON CARE LTD,323.72,PHY LTS 65+,HOMECARE - C&V,2102754052,1000003398
05.12.2017,ADULT SOCIAL CARE,LONDON CARE LTD,941.64,PHY LTS 65+,HOMECARE - C&V,2102754053,1000003398
05.12.2017,ADULT SOCIAL CARE,LONDON CARE LTD,706.36,PHY LTS 65+,HOMECARE - C&V,2102754054,1000003398
05.12.2017,ADULT SOCIAL CARE,LONDON CARE LTD,420.4,PHY LTS 65+,HOMECARE - C&V,2102754055,1000003398
05.12.2017,ADULT SOCIAL CARE,LONDON CARE LTD,605.16,PHY LTS 65+,HOMECARE - C&V,2102754058,1000003398
05.12.2017,ADULT SOCIAL CARE,LONDON CARE LTD,"2,102.21",PHY LTS 65+,HOMECARE - C&V,2102754059,1000003398
05.12.2017,ADULT SOCIAL CARE,LONDON CARE LTD,"3,122.89",PHY LTS 65+,HOMECARE - C&V,2102754061,1000003398
05.12.2017,ADULT SOCIAL CARE,LONDON CARE LTD,800.21,PHY LTS 65+,HOMECARE - C&V,2102754063,1000003398
05.12.2017,ADULT SOCIAL CARE,LONDON CARE LTD,"1,529.92",PHY LTS 65+,HOMECARE - C&V,2102754064,1000003398
05.12.2017,ADULT SOCIAL CARE,LONDON CARE LTD,"3,362.00",PHY LTS 65+,HOMECARE - C&V,2102754065,1000003398
05.12.2017,ADULT SOCIAL CARE,LONDON CARE LTD,"3,261.42",PHY LTS 65+,HOMECARE - C&V,2102754066,1000003398
05.12.2017,ADULT SOCIAL CARE,LONDON CARE LTD,311.05,PHY LTS 65+,HOMECARE - C&V,2102754067,1000003398
05.12.2017,ADULT SOCIAL CARE,LONDON CARE LTD,470.96,PHY LTS 65+,HOMECARE - C&V,2102754068,1000003398
05.12.2017,ADULT SOCIAL CARE,LONDON CARE LTD,941.64,PHY LTS 65+,HOMECARE - C&V,2102754070,1000003398
05.12.2017,ADULT SOCIAL CARE,LONDON CARE LTD,"3,228.50",PHY LTS 65+,HOMECARE - C&V,2102754072,1000003398
05.12.2017,ADULT SOCIAL CARE,LONDON CARE LTD,"2,118.48",PHY LTS 65+,HOMECARE - C&V,2102754073,1000003398
05.12.2017,ADULT SOCIAL CARE,LONDON CARE LTD,655.8,PHY LTS 65+,HOMECARE - C&V,2102754074,1000003398
05.12.2017,ADULT SOCIAL CARE,LONDON CARE LTD,659.85,PHY LTS 65+,HOMECARE - C&V,2102754079,1000003398
05.12.2017,ADULT SOCIAL CARE,LONDON CARE LTD,340.48,PHY LTS 65+,HOMECARE - C&V,2102754081,1000003398
05.12.2017,ADULT SOCIAL CARE,LONDON CARE LTD,521.38,PHY LTS 65+,HOMECARE - C&V,2102754083,1000003398
05.12.2017,ADULT SOCIAL CARE,LONDON CARE LTD,773.4,PHY LTS 65+,HOMECARE - C&V,2102754084,1000003398
05.12.2017,ADULT SOCIAL CARE,LONDON CARE LTD,916.51,PHY LTS 65+,HOMECARE - C&V,2102754085,1000003398
05.12.2017,ADULT SOCIAL CARE,LONDON CARE LTD,"1,109.95",PHY LTS 65+,HOMECARE - C&V,2102754087,1000003398
05.12.2017,ADULT SOCIAL CARE,LONDON CARE LTD,"1,378.60",PHY LTS 65+,HOMECARE - C&V,2102754089,1000003398
05.12.2017,ADULT SOCIAL CARE,LONDON CARE LTD,588.36,PHY LTS 65+,HOMECARE - SPOT,2102753856,1000003398
05.12.2017,ADULT SOCIAL CARE,LONDON CARE LTD,269.08,PHY LTS 65+,HOMECARE - SPOT,2102753915,1000003398
05.12.2017,ADULT SOCIAL CARE,LONDON CARE LTD,537.92,PHY LTS 65+,HOMECARE - SPOT,2102754033,1000003398
05.12.2017,ADULT SOCIAL CARE,CARE DIRECT UK LTD,268.91,PHY LTS 65+,HOMECARE - SPOT,2102754093,1000066322
05.12.2017,ADULT SOCIAL CARE,CARE DIRECT UK LTD,475.76,PHY LTS 65+,HOMECARE - SPOT,2102754096,1000066322
05.12.2017,ADULT SOCIAL CARE,CARE DIRECT UK LTD,689.5,PHY LTS 65+,HOMECARE - SPOT,2102754108,1000066322
05.12.2017,ADULT SOCIAL CARE,LIFECARE CONSULTING LTD,443.25,PHY LTS 65+,HOMECARE - SPOT,2102754115,1000061613
05.12.2017,ADULT SOCIAL CARE,CARE DIRECT UK LTD,337.86,PHY LTS 65+,HOMECARE - SPOT,2102754118,1000066322
05.12.2017,ADULT SOCIAL CARE,LIFECARE CONSULTING LTD,"2,220.20",PHY LTS 65+,HOMECARE - SPOT,2102754125,1000061613
05.12.2017,ADULT SOCIAL CARE,CARE DIRECT UK LTD,289.59,PHY LTS 65+,HOMECARE - SPOT,2102754128,1000066322
05.12.2017,ADULT SOCIAL CARE,CARE DIRECT UK LTD,530.92,PHY LTS 65+,HOMECARE - SPOT,2102754129,1000066322
05.12.2017,ADULT SOCIAL CARE,CARE DIRECT UK LTD,265.46,PHY LTS 65+,HOMECARE - SPOT,2102754150,1000066322
05.12.2017,ADULT SOCIAL CARE,HAS TECHNOLOGY LTD,"11,824.80",REABLEMENT SERVICE,SOFTWARE,5902280197,1000079687
05.12.2017,ADULT SOCIAL CARE,LONDON CARE LTD,357.88,SOCIAL ISOLATION,HOMECARE - C&V,2102753931,1000003398
05.12.2017,ADULT SOCIAL CARE,LONDON CARE LTD,327.86,SOCIAL ISOLATION,HOMECARE - C&V,2102753982,1000003398
05.12.2017,ADULT SOCIAL CARE,LONDON CARE LTD,899.69,SOCIAL ISOLATION,HOMECARE - C&V,2102754027,1000003398
05.12.2017,ADULT SOCIAL CARE,LONDON CARE LTD,781.99,SOCIAL ISOLATION,HOMECARE - C&V,2102754044,1000003398
05.12.2017,ADULT SOCIAL CARE,LONDON CARE LTD,353.08,SOCIAL ISOLATION,HOMECARE - C&V,2102754082,1000003398
05.12.2017,ADULT SOCIAL CARE,LONDON CARE LTD,441.35,SOCIAL ISOLATION,HOMECARE - C&V,2102754088,1000003398
05.12.2017,ADULT SOCIAL CARE,LONDON CARE LTD,"2,143.53",SOCIAL ISOLATION,HOMECARE - SPOT,2102753871,1000003398
05.12.2017,ADULT SOCIAL CARE,CARE DIRECT UK LTD,268.91,SOCIAL ISOLATION,HOMECARE - SPOT,2102754107,1000066322
05.12.2017,ADULT SOCIAL CARE,HS WALSH & SONS LTD,467.5,SOUTHWARK RESOURCE CENTRE,EQUIPMENT PURCHASE & REPAIR,5902280281,1000072561
05.12.2017,ADULT SOCIAL CARE,CASTLE WATER LTD,405.99,SOUTHWARK RESOURCE CENTRE,WATER,5902280279,1000078867
05.12.2017,ADULT SOCIAL CARE,CASTLE WATER LTD,"1,057.63",SOUTHWARK RESOURCE CENTRE,WATER,5902280279,1000078867
05.12.2017,ADULT SOCIAL CARE,THE PROVIDENCE PROJECTS REHAB GROUP,"2,475.57",SUB LTS 18-64,PLACEMENTS - REHAB,2102754164,1000032991
05.12.2017,ADULT SOCIAL CARE,KAIROS COMMUNITY TRUST,"4,800.00",SUB LTS 18-64,PLACEMENTS - REHAB,2102754165,1000025479
05.12.2017,ADULT SOCIAL CARE,LONDON CARE LTD,924.92,SUB LTS 65+,HOMECARE - C&V,2102753844,1000003398
05.12.2017,ADULT SOCIAL CARE,NESTOR PRIMECARE SERVICES LTD,"4,127.76",TRANSFORMING COM E,HOMECARE - C&V,5902280205,11098703
05.12.2017,ADULT SOCIAL CARE,NESTOR PRIMECARE SERVICES LTD,"52,284.96",TRANSFORMING COM E,HOMECARE - C&V,5902280206,11098703
05.12.2017,ADULT SOCIAL CARE,NESTOR PRIMECARE SERVICES LTD,418.4,TRANSFORMING COM E,HOMECARE - C&V,5902280208,11098703
05.12.2017,ADULT SOCIAL CARE,NESTOR PRIMECARE SERVICES LTD,"1,797.60",TRANSFORMING COM E,HOMECARE - C&V,5902280208,11098703
05.12.2017,ADULT SOCIAL CARE,NESTOR PRIMECARE SERVICES LTD,"29,131.20",TRANSFORMING COM E,HOMECARE - C&V,5902280208,11098703
05.12.2017,ADULT SOCIAL CARE,CONTACT PROFESSIONALS,"3,317.00",TRANSITION 14 - 18 YEARS,SECTION 17 PAYMENTS TO AGENCIES/CARERS,2102745702,1000057263
05.12.2017,ADULT SOCIAL CARE,CONTACT PROFESSIONALS,722,TRANSITION 14 - 18 YEARS,SECTION 17 PAYMENTS TO AGENCIES/CARERS,2102745714,1000057263
05.12.2017,ADULT SOCIAL CARE,CONTACT PROFESSIONALS,"1,368.00",TRANSITION 14 - 18 YEARS,SECTION 17 PAYMENTS TO AGENCIES/CARERS,5902278899,1000057263
05.12.2017,ADULT SOCIAL CARE,CONTACT PROFESSIONALS,931,TRANSITION 14 - 18 YEARS,SECTION 17 PAYMENTS TO AGENCIES/CARERS,5902279131,1000057263
05.12.2017,ASSET MANAGEMENT,METRO DIGITAL TELEVISION LTD,802.5,ENG CONTRACTS (NORTH),TV AERIALS R&M,5902280274,1000070713
05.12.2017,ASSET MANAGEMENT,METRO DIGITAL TELEVISION LTD,600,ENG CONTRACTS (NORTH),TV AERIALS R&M,5902280280,1000070713
05.12.2017,ASSET MANAGEMENT,SALTASH ENTERPRISES LTD,"82,735.76",MAJOR REPAIRS,PAYMENTS FOR LEGAL SERVICES,2102754256,4013605
05.12.2017,CHIEF EXECUTIVE,CONWAY AECOM LTD,"53,087.08",CAPITAL PS (REGEN),CONSTR'N SUB CONTRACT - NON CERTIFICATED,2102754217,3000001595
05.12.2017,CHIEF EXECUTIVE,CONWAY AECOM LTD,"36,638.55",CAPITAL PS (REGEN),CONSTR'N SUB CONTRACT - NON CERTIFICATED,2102754226,3000001595
05.12.2017,CHIEF EXECUTIVE,NETWORK RAIL INFRASTRUCTURE LTD,"3,780.62",CAPITAL PS (REGEN),CONSTR'N SUB CONTRACT - NON CERTIFICATED,5902280182,1000053596
05.12.2017,CHIEF EXECUTIVE,CBS MAINTENANCE SERVICES LTD,"43,804.98",CAPITAL PS (REGEN),CONSTRUCTION FEES - ENGINEER,2102754216,3000001518
05.12.2017,CHIEF EXECUTIVE,TRACSIS TRAFFIC DATA LTD,275,CAPITAL PS (REGEN),CONSTRUCTION MAIN CONTRACT,5902280180,1000079382
05.12.2017,CHIEF EXECUTIVE'S OFFICE,PTP TRAINING & MARKETING LTD,"1,170.00",CHIEF EXEC'S OFFICE,TRAINING,5902280247,1000054441
05.12.2017,CHILDREN AND ADULT,MORGAN SINDALL PLC,"142,832.50",CAPITAL PS (EDUCATION),CONST'N MAIN CONTRACT - NON CERTIFICATED,2102754252,3000001556
05.12.2017,CHILDREN AND ADULT,GLEEDS ADVISORY LTD,500,CAPITAL PS (EDUCATION),CONSTRUCTION FEES  - EXTERNAL,5902280191,1000076155
05.12.2017,CHILDREN AND ADULT,GLEEDS ADVISORY LTD,500,CAPITAL PS (EDUCATION),CONSTRUCTION FEES  - EXTERNAL,5902280201,1000076155
05.12.2017,CHILDREN AND ADULT,STANDAGE & CO LTD,"2,533.78",CAPITAL PS (EDUCATION),CONSTRUCTION MAIN CONTRACT,2102754257,4002817
05.12.2017,CHILDREN AND ADULT,GALLIFORD TRY LTD,"22,611.09",CAPITAL PS (EDUCATION),CONSTRUCTION MAIN CONTRACT -CERTIFICATED,2102754241,3000000525
05.12.2017,CHILDREN AND ADULT,MORGAN SINDALL PLC,"29,867.75",CAPITAL PS (EDUCATION),CONSTRUCTION MAIN CONTRACT -CERTIFICATED,2102754249,3000001556
05.12.2017,CHILDREN AND ADULT,MORGAN SINDALL PLC,"495,046.87",CAPITAL PS (EDUCATION),CONSTRUCTION MAIN CONTRACT -CERTIFICATED,2102754250,3000001556
05.12.2017,CHILDREN AND ADULT,MORGAN SINDALL PLC,"236,043.32",CAPITAL PS (EDUCATION),CONSTRUCTION MAIN CONTRACT -CERTIFICATED,2102754251,3000001556
05.12.2017,CHILDREN AND ADULT,STONEGROVE LIMITED,"14,905.88",CAPITAL PS (EDUCATION),CONSTRUCTION MAIN CONTRACT -CERTIFICATED,2102754258,3000001525
05.12.2017,CHILDREN AND ADULT,STONEGROVE LIMITED,"20,094.40",CAPITAL PS (EDUCATION),CONSTRUCTION MAIN CONTRACT -CERTIFICATED,2102754258,3000001525
05.12.2017,CHILDREN AND ADULT,HAS TECHNOLOGY LTD,"12,291.00",CAPITAL PS (STRAT SERV),ICT ACQUISITION FEES,5902280197,1000079687
05.12.2017,CHILDREN'S SERVICES,PETE CRONIN PHOTOGRAPHY & VIDEO,775,ADOPTION PLACEMENTS & INTER AGENCY,EXTERNAL AGENCIES AND BODIES,5902280250,1000049115
05.12.2017,CHILDREN'S SERVICES,REVIEWING OPTIONS LTD,775.05,CLA TEAM SAFEGUARDING,PROFESSIONAL FEES,5902280240,1000064408
05.12.2017,CHILDREN'S SERVICES,CHARLOTTE NOYES LTD,"1,198.25",CLA TEAM SAFEGUARDING,PROFESSIONAL FEES,5902280242,1000055677
05.12.2017,CHILDREN'S SERVICES,CHARLOTTE NOYES LTD,920.55,CLA TEAM SAFEGUARDING,PROFESSIONAL FEES,5902280243,1000055677
05.12.2017,CHILDREN'S SERVICES,LNENGELVIN CONSULTANCY LTD,"1,921.10",CLA TEAM SAFEGUARDING,PROFESSIONAL FEES,5902280245,1000078868
05.12.2017,CHILDREN'S SERVICES,REDACTED PERSONAL DATA,"2,203.35",CLA TEAM SAFEGUARDING,PROFESSIONAL FEES,5902280241,REDACTED
05.12.2017,CHILDREN'S SERVICES,REDACTED PERSONAL DATA,"-2,136.96",DISABILITY & HIV,PAYMENTS TO CARERS,2102755026,REDACTED
05.12.2017,CHILDREN'S SERVICES,REDACTED PERSONAL DATA,"2,136.97",DISABILITY & HIV,PAYMENTS TO CARERS,2102755098,REDACTED
05.12.2017,CHILDREN'S SERVICES,REDACTED PERSONAL DATA,487.34,DISABILITY & HIV,PAYMENTS TO CARERS,2102755190,REDACTED
05.12.2017,CHILDREN'S SERVICES,THE FOSTERING NETWORK,690,DISABILITY & HIV,SUBSCRIPTIONS,5902280249,1000030450
05.12.2017,CHILDREN'S SERVICES,HEALTHCARE & TRANSPORT SERVICES,"49,497.75",HOME 2 SCHOOL TRANSPORT,CAB FARES,5902280214,1000042743
05.12.2017,CHILDREN'S SERVICES,REDACTED PERSONAL DATA,529,HOME 2 SCHOOL TRANSPORT,OTHER PAYMENTS FOR CLIENTS,5902280288,REDACTED
05.12.2017,CHILDREN'S SERVICES,THE DRIVE CARE HOMES LTD,"1,170.00",HOME 2 SCHOOL TRANSPORT,RECOUPMENT,5902280278,1000003889
05.12.2017,CHILDREN'S SERVICES,E4 LAW LTD,299.25,LEGAL,LEGAL FEES & COURT COSTS,2102754205,1000072222
05.12.2017,CHILDREN'S SERVICES,DAVID FOWLER,"1,000.00",LEGAL,LEGAL FEES & COURT COSTS,2102754197,1000067637
05.12.2017,CHILDREN'S SERVICES,DAVID SHARP,635,LEGAL,LEGAL FEES & COURT COSTS,2102754198,1000078667
05.12.2017,CHILDREN'S SERVICES,EMILY RADCLIFFE,400,LEGAL,LEGAL FEES & COURT COSTS,2102754199,1000047317
05.12.2017,CHILDREN'S SERVICES,RICHARD HARRIS,325,LEGAL,LEGAL FEES & COURT COSTS,2102754211,1000075786
05.12.2017,CHILDREN'S SERVICES,CONTACT PROFESSIONALS,375,S & FAM SUPP - PRAC GRP B SET 17-19,OTHER PAYMENTS FOR CLIENTS,5902279490,1000057263
05.12.2017,CHILDREN'S SERVICES,CONTACT PROFESSIONALS,399,SEMI INDEPENDENT,EXTERNAL AGENCIES AND BODIES,2102746014,1000057263
05.12.2017,CHILDREN'S SERVICES,CONTACT PROFESSIONALS,456,SEMI INDEPENDENT,EXTERNAL AGENCIES AND BODIES,2102746025,1000057263
05.12.2017,CHILDREN'S SERVICES,CONTACT PROFESSIONALS,475,SEMI INDEPENDENT,EXTERNAL AGENCIES AND BODIES,2102752854,1000057263
05.12.2017,CHILDREN'S SERVICES,CONTACT PROFESSIONALS,271.2,SEMI INDEPENDENT,OTHER PAYMENTS FOR CLIENTS,2102746021,1000057263
05.12.2017,CHILDREN'S SERVICES,CONTACT PROFESSIONALS,276.84,SEMI INDEPENDENT,OTHER PAYMENTS FOR CLIENTS,2102746022,1000057263
05.12.2017,CHILDREN'S SERVICES,CONTACT PROFESSIONALS,380,SPECIALIST CARE,SECTION 17 PAYMENTS TO AGENCIES/CARERS,2102745673,1000057263
05.12.2017,CHILDREN'S SERVICES,CONTACT PROFESSIONALS,532,SPECIALIST CARE,SECTION 17 PAYMENTS TO AGENCIES/CARERS,2102745674,1000057263
05.12.2017,CHILDREN'S SERVICES,CONTACT PROFESSIONALS,266,SPECIALIST CARE,SECTION 17 PAYMENTS TO AGENCIES/CARERS,2102745675,1000057263
05.12.2017,CHILDREN'S SERVICES,CONTACT PROFESSIONALS,304,SPECIALIST CARE,SECTION 17 PAYMENTS TO AGENCIES/CARERS,2102745683,1000057263
05.12.2017,CHILDREN'S SERVICES,CONTACT PROFESSIONALS,304,SPECIALIST CARE,SECTION 17 PAYMENTS TO AGENCIES/CARERS,2102745697,1000057263
05.12.2017,CHILDREN'S SERVICES,CONTACT PROFESSIONALS,418,SPECIALIST CARE,SECTION 17 PAYMENTS TO AGENCIES/CARERS,2102745701,1000057263
05.12.2017,CHILDREN'S SERVICES,CONTACT PROFESSIONALS,437,SPECIALIST CARE,SECTION 17 PAYMENTS TO AGENCIES/CARERS,2102752725,1000057263
05.12.2017,COMMUNITIES,ABOUT THIS VAN,"2,115.00",COMMUNITY COUNCILS TEAM,DELIVERY CHARGES,5902279205,1000039842
05.12.2017,COMMUNITIES,CHRIST CHURCH URC/METHODIST CHURCH,330,COMMUNITY COUNCILS TEAM,HIRE OF ROOMS/HALLS,5902280193,1000054390
05.12.2017,COMMUNITIES,NECKINGER ESTATE T&RA,"3,500.00",JOINT SECURITY INITIATIVES,GRANTS,5902280283,1266905
05.12.2017,COMMUNITIES,GRAHAM TURNER,"10,399.48",RESIDENT INVOLVEMENT TEAM,PROFESSIONAL FEES,5902280284,1000080304
05.12.2017,COMMUNITIES,TOM HOPKINS ASSOCIATES LTD,"1,715.00",TENANT MGT INITITIVES,TRAINING,5902280211,1000078726
05.12.2017,COMMUNITIES,ACTION SHUTTERS LTD,375,TRA HALLS (REPAIRS),BUILDING R&M,5902280246,1788172
05.12.2017,COMMUNITIES,DRAPER T&RA,800,VCS GRANTS,OTHER CONTRACTORS,5902280229,1000037876
05.12.2017,CUSTOMER EXPERIENCE HGF,NOWMEDICAL LTD,"4,080.00",HOMELESS & HOUSING OPTIONS MGT,PROFESSIONAL FEES,5902280251,1000068185
05.12.2017,CUSTOMER EXPERIENCE HGF,SHELTER TRAINING LTD,"1,815.60",HOMELESS & HOUSING OPTIONS MGT,TRAINING,5902280269,1000033177
05.12.2017,CUSTOMER EXPERIENCE HGF,SHELTER TRAINING LTD,907.8,HOMELESS & HOUSING OPTIONS MGT,TRAINING,5902280271,1000033177
05.12.2017,CUSTOMER EXPERIENCE HGF,RENT CONNECT HOUSING LTD,"16,866.30",NIGHTLY TA (NSC),EXTERNAL AGENCIES AND BODIES,5902280200,1000074815
05.12.2017,CUSTOMER EXPERIENCE HGF,HOMELY HOUSING LTD,"1,080.00",NIGHTLY TA (NSC),EXTERNAL AGENCIES AND BODIES,5902280207,1000050013
05.12.2017,CUSTOMER EXPERIENCE HGF,KINDLY PROPERTIES,"17,593.00",NIGHTLY TA (NSC),EXTERNAL AGENCIES AND BODIES,5902280212,1000060734
05.12.2017,CUSTOMER EXPERIENCE HGF,HOLIDAY INN LONDON WHITECHAPEL,841.67,NIGHTLY TA (NSC),EXTERNAL AGENCIES AND BODIES,5902280262,1000080283
05.12.2017,CUSTOMER EXPERIENCE HGF,HOLIDAY INN LONDON WHITECHAPEL,841.67,NIGHTLY TA (NSC),EXTERNAL AGENCIES AND BODIES,5902280264,1000080283
05.12.2017,CUSTOMER EXPERIENCE HGF,LAURENCE & ANNA PAYNE,344.48,PSL (SOCIAL LETTINGS),EXTERNAL AGENCIES AND BODIES,2102749432,1000080349
05.12.2017,CUSTOMER EXPERIENCE HGF,LAURENCE & ANNA PAYNE,"2,000.00",PSL (SOCIAL LETTINGS),EXTERNAL AGENCIES AND BODIES,2102749433,1000080349
05.12.2017,CUSTOMER EXPERIENCE HGF,OAK HOUSING LTD,"2,463.00",PSL PLACEMENTS,EXTERNAL AGENCIES AND BODIES,5902280232,1000079310
05.12.2017,ENVIRONMENT AND LEISURE,BETHWIN ROAD ADVENTURE PLAYGROUND,"3,500.00",CAPITAL PS (LEISURE),CAPITAL GRANTS,5902280177,1087842
05.12.2017,ENVIRONMENT AND LEISURE,SPOKEMEAD MAINTENANCE LTD,276.48,CAPITAL PS (LEISURE),CONST'N MAIN CONTRACT - NON CERTIFICATED,2102754259,4002791
05.12.2017,ENVIRONMENT AND LEISURE,SPOKEMEAD MAINTENANCE LTD,276.48,CAPITAL PS (LEISURE),CONST'N MAIN CONTRACT - NON CERTIFICATED,2102754259,4002791
05.12.2017,ENVIRONMENT AND LEISURE,SPOKEMEAD MAINTENANCE LTD,"1,199.77",CAPITAL PS (LEISURE),CONST'N MAIN CONTRACT - NON CERTIFICATED,2102754259,4002791
05.12.2017,ENVIRONMENT AND LEISURE,SPOKEMEAD MAINTENANCE LTD,"2,014.21",CAPITAL PS (LEISURE),CONST'N MAIN CONTRACT - NON CERTIFICATED,2102754259,4002791
05.12.2017,ENVIRONMENT AND LEISURE,CONWAY AECOM LTD,"29,836.68",CAPITAL PS (LEISURE),CONSTR'N SUB CONTRACT - NON CERTIFICATED,2102754225,3000001595
05.12.2017,ENVIRONMENT AND LEISURE,CONWAY AECOM LTD,"161,289.60",CAPITAL PS (LEISURE),CONSTRUCTION,2102754218,3000001595
05.12.2017,ENVIRONMENT AND LEISURE,T LOUGHMAN AND CO LIMITED,596,CAPITAL PS (LEISURE),CONSTRUCTION FEES  - EXTERNAL,2102754247,4013329
05.12.2017,ENVIRONMENT AND LEISURE,LDA DESIGN CONSULTING LTD,"1,672.00",CAPITAL PS (LEISURE),CONSTRUCTION FEES  - EXTERNAL,5902280174,1000031830
05.12.2017,ENVIRONMENT AND LEISURE,LDA DESIGN CONSULTING LTD,"3,100.00",CAPITAL PS (LEISURE),CONSTRUCTION FEES  - EXTERNAL,5902280175,1000031830
05.12.2017,ENVIRONMENT AND LEISURE,RACHEL MOONEY T/A MOH DESIGN,"1,600.00",CAPITAL PS (LEISURE),CONSTRUCTION FEES  - EXTERNAL,5902280282,1000080174
05.12.2017,ENVIRONMENT AND LEISURE,BUXTON BUILDING CONTRACTORS LTD,"14,004.66",CAPITAL PS (LEISURE),CONSTRUCTION MAIN CONTRACT,2102754215,3000000830
05.12.2017,ENVIRONMENT DIRECTORATE,LCV HIRE SOLUTIONS LTD,913.19,COMMERCIAL VEH CTRL A/C,CONGESTION CHARGE,5902280293,1000071973
05.12.2017,ENVIRONMENT DIRECTORATE,TOWN & COUNTRY TURF,665,GROUNDS MAINTENANCE - GENERAL,MATERIALS,5902280277,1000079312
05.12.2017,ENVIRONMENT DIRECTORATE,GARY GRANT,600,LICENSING,LEGAL FEES & COURT COSTS,2102749512,1000056929
05.12.2017,ENVIRONMENT DIRECTORATE,GARY GRANT,500,LICENSING,LEGAL FEES & COURT COSTS,2102749513,1000056929
05.12.2017,ENVIRONMENT DIRECTORATE,GARY GRANT,"8,800.00",LICENSING,LEGAL FEES & COURT COSTS,2102754200,1000056929
05.12.2017,ENVIRONMENT DIRECTORATE,THAMES WATER UTILITIES LTD,"1,099.49",MANAGEMENT TEAM,WATER,2102755287,1625566
05.12.2017,ENVIRONMENT DIRECTORATE,THAMES WATER UTILITIES LTD,-732.6,MANAGEMENT TEAM,WATER,5902256711,1625566
05.12.2017,ENVIRONMENT DIRECTORATE,COMPLETE TREE CARE LTD,503.64,NON HOUSING GROUNDS,AGENCY STAFF,5902280290,1000041410
05.12.2017,ENVIRONMENT DIRECTORATE,CONWAY AECOM LTD,767.53,PARKING OVERHEADS,OTHER CONTRACTORS,2102754220,3000001595
05.12.2017,ENVIRONMENT DIRECTORATE,CONWAY AECOM LTD,981.76,PARKING OVERHEADS,OTHER CONTRACTORS,2102754224,3000001595
05.12.2017,ENVIRONMENT DIRECTORATE,CONWAY AECOM LTD,"2,053.04",PARKING OVERHEADS,OTHER CONTRACTORS,2102754227,3000001595
05.12.2017,ENVIRONMENT DIRECTORATE,CONWAY AECOM LTD,"1,689.25",PARKING OVERHEADS,OTHER CONTRACTORS,2102754228,3000001595
05.12.2017,ENVIRONMENT DIRECTORATE,CONWAY AECOM LTD,349.31,PARKING OVERHEADS,OTHER CONTRACTORS,2102754229,3000001595
05.12.2017,ENVIRONMENT DIRECTORATE,CONWAY AECOM LTD,461.55,PARKING OVERHEADS,OTHER CONTRACTORS,2102754231,3000001595
05.12.2017,ENVIRONMENT DIRECTORATE,CONWAY AECOM LTD,"1,744.92",PARKING OVERHEADS,OTHER CONTRACTORS,2102754232,3000001595
05.12.2017,ENVIRONMENT DIRECTORATE,CONWAY AECOM LTD,"2,108.11",PARKING OVERHEADS,OTHER CONTRACTORS,2102754233,3000001595
05.12.2017,ENVIRONMENT DIRECTORATE,CONWAY AECOM LTD,287.97,PARKING OVERHEADS,OTHER CONTRACTORS,2102754237,3000001595
05.12.2017,ENVIRONMENT DIRECTORATE,CONWAY AECOM LTD,"2,327.34",PARKING OVERHEADS,OTHER CONTRACTORS,2102754240,3000001595
05.12.2017,ENVIRONMENT DIRECTORATE,REMINGTON HALL,320,SASBU,LEGAL FEES & COURT COSTS,2102754210,1000061702
05.12.2017,ENVIRONMENT DIRECTORATE,JARED NORMAN,450,SASBU,LEGAL FEES & COURT COSTS,2102754204,1000064080
05.12.2017,ENVIRONMENT DIRECTORATE,AUTO SISTANCE LTD,275,STREET WORKS OVERHEADS,BOOKS & PUBLICATIONS,5902280257,1000070536
05.12.2017,ENVIRONMENT DIRECTORATE,VEOLIA ES SOUTHWARK LTD,"228,070.18",WASTE PFI,PFI/PPP PAYMENTS,5902280244,1000056979
05.12.2017,F & C S EXCLUDING CORPORATE BUDGETS,PRINT4UK LTD,680,ADMINISTRATIVE SUPPORT,PRINTING,5902280209,1000059134
05.12.2017,F & C S EXCLUDING CORPORATE BUDGETS,ANDREW KERR,300,ANTI-FRAUD AND INVESTIGATIONS,LEGAL FEES & COURT COSTS,2102754190,1000077392
05.12.2017,F & C S EXCLUDING CORPORATE BUDGETS,THOMSON REUTERS PROFESSIONAL UK LTD,"1,282.19",LEGAL SVCES MANAGEMENT,BOOKS & PUBLICATIONS,5902280179,1000000130
05.12.2017,HOUSING,MEARS LTD,"1,126,900.15",MEARS,MANUAL CREDITORS,2102754248,3000001096
05.12.2017,HOUSING HRA,CALFORD SEADEN (HEALTH & SAFETY) LTD,"6,968.25",CAPITAL PS (HRA),CONSTRUCTION FEES,5902280192,1097125
05.12.2017,HOUSING HRA,CALFORD SEADEN LLP,"1,291.58",CAPITAL PS (HRA),CONSTRUCTION FEES  - EXTERNAL,5902280216,1061592
05.12.2017,HOUSING HRA,KEEPMOAT REGENERATION (APOLLO) LTD,"23,333.74",CAPITAL PS (HRA),CONSTRUCTION MAIN CONTRACT -CERTIFICATED,2102754242,4000449
05.12.2017,HOUSING HRA,KEEPMOAT REGENERATION (APOLLO) LTD,"69,790.42",CAPITAL PS (HRA),CONSTRUCTION MAIN CONTRACT -CERTIFICATED,2102754243,4000449
05.12.2017,HOUSING HRA,KEEPMOAT REGENERATION (APOLLO) LTD,"5,922.39",CAPITAL PS (HRA),CONSTRUCTION MAIN CONTRACT -CERTIFICATED,2102754244,4000449
05.12.2017,HOUSING HRA,KEEPMOAT REGENERATION (APOLLO) LTD,"1,005.95",CAPITAL PS (HRA),CONSTRUCTION MAIN CONTRACT -CERTIFICATED,2102754245,4000449
05.12.2017,HOUSING HRA,KEEPMOAT REGENERATION (APOLLO) LTD,"8,827.35",CAPITAL PS (HRA),CONSTRUCTION MAIN CONTRACT -CERTIFICATED,2102754245,4000449
05.12.2017,HOUSING HRA,KEEPMOAT REGENERATION (APOLLO) LTD,"41,762.68",CAPITAL PS (HRA),CONSTRUCTION MAIN CONTRACT -CERTIFICATED,2102754246,4000449
05.12.2017,HOUSING HRA,PROPERTY FACILITIES GROUP PLC,"18,529.60",CAPITAL PS (HRA),CONSTRUCTION MAIN CONTRACT -CERTIFICATED,2102754254,3000001420
05.12.2017,HOUSING HRA,LEATHERMARKET COMMUNITY BENEFIT SOCIETY LTD,"2,740,824.00",CAPITAL PS (HRA),CONSTRUCTION MAIN CONTRACT -CERTIFICATED,5902280286,1000076870
05.12.2017,LEISURE DIRECTORATE,BAILY  GARNER LLP,"2,160.00",CEMETERIES,PROFESSIONAL FEES,5902280195,1000663
05.12.2017,LEISURE DIRECTORATE,HONOR OAK GROUP PRACTICE,"1,817.00",CREMATORIUM,PROFESSIONAL FEES,5902280196,1000071037
05.12.2017,LEISURE DIRECTORATE,REDACTED PERSONAL DATA,558.64,CREMATORIUM,PROFESSIONAL FEES,5902280273,REDACTED
05.12.2017,LEISURE DIRECTORATE,RESPONSE TECHNICAL SERVICES LTD,288,LOCAL HISTORY LIBRARY,EQUIPMENT PURCHASE & REPAIR,5902280194,1000074547
05.12.2017,LEISURE DIRECTORATE,INCENTIVE QAS LTD,"1,330.17",TEMPORARY NEWINGTON,PREMISES CLEANING,5902280217,1000074675
05.12.2017,MODERNISATION HGF,TMP (UK) LIMITED,435,ADVERTISING,RECRUITMENT ADVERTISING,5902280268,1000041810
05.12.2017,MODERNISATION HGF,SODEXHO PASS LTD,716.1,CHILDCARE VOUCHERS,OTHER EMPLOYEE EXPENSES,5902280218,1000048650
05.12.2017,MODERNISATION HGF,SODEXHO PASS LTD,"23,870.06",CHILDCARE VOUCHERS,OTHER EMPLOYEE EXPENSES,5902280218,1000048650
05.12.2017,MODERNISATION HGF,NEWMANS CONSULTING LIMITED,"1,250.00",OCCUPATIONAL ASSESSMENT,CONSULTANTS SERVICES,5902280234,1000065375
05.12.2017,MODERNISATION HGF,WEB-LABS LTD,300,ORG TRANSFORMATION,TRAINING,5902280237,1000039819
05.12.2017,PLANNING AND TRANSPORT,MONSON ENGINEERING LTD,260,BUILDING CONTROL,PROFESSIONAL FEES,5902280260,1000077622
05.12.2017,PLANNING AND TRANSPORT,ANDREW SKELLY,991.67,BUM & SUPPORT COSTS,LEGAL FEES & COURT COSTS,2102754192,1000069248
05.12.2017,PLANNING AND TRANSPORT,ANDREW SKELLY,750,BUM & SUPPORT COSTS,LEGAL FEES & COURT COSTS,2102754194,1000069248
05.12.2017,PLANNING AND TRANSPORT,MATTHEW HUTCHINGS,600,S106 & CIL ADMINISTRATION,LEGAL FEES & COURT COSTS,2102754207,1000054850
05.12.2017,PLANNING AND TRANSPORT,SASHA BLACKMORE,500,S106 & CIL ADMINISTRATION,LEGAL FEES & COURT COSTS,2102754214,1000057335
05.12.2017,REGENERATION,EDF ENERGY PLC,552.93,ACCOMMODATION,ELECTRICITY,5902280210,1008746
05.12.2017,REGENERATION,DELOITTE LLP,"3,400.00",MISC INDUSTRIAL PROPERTIES,PROFESSIONAL FEES,5902280189,1000050842
05.12.2017,REGENERATION,PAPERGRAPHICS LTD,465,PROPERTY SERVICES,STATIONERY,5902280289,1000078060
05.12.2017,RESIDENT SERVICES,GEORGIA WHITING,375,OPERATIONS/OFFICES ACCOMMODATION,LEGAL FEES & COURT COSTS,2102754201,1000078433
05.12.2017,RESIDENT SERVICES,LISA CLARKE,450,OPERATIONS/OFFICES ACCOMMODATION,LEGAL FEES & COURT COSTS,2102754206,1000030215
05.12.2017,RESIDENT SERVICES,JAMES SHARPE,300,SPECIAL INVESTIGATIONS,LEGAL FEES & COURT COSTS,2102754203,1000077773
05.12.2017,RESIDENT SERVICES,CENTRE FOR LONDON,"5,000.00",STRATEGIC BUSINESS PLANNING,PROFESSIONAL FEES,5902280287,1000076521
06.12.2017,ADULT SOCIAL CARE,QUANTUM CARE LIMITED,"-6,776.48",CONT.CARE ( RESIDENTIAL ),MANDATORY FLEXILBLE FEES & CHARGES,2101371631,1975905
06.12.2017,ADULT SOCIAL CARE,QUANTUM CARE LIMITED,-661.12,CONT.CARE ( RESIDENTIAL ),MANDATORY FLEXILBLE FEES & CHARGES,2101371633,1975905
06.12.2017,ADULT SOCIAL CARE,QUANTUM CARE LIMITED,-661.12,CONT.CARE ( RESIDENTIAL ),MANDATORY FLEXILBLE FEES & CHARGES,2101371635,1975905
06.12.2017,ADULT SOCIAL CARE,QUANTUM CARE LIMITED,-330.56,CONT.CARE ( RESIDENTIAL ),MANDATORY FLEXILBLE FEES & CHARGES,2101371637,1975905
06.12.2017,ADULT SOCIAL CARE,QUANTUM CARE LIMITED,-330.56,CONT.CARE ( RESIDENTIAL ),MANDATORY FLEXILBLE FEES & CHARGES,2101375342,1975905
06.12.2017,ADULT SOCIAL CARE,QUANTUM CARE LIMITED,-661.12,CONT.CARE ( RESIDENTIAL ),MANDATORY FLEXILBLE FEES & CHARGES,2101383721,1975905
06.12.2017,ADULT SOCIAL CARE,QUANTUM CARE LIMITED,-480.97,CONT.CARE ( RESIDENTIAL ),MANDATORY FLEXILBLE FEES & CHARGES,2101392112,1975905
06.12.2017,ADULT SOCIAL CARE,QUANTUM CARE LIMITED,"1,557.36",CONT.CARE ( RESIDENTIAL ),RESIDENTIAL CARE,2101371632,1975905
06.12.2017,ADULT SOCIAL CARE,QUANTUM CARE LIMITED,"1,557.36",CONT.CARE ( RESIDENTIAL ),RESIDENTIAL CARE,2101371634,1975905
06.12.2017,ADULT SOCIAL CARE,QUANTUM CARE LIMITED,778.68,CONT.CARE ( RESIDENTIAL ),RESIDENTIAL CARE,2101371636,1975905
06.12.2017,ADULT SOCIAL CARE,QUANTUM CARE LIMITED,778.68,CONT.CARE ( RESIDENTIAL ),RESIDENTIAL CARE,2101375341,1975905
06.12.2017,ADULT SOCIAL CARE,QUANTUM CARE LIMITED,"1,557.36",CONT.CARE ( RESIDENTIAL ),RESIDENTIAL CARE,2101383720,1975905
06.12.2017,ADULT SOCIAL CARE,QUANTUM CARE LIMITED,"1,112.40",CONT.CARE ( RESIDENTIAL ),RESIDENTIAL CARE,2101392111,1975905
06.12.2017,ADULT SOCIAL CARE,QUANTUM CARE LIMITED,"4,535.88",DIR OF ASC,PROFESSIONAL FEES,2102755710,1975905
06.12.2017,ADULT SOCIAL CARE,QUANTUM CARE LIMITED,"-1,344.36",DIR OF ASC,PROFESSIONAL FEES,2102755711,1975905
06.12.2017,ADULT SOCIAL CARE,QUANTUM CARE LIMITED,-618.28,DIR OF ASC,PROFESSIONAL FEES,2102755712,1975905
06.12.2017,ADULT SOCIAL CARE,RYEDALE COURT LTD,"2,630.31",DIR OF ASC,PROFESSIONAL FEES,2102755713,1000041906
06.12.2017,ADULT SOCIAL CARE,NEWINGTON COURT NURSING HOME,521.04,DIR OF ASC,PROFESSIONAL FEES,2102755714,1000044062
06.12.2017,ADULT SOCIAL CARE,CROMWELL NURSING HOME,853.31,DIR OF ASC,PROFESSIONAL FEES,2102755716,1000048398
06.12.2017,ADULT SOCIAL CARE,STANWELL REST HOME LTD,"3,665.22",DIR OF ASC,PROFESSIONAL FEES,2102755717,1000048403
06.12.2017,ADULT SOCIAL CARE,PARK HOUSE HOTEL,"1,236.00",DIR OF ASC,PROFESSIONAL FEES,2102755718,1000046507
06.12.2017,ADULT SOCIAL CARE,CROMWELL NURSING HOME,-865.71,HDTS NURSING PLACEMENT OPSS,NURSING PLACEMENTS FEES,2101430526,1000048398
06.12.2017,ADULT SOCIAL CARE,CAMBRIDGE HOUSE & TALBOT,"14,653.41",INDEPENDENT MC ADVOCACY,EXTERNAL AGENCIES AND BODIES,5902280333,1139414
06.12.2017,ADULT SOCIAL CARE,PEOPLE PLUS,"6,863.41",LD LTS 18-64,PAYMENTS TO CLIENTS (DIRECT PAYMENTS),2102755279,1000061886
06.12.2017,ADULT SOCIAL CARE,CROWN HOUSING LTD,"1,050.00",MH CARE&SUPPORT TEAM,ADDITIONAL PAYMENTS TO AGENCIES/CARERS,5902280434,1000075070
06.12.2017,ADULT SOCIAL CARE,RYEDALE COURT LTD,535.26,OLDER NORTH NUR PLACE CC,MANDATORY FLEXILBLE FEES & CHARGES,2101350791,1000041906
06.12.2017,ADULT SOCIAL CARE,RYEDALE COURT LTD,-548.29,OLDER NORTH NUR PLACE CC,NURSING PLACEMENTS FEES,2101350790,1000041906
06.12.2017,ADULT SOCIAL CARE,RYEDALE COURT LTD,"-2,617.28",OLDER NORTH NUR PLACE CC,RESIDENTIAL CARE,2101350789,1000041906
06.12.2017,ADULT SOCIAL CARE,STANWELL REST HOME LTD,"-9,250.00",OLDER NORTH RESIDENTIAL PLACE,MANDATORY FLEXILBLE FEES & CHARGES,2101370086,1000048403
06.12.2017,ADULT SOCIAL CARE,STANWELL REST HOME LTD,"-1,000.00",OLDER NORTH RESIDENTIAL PLACE,MANDATORY FLEXILBLE FEES & CHARGES,2101370088,1000048403
06.12.2017,ADULT SOCIAL CARE,STANWELL REST HOME LTD,"-1,000.00",OLDER NORTH RESIDENTIAL PLACE,MANDATORY FLEXILBLE FEES & CHARGES,2101370090,1000048403
06.12.2017,ADULT SOCIAL CARE,STANWELL REST HOME LTD,"-1,000.00",OLDER NORTH RESIDENTIAL PLACE,MANDATORY FLEXILBLE FEES & CHARGES,2101370092,1000048403
06.12.2017,ADULT SOCIAL CARE,STANWELL REST HOME LTD,-500,OLDER NORTH RESIDENTIAL PLACE,MANDATORY FLEXILBLE FEES & CHARGES,2101370094,1000048403
06.12.2017,ADULT SOCIAL CARE,STANWELL REST HOME LTD,-500,OLDER NORTH RESIDENTIAL PLACE,MANDATORY FLEXILBLE FEES & CHARGES,2101373914,1000048403
06.12.2017,ADULT SOCIAL CARE,STANWELL REST HOME LTD,"-1,000.00",OLDER NORTH RESIDENTIAL PLACE,MANDATORY FLEXILBLE FEES & CHARGES,2101382243,1000048403
06.12.2017,ADULT SOCIAL CARE,STANWELL REST HOME LTD,"-1,000.00",OLDER NORTH RESIDENTIAL PLACE,MANDATORY FLEXILBLE FEES & CHARGES,2101390607,1000048403
06.12.2017,ADULT SOCIAL CARE,STANWELL REST HOME LTD,"-1,000.00",OLDER NORTH RESIDENTIAL PLACE,MANDATORY FLEXILBLE FEES & CHARGES,2101400771,1000048403
06.12.2017,ADULT SOCIAL CARE,STANWELL REST HOME LTD,"-1,012.24",OLDER NORTH RESIDENTIAL PLACE,MANDATORY FLEXILBLE FEES & CHARGES,2101411832,1000048403
06.12.2017,ADULT SOCIAL CARE,STANWELL REST HOME LTD,"1,704.60",OLDER NORTH RESIDENTIAL PLACE,RESIDENTIAL CARE,2101370087,1000048403
06.12.2017,ADULT SOCIAL CARE,STANWELL REST HOME LTD,"1,704.60",OLDER NORTH RESIDENTIAL PLACE,RESIDENTIAL CARE,2101370089,1000048403
06.12.2017,ADULT SOCIAL CARE,STANWELL REST HOME LTD,"1,704.60",OLDER NORTH RESIDENTIAL PLACE,RESIDENTIAL CARE,2101370091,1000048403
06.12.2017,ADULT SOCIAL CARE,STANWELL REST HOME LTD,852.3,OLDER NORTH RESIDENTIAL PLACE,RESIDENTIAL CARE,2101370093,1000048403
06.12.2017,ADULT SOCIAL CARE,STANWELL REST HOME LTD,852.3,OLDER NORTH RESIDENTIAL PLACE,RESIDENTIAL CARE,2101373913,1000048403
06.12.2017,ADULT SOCIAL CARE,STANWELL REST HOME LTD,"1,704.60",OLDER NORTH RESIDENTIAL PLACE,RESIDENTIAL CARE,2101382242,1000048403
06.12.2017,ADULT SOCIAL CARE,STANWELL REST HOME LTD,"1,704.60",OLDER NORTH RESIDENTIAL PLACE,RESIDENTIAL CARE,2101390606,1000048403
06.12.2017,ADULT SOCIAL CARE,STANWELL REST HOME LTD,"1,704.60",OLDER NORTH RESIDENTIAL PLACE,RESIDENTIAL CARE,2101400770,1000048403
06.12.2017,ADULT SOCIAL CARE,STANWELL REST HOME LTD,"1,704.60",OLDER NORTH RESIDENTIAL PLACE,RESIDENTIAL CARE,2101411831,1000048403
06.12.2017,ADULT SOCIAL CARE,NEWINGTON COURT NURSING HOME,"-4,791.57",OP CARE PACKAGES,NURSING PLACEMENTS FEES,2101350861,1000044062
06.12.2017,ADULT SOCIAL CARE,NEWINGTON COURT NURSING HOME,"4,705.00",OP CARE PACKAGES,NURSING PLACEMENTS FEES,2101400665,1000044062
06.12.2017,ADULT SOCIAL CARE,NEWINGTON COURT NURSING HOME,-519.08,OP CARE PACKAGES,RESIDENTIAL CARE,2101350860,1000044062
06.12.2017,ADULT SOCIAL CARE,PEOPLE PLUS,744.18,PHY LTS 18-64,PAYMENTS TO CLIENTS (DIRECT PAYMENTS),2102755278,1000061886
06.12.2017,ADULT SOCIAL CARE,BLACK ELDER GROUP SWK,"3,363.00",PHY LTS 65+,DAYCARE,2102755275,1000067369
06.12.2017,ADULT SOCIAL CARE,PEOPLE PLUS,"4,628.64",PHY LTS 65+,PAYMENTS TO CLIENTS (DIRECT PAYMENTS),2102755280,1000061886
06.12.2017,ADULT SOCIAL CARE,PARK HOUSE HOTEL,"-1,246.00",PWPD RESPITE RESIDENTIAL,MANDATORY FLEXILBLE FEES & CHARGES,2101300289,1000046507
06.12.2017,ASSET MANAGEMENT,HM COURTS & TRIBUNALS SERVICE,545,DISREPAIR,LEGAL FEES & COURT COSTS,2102755621,1000075260
06.12.2017,ASSET MANAGEMENT,HM COURTS & TRIBUNALS SERVICE,255,DISREPAIR,LEGAL FEES & COURT COSTS,2102755626,1000075260
06.12.2017,ASSET MANAGEMENT,T BROWN & SONS (HEATING) LTD,"1,964.15",ENG CONTRACTS (NORTH),HEATING - DISTRICT PLANT REPAIR & REPLAC,5902280325,1000040191
06.12.2017,ASSET MANAGEMENT,BUILDTRUST LTD,355.35,VOIDS (SOUTH),BUILDING R&M,2102755554,3000002010
06.12.2017,ASSET MANAGEMENT,BUILDTRUST LTD,-355.35,VOIDS (SOUTH),BUILDING R&M,2102755555,3000002010
06.12.2017,CENTRAL FUNCTIONS,HM COURTS & TRIBUNALS SERVICE,255,COMMERCIAL PROPERTIES,LEGAL FEES & COURT COSTS,2102755567,1000075260
06.12.2017,CENTRAL FUNCTIONS,HM COURTS & TRIBUNALS SERVICE,308,COMMERCIAL PROPERTIES,LEGAL FEES & COURT COSTS,2102755579,1000075260
06.12.2017,CENTRAL FUNCTIONS,HM COURTS & TRIBUNALS SERVICE,308,COMMERCIAL PROPERTIES,LEGAL FEES & COURT COSTS,2102755589,1000075260
06.12.2017,CENTRAL FUNCTIONS,PENNINGTON CHOICE LTD,773.5,COMMERCIAL PROPERTIES,PROFESSIONAL FEES,5902280393,1000067888
06.12.2017,CENTRAL FUNCTIONS,WARNER LAND SURVEYS LTD,"1,120.00",LEDBURY ESTATE,OTHER R&M,5902280379,1000076964
06.12.2017,CENTRAL FUNCTIONS,MARTECH TECHNICAL SERVICES LTD,"1,670.00",LEDBURY ESTATE,OTHER R&M,5902280432,1000079941
06.12.2017,CENTRAL FUNCTIONS,MARTECH TECHNICAL SERVICES LTD,"5,000.00",LEDBURY ESTATE,OTHER R&M,5902280432,1000079941
06.12.2017,CENTRAL FUNCTIONS,MARTECH TECHNICAL SERVICES LTD,"7,575.00",LEDBURY ESTATE,OTHER R&M,5902280432,1000079941
06.12.2017,CHIEF EXECUTIVE,CHARLES DICKENS PRIMARY SCHOOL,360,CAPITAL PS (REGEN),CONSTRUCTION FEES,5902280306,5001000015
06.12.2017,CHIEF EXECUTIVE,LAWSON ESTATE T&RA,"1,530.00",CAPITAL PS (REGEN),CONSTRUCTION SITE COSTS,5902280294,1028168
06.12.2017,CHIEF EXECUTIVE,FWDESIGN LTD,800,CAPITAL PS (REGEN),FURNITURE & FITTINGS ACQUISITION,5902280316,1000069629
06.12.2017,CHIEF EXECUTIVE'S OFFICE,J C CONSULTANT SERVICES LTD,"8,000.00",CHIEF EXEC'S OFFICE,GRANTS,5902280313,1000042476
06.12.2017,CHIEF EXECUTIVE'S OFFICE,OLIVER BURN RESIDENTIAL LTD,"3,986.00",HERNE HILL,GRANTS,5902280297,1000080219
06.12.2017,CHILDREN AND ADULT,INTERSERVE (FACILITIES MANAGEMENT),"79,978.14",CAPITAL PS (EDUCATION),CONSTRUCTION,5902280299,1000070792
06.12.2017,CHILDREN AND ADULT,MLM CONSULTING ENGINEERS LTD,551.25,CAPITAL PS (EDUCATION),CONSTRUCTION,5902280395,1000059806
06.12.2017,CHILDREN AND ADULT,HERBERT CONSULTING LIMITED,"6,000.00",CAPITAL PS (STRAT SERV),ICT ACQUISITION,5902280296,1000062551
06.12.2017,CHILDREN'S SERVICES,REDACTED PERSONAL DATA,375.54,ADOPTION PLACEMENTS & INTER AGENCY,PAYMENTS TO CARERS,2102754272,REDACTED
06.12.2017,CHILDREN'S SERVICES,REDACTED PERSONAL DATA,369.16,ADOPTION PLACEMENTS & INTER AGENCY,PAYMENTS TO CARERS,2102754273,REDACTED
06.12.2017,CHILDREN'S SERVICES,REDACTED PERSONAL DATA,652.9,ADOPTION PLACEMENTS & INTER AGENCY,PAYMENTS TO CARERS,2102754275,REDACTED
06.12.2017,CHILDREN'S SERVICES,REDACTED PERSONAL DATA,854.28,ADOPTION PLACEMENTS & INTER AGENCY,PAYMENTS TO CARERS,2102754278,REDACTED
06.12.2017,CHILDREN'S SERVICES,REDACTED PERSONAL DATA,382.3,ADOPTION PLACEMENTS & INTER AGENCY,PAYMENTS TO CARERS,2102754280,REDACTED
06.12.2017,CHILDREN'S SERVICES,REDACTED PERSONAL DATA,717.14,ADOPTION PLACEMENTS & INTER AGENCY,PAYMENTS TO CARERS,2102754281,REDACTED
06.12.2017,CHILDREN'S SERVICES,REDACTED PERSONAL DATA,279.26,ADOPTION PLACEMENTS & INTER AGENCY,PAYMENTS TO CARERS,2102754282,REDACTED
06.12.2017,CHILDREN'S SERVICES,REDACTED PERSONAL DATA,382.3,ADOPTION PLACEMENTS & INTER AGENCY,PAYMENTS TO CARERS,2102754285,REDACTED
06.12.2017,CHILDREN'S SERVICES,REDACTED PERSONAL DATA,640.9,ADOPTION PLACEMENTS & INTER AGENCY,PAYMENTS TO CARERS,2102754286,REDACTED
06.12.2017,CHILDREN'S SERVICES,REDACTED PERSONAL DATA,635.34,ADOPTION PLACEMENTS & INTER AGENCY,PAYMENTS TO CARERS,2102754287,REDACTED
06.12.2017,CHILDREN'S SERVICES,REDACTED PERSONAL DATA,465.52,ADOPTION PLACEMENTS & INTER AGENCY,PAYMENTS TO CARERS,2102754288,REDACTED
06.12.2017,CHILDREN'S SERVICES,REDACTED PERSONAL DATA,275.1,ADOPTION PLACEMENTS & INTER AGENCY,PAYMENTS TO CARERS,2102754290,REDACTED
06.12.2017,CHILDREN'S SERVICES,REDACTED PERSONAL DATA,512.02,ADOPTION PLACEMENTS & INTER AGENCY,PAYMENTS TO CARERS,2102754294,REDACTED
06.12.2017,CHILDREN'S SERVICES,REDACTED PERSONAL DATA,252.9,ADOPTION PLACEMENTS & INTER AGENCY,PAYMENTS TO CARERS,2102754296,REDACTED
06.12.2017,CHILDREN'S SERVICES,REDACTED PERSONAL DATA,316.5,ADOPTION PLACEMENTS & INTER AGENCY,PAYMENTS TO CARERS,2102754298,REDACTED
06.12.2017,CHILDREN'S SERVICES,REDACTED PERSONAL DATA,465.54,ADOPTION PLACEMENTS & INTER AGENCY,PAYMENTS TO CARERS,2102754299,REDACTED
06.12.2017,CHILDREN'S SERVICES,REDACTED PERSONAL DATA,484.92,ADOPTION PLACEMENTS & INTER AGENCY,PAYMENTS TO CARERS,2102754300,REDACTED
06.12.2017,CHILDREN'S SERVICES,REDACTED PERSONAL DATA,465.54,ADOPTION PLACEMENTS & INTER AGENCY,PAYMENTS TO CARERS,2102754304,REDACTED
06.12.2017,CHILDREN'S SERVICES,REDACTED PERSONAL DATA,465.48,ADOPTION PLACEMENTS & INTER AGENCY,PAYMENTS TO CARERS,2102754307,REDACTED
06.12.2017,CHILDREN'S SERVICES,REDACTED PERSONAL DATA,311.34,ADOPTION PLACEMENTS & INTER AGENCY,PAYMENTS TO CARERS,2102754311,REDACTED
06.12.2017,CHILDREN'S SERVICES,REDACTED PERSONAL DATA,451.8,ADOPTION PLACEMENTS & INTER AGENCY,PAYMENTS TO CARERS,2102754312,REDACTED
06.12.2017,CHILDREN'S SERVICES,REDACTED PERSONAL DATA,695.04,ADOPTION PLACEMENTS & INTER AGENCY,PAYMENTS TO CARERS,2102754315,REDACTED
06.12.2017,CHILDREN'S SERVICES,REDACTED PERSONAL DATA,404.46,ADOPTION PLACEMENTS & INTER AGENCY,PAYMENTS TO CARERS,2102754316,REDACTED
06.12.2017,CHILDREN'S SERVICES,REDACTED PERSONAL DATA,375.54,ADOPTION PLACEMENTS & INTER AGENCY,PAYMENTS TO CARERS,2102754317,REDACTED
06.12.2017,CHILDREN'S SERVICES,REDACTED PERSONAL DATA,293.26,ADOPTION PLACEMENTS & INTER AGENCY,PAYMENTS TO CARERS,2102754318,REDACTED
06.12.2017,CHILDREN'S SERVICES,REDACTED PERSONAL DATA,375.54,ADOPTION PLACEMENTS & INTER AGENCY,PAYMENTS TO CARERS,2102754321,REDACTED
06.12.2017,CHILDREN'S SERVICES,REDACTED PERSONAL DATA,777.36,ADOPTION PLACEMENTS & INTER AGENCY,PAYMENTS TO CARERS,2102754323,REDACTED
06.12.2017,CHILDREN'S SERVICES,REDACTED PERSONAL DATA,375.54,ADOPTION PLACEMENTS & INTER AGENCY,PAYMENTS TO CARERS,2102754324,REDACTED
06.12.2017,CHILDREN'S SERVICES,REDACTED PERSONAL DATA,400.84,ADOPTION PLACEMENTS & INTER AGENCY,PAYMENTS TO CARERS,2102754325,REDACTED
06.12.2017,CHILDREN'S SERVICES,REDACTED PERSONAL DATA,534.54,ADOPTION PLACEMENTS & INTER AGENCY,PAYMENTS TO CARERS,2102754326,REDACTED
06.12.2017,CHILDREN'S SERVICES,REDACTED PERSONAL DATA,559.06,ADOPTION PLACEMENTS & INTER AGENCY,PAYMENTS TO CARERS,2102754327,REDACTED
06.12.2017,CHILDREN'S SERVICES,REDACTED PERSONAL DATA,588.42,ADOPTION PLACEMENTS & INTER AGENCY,PAYMENTS TO CARERS,2102754329,REDACTED
06.12.2017,CHILDREN'S SERVICES,REDACTED PERSONAL DATA,375.54,ADOPTION PLACEMENTS & INTER AGENCY,PAYMENTS TO CARERS,2102754335,REDACTED
06.12.2017,CHILDREN'S SERVICES,REDACTED PERSONAL DATA,510.96,ADOPTION PLACEMENTS & INTER AGENCY,PAYMENTS TO CARERS,2102754337,REDACTED
06.12.2017,CHILDREN'S SERVICES,REDACTED PERSONAL DATA,635.34,ADOPTION PLACEMENTS & INTER AGENCY,PAYMENTS TO CARERS,2102754339,REDACTED
06.12.2017,CHILDREN'S SERVICES,REDACTED PERSONAL DATA,263.24,ADOPTION PLACEMENTS & INTER AGENCY,PAYMENTS TO CARERS,2102754343,REDACTED
06.12.2017,CHILDREN'S SERVICES,REDACTED PERSONAL DATA,530,ADOPTION PLACEMENTS & INTER AGENCY,PAYMENTS TO CARERS,2102754345,REDACTED
06.12.2017,CHILDREN'S SERVICES,REDACTED PERSONAL DATA,382.3,ADOPTION PLACEMENTS & INTER AGENCY,PAYMENTS TO CARERS,2102754347,REDACTED
06.12.2017,CHILDREN'S SERVICES,REDACTED PERSONAL DATA,465.54,ADOPTION PLACEMENTS & INTER AGENCY,PAYMENTS TO CARERS,2102754350,REDACTED
06.12.2017,CHILDREN'S SERVICES,REDACTED PERSONAL DATA,635.34,ADOPTION PLACEMENTS & INTER AGENCY,PAYMENTS TO CARERS,2102754351,REDACTED
06.12.2017,CHILDREN'S SERVICES,REDACTED PERSONAL DATA,382.3,ADOPTION PLACEMENTS & INTER AGENCY,PAYMENTS TO CARERS,2102754353,REDACTED
06.12.2017,CHILDREN'S SERVICES,REDACTED PERSONAL DATA,"1,053.20",ADOPTION PLACEMENTS & INTER AGENCY,PAYMENTS TO CARERS,2102754359,REDACTED
06.12.2017,CHILDREN'S SERVICES,REDACTED PERSONAL DATA,375.54,ADOPTION PLACEMENTS & INTER AGENCY,PAYMENTS TO CARERS,2102754365,REDACTED
06.12.2017,CHILDREN'S SERVICES,REDACTED PERSONAL DATA,316.5,ADOPTION PLACEMENTS & INTER AGENCY,PAYMENTS TO CARERS,2102754367,REDACTED
06.12.2017,CHILDREN'S SERVICES,REDACTED PERSONAL DATA,390.26,ADOPTION PLACEMENTS & INTER AGENCY,PAYMENTS TO CARERS,2102754377,REDACTED
06.12.2017,CHILDREN'S SERVICES,REDACTED PERSONAL DATA,552.16,ADOPTION PLACEMENTS & INTER AGENCY,PAYMENTS TO CARERS,2102754383,REDACTED
06.12.2017,CHILDREN'S SERVICES,REDACTED PERSONAL DATA,695.12,ADOPTION PLACEMENTS & INTER AGENCY,PAYMENTS TO CARERS,2102754385,REDACTED
06.12.2017,CHILDREN'S SERVICES,REDACTED PERSONAL DATA,253.56,ADOPTION PLACEMENTS & INTER AGENCY,PAYMENTS TO CARERS,2102754387,REDACTED
06.12.2017,CHILDREN'S SERVICES,REDACTED PERSONAL DATA,293,ADOPTION PLACEMENTS & INTER AGENCY,PAYMENTS TO CARERS,2102754399,REDACTED
06.12.2017,CHILDREN'S SERVICES,REDACTED PERSONAL DATA,538.08,ADOPTION PLACEMENTS & INTER AGENCY,PAYMENTS TO CARERS,2102754401,REDACTED
06.12.2017,CHILDREN'S SERVICES,REDACTED PERSONAL DATA,652.9,ADOPTION PLACEMENTS & INTER AGENCY,PAYMENTS TO CARERS,2102754403,REDACTED
06.12.2017,CHILDREN'S SERVICES,REDACTED PERSONAL DATA,465.54,ADOPTION PLACEMENTS & INTER AGENCY,PAYMENTS TO CARERS,2102754405,REDACTED
06.12.2017,CHILDREN'S SERVICES,REDACTED PERSONAL DATA,"1,011.20",ADOPTION PLACEMENTS & INTER AGENCY,PAYMENTS TO CARERS,2102754409,REDACTED
06.12.2017,CHILDREN'S SERVICES,REDACTED PERSONAL DATA,269.22,ADOPTION PLACEMENTS & INTER AGENCY,PAYMENTS TO CARERS,2102754413,REDACTED
06.12.2017,CHILDREN'S SERVICES,REDACTED PERSONAL DATA,712.3,ADOPTION PLACEMENTS & INTER AGENCY,PAYMENTS TO CARERS,2102754419,REDACTED
06.12.2017,CHILDREN'S SERVICES,REDACTED PERSONAL DATA,908,ADOPTION PLACEMENTS & INTER AGENCY,PAYMENTS TO CARERS,2102754431,REDACTED
06.12.2017,CHILDREN'S SERVICES,REDACTED PERSONAL DATA,705.24,ADOPTION PLACEMENTS & INTER AGENCY,PAYMENTS TO CARERS,2102754435,REDACTED
06.12.2017,CHILDREN'S SERVICES,REDACTED PERSONAL DATA,375.54,ADOPTION PLACEMENTS & INTER AGENCY,PAYMENTS TO CARERS,2102754437,REDACTED
06.12.2017,CHILDREN'S SERVICES,REDACTED PERSONAL DATA,565.8,ADOPTION PLACEMENTS & INTER AGENCY,PAYMENTS TO CARERS,2102754439,REDACTED
06.12.2017,CHILDREN'S SERVICES,REDACTED PERSONAL DATA,368.52,ADOPTION PLACEMENTS & INTER AGENCY,PAYMENTS TO CARERS,2102754441,REDACTED
06.12.2017,CHILDREN'S SERVICES,REDACTED PERSONAL DATA,453.24,ADOPTION PLACEMENTS & INTER AGENCY,PAYMENTS TO CARERS,2102754447,REDACTED
06.12.2017,CHILDREN'S SERVICES,REDACTED PERSONAL DATA,400.84,ADOPTION PLACEMENTS & INTER AGENCY,PAYMENTS TO CARERS,2102754449,REDACTED
06.12.2017,CHILDREN'S SERVICES,REDACTED PERSONAL DATA,255.22,ADOPTION PLACEMENTS & INTER AGENCY,PAYMENTS TO CARERS,2102754457,REDACTED
06.12.2017,CHILDREN'S SERVICES,REDACTED PERSONAL DATA,256.54,ADOPTION PLACEMENTS & INTER AGENCY,PAYMENTS TO CARERS,2102754459,REDACTED
06.12.2017,CHILDREN'S SERVICES,REDACTED PERSONAL DATA,375.54,ADOPTION PLACEMENTS & INTER AGENCY,PAYMENTS TO CARERS,2102754461,REDACTED
06.12.2017,CHILDREN'S SERVICES,REDACTED PERSONAL DATA,465.54,ADOPTION PLACEMENTS & INTER AGENCY,PAYMENTS TO CARERS,2102754463,REDACTED
06.12.2017,CHILDREN'S SERVICES,REDACTED PERSONAL DATA,767.68,ADOPTION PLACEMENTS & INTER AGENCY,PAYMENTS TO CARERS,2102754473,REDACTED
06.12.2017,CHILDREN'S SERVICES,REDACTED PERSONAL DATA,293,ADOPTION PLACEMENTS & INTER AGENCY,PAYMENTS TO CARERS,2102754475,REDACTED
06.12.2017,CHILDREN'S SERVICES,REDACTED PERSONAL DATA,319.36,ADOPTION PLACEMENTS & INTER AGENCY,PAYMENTS TO CARERS,2102754481,REDACTED
06.12.2017,CHILDREN'S SERVICES,REDACTED PERSONAL DATA,295.3,ADOPTION PLACEMENTS & INTER AGENCY,PAYMENTS TO CARERS,2102754483,REDACTED
06.12.2017,CHILDREN'S SERVICES,REDACTED PERSONAL DATA,282.76,ADOPTION PLACEMENTS & INTER AGENCY,PAYMENTS TO CARERS,2102754489,REDACTED
06.12.2017,CHILDREN'S SERVICES,REDACTED PERSONAL DATA,465.52,ADOPTION PLACEMENTS & INTER AGENCY,PAYMENTS TO CARERS,2102754491,REDACTED
06.12.2017,CHILDREN'S SERVICES,REDACTED PERSONAL DATA,293.98,ADOPTION PLACEMENTS & INTER AGENCY,PAYMENTS TO CARERS,2102754493,REDACTED
06.12.2017,CHILDREN'S SERVICES,REDACTED PERSONAL DATA,682.3,ADOPTION PLACEMENTS & INTER AGENCY,PAYMENTS TO CARERS,2102754495,REDACTED
06.12.2017,CHILDREN'S SERVICES,REDACTED PERSONAL DATA,254.13,ADOPTION PLACEMENTS & INTER AGENCY,PAYMENTS TO CARERS,2102754499,REDACTED
06.12.2017,CHILDREN'S SERVICES,REDACTED PERSONAL DATA,485.22,ADOPTION PLACEMENTS & INTER AGENCY,PAYMENTS TO CARERS,2102754503,REDACTED
06.12.2017,CHILDREN'S SERVICES,REDACTED PERSONAL DATA,653.06,ADOPTION PLACEMENTS & INTER AGENCY,PAYMENTS TO CARERS,2102754504,REDACTED
06.12.2017,CHILDREN'S SERVICES,REDACTED PERSONAL DATA,682.3,ADOPTION PLACEMENTS & INTER AGENCY,PAYMENTS TO CARERS,2102754506,REDACTED
06.12.2017,CHILDREN'S SERVICES,REDACTED PERSONAL DATA,420,ADOPTION PLACEMENTS & INTER AGENCY,PAYMENTS TO CARERS,5902280338,REDACTED
06.12.2017,CHILDREN'S SERVICES,GREATER LONDON FOSTERING,"4,281.30",AGENCY FOSTERING,EXTERNAL AGENCIES AND BODIES,2102754865,1000029184
06.12.2017,CHILDREN'S SERVICES,HORIZON FOSTERING SERVICES LTD,"2,992.50",AGENCY FOSTERING,EXTERNAL AGENCIES AND BODIES,2102754866,1000075679
06.12.2017,CHILDREN'S SERVICES,SHINING STARS FOSTERING AGENCY LTD,"3,428.40",AGENCY FOSTERING,EXTERNAL AGENCIES AND BODIES,2102754867,1000079431
06.12.2017,CHILDREN'S SERVICES,HORIZON FOSTERING SERVICES LTD,"3,150.00",AGENCY FOSTERING,EXTERNAL AGENCIES AND BODIES,2102754868,1000075679
06.12.2017,CHILDREN'S SERVICES,NEXT STEP FOSTERING SERVICES LTD,721.22,AGENCY FOSTERING,EXTERNAL AGENCIES AND BODIES,2102754869,1000044973
06.12.2017,CHILDREN'S SERVICES,HORIZON FOSTERING SERVICES LTD,"2,992.50",AGENCY FOSTERING,EXTERNAL AGENCIES AND BODIES,2102754870,1000075679
06.12.2017,CHILDREN'S SERVICES,FOLLOWING WHISPERS FAMILY SERVICE LTD,"6,315.00",AGENCY FOSTERING,EXTERNAL AGENCIES AND BODIES,2102754871,1000065611
06.12.2017,CHILDREN'S SERVICES,GREATER LONDON FOSTERING,"5,871.42",AGENCY FOSTERING,EXTERNAL AGENCIES AND BODIES,2102754872,1000029184
06.12.2017,CHILDREN'S SERVICES,GREATER LONDON FOSTERING,"3,085.50",AGENCY FOSTERING,EXTERNAL AGENCIES AND BODIES,2102754873,1000029184
06.12.2017,CHILDREN'S SERVICES,GREATER LONDON FOSTERING,"3,180.00",AGENCY FOSTERING,EXTERNAL AGENCIES AND BODIES,2102754874,1000029184
06.12.2017,CHILDREN'S SERVICES,HORIZON FOSTERING SERVICES LTD,"2,992.50",AGENCY FOSTERING,EXTERNAL AGENCIES AND BODIES,2102754875,1000075679
06.12.2017,CHILDREN'S SERVICES,GREATER LONDON FOSTERING,"3,180.00",AGENCY FOSTERING,EXTERNAL AGENCIES AND BODIES,2102754876,1000029184
06.12.2017,CHILDREN'S SERVICES,GREATER LONDON FOSTERING,"3,180.00",AGENCY FOSTERING,EXTERNAL AGENCIES AND BODIES,2102754877,1000029184
06.12.2017,CHILDREN'S SERVICES,GREATER LONDON FOSTERING,"3,116.40",AGENCY FOSTERING,EXTERNAL AGENCIES AND BODIES,2102754878,1000029184
06.12.2017,CHILDREN'S SERVICES,CHILDREN FIRST FOSTERING AGENCY LTD,"3,852.90",AGENCY FOSTERING,EXTERNAL AGENCIES AND BODIES,2102754879,1000060081
06.12.2017,CHILDREN'S SERVICES,HEALTHCARE & TRANSPORT SERVICES,693,AGENCY FOSTERING,HIRED VEHICLES,5902279735,1000042743
06.12.2017,CHILDREN'S SERVICES,REDACTED PERSONAL DATA,290.4,CARE GRPS  1 TO 3,OTHER PAYMENTS FOR CLIENTS,2102755015,REDACTED
06.12.2017,CHILDREN'S SERVICES,REDACTED PERSONAL DATA,268.82,CARE GRPS  4 TO 6,OTHER PAYMENTS FOR CLIENTS,2102755233,REDACTED
06.12.2017,CHILDREN'S SERVICES,REDACTED PERSONAL DATA,300,DISABILITY & HIV,ADDITIONAL PAYMENTS TO AGENCIES/CARERS,2102755016,REDACTED
06.12.2017,CHILDREN'S SERVICES,REDACTED PERSONAL DATA,300,DISABILITY & HIV,ADDITIONAL PAYMENTS TO AGENCIES/CARERS,2102755047,REDACTED
06.12.2017,CHILDREN'S SERVICES,REDACTED PERSONAL DATA,300,DISABILITY & HIV,ADDITIONAL PAYMENTS TO AGENCIES/CARERS,2102755203,REDACTED
06.12.2017,CHILDREN'S SERVICES,REDACTED PERSONAL DATA,300,DISABILITY & HIV,ADDITIONAL PAYMENTS TO AGENCIES/CARERS,2102755219,REDACTED
06.12.2017,CHILDREN'S SERVICES,REDACTED PERSONAL DATA,300,DISABILITY & HIV,ADDITIONAL PAYMENTS TO AGENCIES/CARERS,2102755228,REDACTED
06.12.2017,CHILDREN'S SERVICES,REDACTED PERSONAL DATA,400,DISABILITY & HIV,COMPUTER CONSUMABLES,2102755122,REDACTED
06.12.2017,CHILDREN'S SERVICES,REDACTED PERSONAL DATA,806.08,DISABILITY & HIV,PAYMENTS TO CARERS,2102754999,REDACTED
06.12.2017,CHILDREN'S SERVICES,REDACTED PERSONAL DATA,798.12,DISABILITY & HIV,PAYMENTS TO CARERS,2102755000,REDACTED
06.12.2017,CHILDREN'S SERVICES,REDACTED PERSONAL DATA,712.3,DISABILITY & HIV,PAYMENTS TO CARERS,2102755001,REDACTED
06.12.2017,CHILDREN'S SERVICES,REDACTED PERSONAL DATA,888.12,DISABILITY & HIV,PAYMENTS TO CARERS,2102755002,REDACTED
06.12.2017,CHILDREN'S SERVICES,REDACTED PERSONAL DATA,806.08,DISABILITY & HIV,PAYMENTS TO CARERS,2102755003,REDACTED
06.12.2017,CHILDREN'S SERVICES,REDACTED PERSONAL DATA,798.12,DISABILITY & HIV,PAYMENTS TO CARERS,2102755004,REDACTED
06.12.2017,CHILDREN'S SERVICES,REDACTED PERSONAL DATA,888.12,DISABILITY & HIV,PAYMENTS TO CARERS,2102755005,REDACTED
06.12.2017,CHILDREN'S SERVICES,REDACTED PERSONAL DATA,806.08,DISABILITY & HIV,PAYMENTS TO CARERS,2102755007,REDACTED
06.12.2017,CHILDREN'S SERVICES,REDACTED PERSONAL DATA,806.08,DISABILITY & HIV,PAYMENTS TO CARERS,2102755008,REDACTED
06.12.2017,CHILDREN'S SERVICES,REDACTED PERSONAL DATA,806.08,DISABILITY & HIV,PAYMENTS TO CARERS,2102755009,REDACTED
06.12.2017,CHILDREN'S SERVICES,REDACTED PERSONAL DATA,888.12,DISABILITY & HIV,PAYMENTS TO CARERS,2102755012,REDACTED
06.12.2017,CHILDREN'S SERVICES,REDACTED PERSONAL DATA,806.08,DISABILITY & HIV,PAYMENTS TO CARERS,2102755013,REDACTED
06.12.2017,CHILDREN'S SERVICES,REDACTED PERSONAL DATA,682.3,DISABILITY & HIV,PAYMENTS TO CARERS,2102755017,REDACTED
06.12.2017,CHILDREN'S SERVICES,REDACTED PERSONAL DATA,888.12,DISABILITY & HIV,PAYMENTS TO CARERS,2102755018,REDACTED
06.12.2017,CHILDREN'S SERVICES,REDACTED PERSONAL DATA,635.34,DISABILITY & HIV,PAYMENTS TO CARERS,2102755019,REDACTED
06.12.2017,CHILDREN'S SERVICES,REDACTED PERSONAL DATA,888.12,DISABILITY & HIV,PAYMENTS TO CARERS,2102755021,REDACTED
06.12.2017,CHILDREN'S SERVICES,REDACTED PERSONAL DATA,798.12,DISABILITY & HIV,PAYMENTS TO CARERS,2102755022,REDACTED
06.12.2017,CHILDREN'S SERVICES,REDACTED PERSONAL DATA,806.08,DISABILITY & HIV,PAYMENTS TO CARERS,2102755023,REDACTED
06.12.2017,CHILDREN'S SERVICES,REDACTED PERSONAL DATA,"1,379.08",DISABILITY & HIV,PAYMENTS TO CARERS,2102755024,REDACTED
06.12.2017,CHILDREN'S SERVICES,REDACTED PERSONAL DATA,888.12,DISABILITY & HIV,PAYMENTS TO CARERS,2102755027,REDACTED
06.12.2017,CHILDREN'S SERVICES,REDACTED PERSONAL DATA,806.08,DISABILITY & HIV,PAYMENTS TO CARERS,2102755029,REDACTED
06.12.2017,CHILDREN'S SERVICES,REDACTED PERSONAL DATA,712.3,DISABILITY & HIV,PAYMENTS TO CARERS,2102755030,REDACTED
06.12.2017,CHILDREN'S SERVICES,REDACTED PERSONAL DATA,806.08,DISABILITY & HIV,PAYMENTS TO CARERS,2102755031,REDACTED
06.12.2017,CHILDREN'S SERVICES,REDACTED PERSONAL DATA,712.3,DISABILITY & HIV,PAYMENTS TO CARERS,2102755032,REDACTED
06.12.2017,CHILDREN'S SERVICES,REDACTED PERSONAL DATA,806.08,DISABILITY & HIV,PAYMENTS TO CARERS,2102755033,REDACTED
06.12.2017,CHILDREN'S SERVICES,REDACTED PERSONAL DATA,712.3,DISABILITY & HIV,PAYMENTS TO CARERS,2102755034,REDACTED
06.12.2017,CHILDREN'S SERVICES,REDACTED PERSONAL DATA,682.3,DISABILITY & HIV,PAYMENTS TO CARERS,2102755035,REDACTED
06.12.2017,CHILDREN'S SERVICES,REDACTED PERSONAL DATA,888.12,DISABILITY & HIV,PAYMENTS TO CARERS,2102755036,REDACTED
06.12.2017,CHILDREN'S SERVICES,REDACTED PERSONAL DATA,806.08,DISABILITY & HIV,PAYMENTS TO CARERS,2102755037,REDACTED
06.12.2017,CHILDREN'S SERVICES,REDACTED PERSONAL DATA,712.3,DISABILITY & HIV,PAYMENTS TO CARERS,2102755038,REDACTED
06.12.2017,CHILDREN'S SERVICES,REDACTED PERSONAL DATA,665.34,DISABILITY & HIV,PAYMENTS TO CARERS,2102755040,REDACTED
06.12.2017,CHILDREN'S SERVICES,REDACTED PERSONAL DATA,854.28,DISABILITY & HIV,PAYMENTS TO CARERS,2102755041,REDACTED
06.12.2017,CHILDREN'S SERVICES,REDACTED PERSONAL DATA,"2,500.00",DISABILITY & HIV,PAYMENTS TO CARERS,2102755042,REDACTED
06.12.2017,CHILDREN'S SERVICES,REDACTED PERSONAL DATA,712.3,DISABILITY & HIV,PAYMENTS TO CARERS,2102755043,REDACTED
06.12.2017,CHILDREN'S SERVICES,REDACTED PERSONAL DATA,-342.05,DISABILITY & HIV,PAYMENTS TO CARERS,2102755044,REDACTED
06.12.2017,CHILDREN'S SERVICES,REDACTED PERSONAL DATA,858.12,DISABILITY & HIV,PAYMENTS TO CARERS,2102755045,REDACTED
06.12.2017,CHILDREN'S SERVICES,REDACTED PERSONAL DATA,888.12,DISABILITY & HIV,PAYMENTS TO CARERS,2102755048,REDACTED
06.12.2017,CHILDREN'S SERVICES,REDACTED PERSONAL DATA,682.3,DISABILITY & HIV,PAYMENTS TO CARERS,2102755049,REDACTED
06.12.2017,CHILDREN'S SERVICES,REDACTED PERSONAL DATA,798.12,DISABILITY & HIV,PAYMENTS TO CARERS,2102755052,REDACTED
06.12.2017,CHILDREN'S SERVICES,REDACTED PERSONAL DATA,682.3,DISABILITY & HIV,PAYMENTS TO CARERS,2102755053,REDACTED
06.12.2017,CHILDREN'S SERVICES,REDACTED PERSONAL DATA,806.08,DISABILITY & HIV,PAYMENTS TO CARERS,2102755054,REDACTED
06.12.2017,CHILDREN'S SERVICES,REDACTED PERSONAL DATA,"1,158.12",DISABILITY & HIV,PAYMENTS TO CARERS,2102755055,REDACTED
06.12.2017,CHILDREN'S SERVICES,REDACTED PERSONAL DATA,665.34,DISABILITY & HIV,PAYMENTS TO CARERS,2102755056,REDACTED
06.12.2017,CHILDREN'S SERVICES,REDACTED PERSONAL DATA,798.12,DISABILITY & HIV,PAYMENTS TO CARERS,2102755057,REDACTED
06.12.2017,CHILDREN'S SERVICES,REDACTED PERSONAL DATA,776.08,DISABILITY & HIV,PAYMENTS TO CARERS,2102755059,REDACTED
06.12.2017,CHILDREN'S SERVICES,REDACTED PERSONAL DATA,843.12,DISABILITY & HIV,PAYMENTS TO CARERS,2102755060,REDACTED
06.12.2017,CHILDREN'S SERVICES,REDACTED PERSONAL DATA,858.12,DISABILITY & HIV,PAYMENTS TO CARERS,2102755061,REDACTED
06.12.2017,CHILDREN'S SERVICES,REDACTED PERSONAL DATA,858.12,DISABILITY & HIV,PAYMENTS TO CARERS,2102755064,REDACTED
06.12.2017,CHILDREN'S SERVICES,REDACTED PERSONAL DATA,888.12,DISABILITY & HIV,PAYMENTS TO CARERS,2102755065,REDACTED
06.12.2017,CHILDREN'S SERVICES,REDACTED PERSONAL DATA,635.34,DISABILITY & HIV,PAYMENTS TO CARERS,2102755066,REDACTED
06.12.2017,CHILDREN'S SERVICES,REDACTED PERSONAL DATA,768.12,DISABILITY & HIV,PAYMENTS TO CARERS,2102755067,REDACTED
06.12.2017,CHILDREN'S SERVICES,REDACTED PERSONAL DATA,712.3,DISABILITY & HIV,PAYMENTS TO CARERS,2102755069,REDACTED
06.12.2017,CHILDREN'S SERVICES,REDACTED PERSONAL DATA,798.12,DISABILITY & HIV,PAYMENTS TO CARERS,2102755070,REDACTED
06.12.2017,CHILDREN'S SERVICES,REDACTED PERSONAL DATA,776.08,DISABILITY & HIV,PAYMENTS TO CARERS,2102755071,REDACTED
06.12.2017,CHILDREN'S SERVICES,REDACTED PERSONAL DATA,"1,473.26",DISABILITY & HIV,PAYMENTS TO CARERS,2102755072,REDACTED
06.12.2017,CHILDREN'S SERVICES,REDACTED PERSONAL DATA,712.3,DISABILITY & HIV,PAYMENTS TO CARERS,2102755073,REDACTED
06.12.2017,CHILDREN'S SERVICES,REDACTED PERSONAL DATA,888.12,DISABILITY & HIV,PAYMENTS TO CARERS,2102755074,REDACTED
06.12.2017,CHILDREN'S SERVICES,REDACTED PERSONAL DATA,798.12,DISABILITY & HIV,PAYMENTS TO CARERS,2102755075,REDACTED
06.12.2017,CHILDREN'S SERVICES,REDACTED PERSONAL DATA,888.12,DISABILITY & HIV,PAYMENTS TO CARERS,2102755076,REDACTED
06.12.2017,CHILDREN'S SERVICES,REDACTED PERSONAL DATA,991.42,DISABILITY & HIV,PAYMENTS TO CARERS,2102755078,REDACTED
06.12.2017,CHILDREN'S SERVICES,REDACTED PERSONAL DATA,776.08,DISABILITY & HIV,PAYMENTS TO CARERS,2102755079,REDACTED
06.12.2017,CHILDREN'S SERVICES,REDACTED PERSONAL DATA,682.3,DISABILITY & HIV,PAYMENTS TO CARERS,2102755080,REDACTED
06.12.2017,CHILDREN'S SERVICES,REDACTED PERSONAL DATA,991.42,DISABILITY & HIV,PAYMENTS TO CARERS,2102755081,REDACTED
06.12.2017,CHILDREN'S SERVICES,REDACTED PERSONAL DATA,682.3,DISABILITY & HIV,PAYMENTS TO CARERS,2102755082,REDACTED
06.12.2017,CHILDREN'S SERVICES,REDACTED PERSONAL DATA,712.3,DISABILITY & HIV,PAYMENTS TO CARERS,2102755087,REDACTED
06.12.2017,CHILDREN'S SERVICES,REDACTED PERSONAL DATA,806.08,DISABILITY & HIV,PAYMENTS TO CARERS,2102755093,REDACTED
06.12.2017,CHILDREN'S SERVICES,REDACTED PERSONAL DATA,665.34,DISABILITY & HIV,PAYMENTS TO CARERS,2102755094,REDACTED
06.12.2017,CHILDREN'S SERVICES,REDACTED PERSONAL DATA,798.12,DISABILITY & HIV,PAYMENTS TO CARERS,2102755095,REDACTED
06.12.2017,CHILDREN'S SERVICES,REDACTED PERSONAL DATA,806.08,DISABILITY & HIV,PAYMENTS TO CARERS,2102755097,REDACTED
06.12.2017,CHILDREN'S SERVICES,REDACTED PERSONAL DATA,888.12,DISABILITY & HIV,PAYMENTS TO CARERS,2102755099,REDACTED
06.12.2017,CHILDREN'S SERVICES,REDACTED PERSONAL DATA,888.12,DISABILITY & HIV,PAYMENTS TO CARERS,2102755100,REDACTED
06.12.2017,CHILDREN'S SERVICES,REDACTED PERSONAL DATA,798.12,DISABILITY & HIV,PAYMENTS TO CARERS,2102755101,REDACTED
06.12.2017,CHILDREN'S SERVICES,REDACTED PERSONAL DATA,806.08,DISABILITY & HIV,PAYMENTS TO CARERS,2102755102,REDACTED
06.12.2017,CHILDREN'S SERVICES,REDACTED PERSONAL DATA,712.3,DISABILITY & HIV,PAYMENTS TO CARERS,2102755103,REDACTED
06.12.2017,CHILDREN'S SERVICES,REDACTED PERSONAL DATA,888.12,DISABILITY & HIV,PAYMENTS TO CARERS,2102755104,REDACTED
06.12.2017,CHILDREN'S SERVICES,REDACTED PERSONAL DATA,888.12,DISABILITY & HIV,PAYMENTS TO CARERS,2102755105,REDACTED
06.12.2017,CHILDREN'S SERVICES,REDACTED PERSONAL DATA,949.76,DISABILITY & HIV,PAYMENTS TO CARERS,2102755106,REDACTED
06.12.2017,CHILDREN'S SERVICES,REDACTED PERSONAL DATA,776.08,DISABILITY & HIV,PAYMENTS TO CARERS,2102755107,REDACTED
06.12.2017,CHILDREN'S SERVICES,REDACTED PERSONAL DATA,806.08,DISABILITY & HIV,PAYMENTS TO CARERS,2102755108,REDACTED
06.12.2017,CHILDREN'S SERVICES,REDACTED PERSONAL DATA,888.12,DISABILITY & HIV,PAYMENTS TO CARERS,2102755109,REDACTED
06.12.2017,CHILDREN'S SERVICES,REDACTED PERSONAL DATA,806.08,DISABILITY & HIV,PAYMENTS TO CARERS,2102755110,REDACTED
06.12.2017,CHILDREN'S SERVICES,REDACTED PERSONAL DATA,682.3,DISABILITY & HIV,PAYMENTS TO CARERS,2102755111,REDACTED
06.12.2017,CHILDREN'S SERVICES,REDACTED PERSONAL DATA,665.35,DISABILITY & HIV,PAYMENTS TO CARERS,2102755112,REDACTED
06.12.2017,CHILDREN'S SERVICES,REDACTED PERSONAL DATA,888.12,DISABILITY & HIV,PAYMENTS TO CARERS,2102755114,REDACTED
06.12.2017,CHILDREN'S SERVICES,REDACTED PERSONAL DATA,712.3,DISABILITY & HIV,PAYMENTS TO CARERS,2102755115,REDACTED
06.12.2017,CHILDREN'S SERVICES,REDACTED PERSONAL DATA,888.12,DISABILITY & HIV,PAYMENTS TO CARERS,2102755117,REDACTED
06.12.2017,CHILDREN'S SERVICES,REDACTED PERSONAL DATA,806.08,DISABILITY & HIV,PAYMENTS TO CARERS,2102755118,REDACTED
06.12.2017,CHILDREN'S SERVICES,REDACTED PERSONAL DATA,665.34,DISABILITY & HIV,PAYMENTS TO CARERS,2102755119,REDACTED
06.12.2017,CHILDREN'S SERVICES,REDACTED PERSONAL DATA,712.3,DISABILITY & HIV,PAYMENTS TO CARERS,2102755121,REDACTED
06.12.2017,CHILDREN'S SERVICES,REDACTED PERSONAL DATA,991.48,DISABILITY & HIV,PAYMENTS TO CARERS,2102755123,REDACTED
06.12.2017,CHILDREN'S SERVICES,REDACTED PERSONAL DATA,888.12,DISABILITY & HIV,PAYMENTS TO CARERS,2102755128,REDACTED
06.12.2017,CHILDREN'S SERVICES,REDACTED PERSONAL DATA,888.12,DISABILITY & HIV,PAYMENTS TO CARERS,2102755130,REDACTED
06.12.2017,CHILDREN'S SERVICES,REDACTED PERSONAL DATA,806.08,DISABILITY & HIV,PAYMENTS TO CARERS,2102755132,REDACTED
06.12.2017,CHILDREN'S SERVICES,REDACTED PERSONAL DATA,776.08,DISABILITY & HIV,PAYMENTS TO CARERS,2102755134,REDACTED
06.12.2017,CHILDREN'S SERVICES,REDACTED PERSONAL DATA,888.12,DISABILITY & HIV,PAYMENTS TO CARERS,2102755135,REDACTED
06.12.2017,CHILDREN'S SERVICES,REDACTED PERSONAL DATA,665.34,DISABILITY & HIV,PAYMENTS TO CARERS,2102755136,REDACTED
06.12.2017,CHILDREN'S SERVICES,REDACTED PERSONAL DATA,665.34,DISABILITY & HIV,PAYMENTS TO CARERS,2102755137,REDACTED
06.12.2017,CHILDREN'S SERVICES,REDACTED PERSONAL DATA,768.12,DISABILITY & HIV,PAYMENTS TO CARERS,2102755138,REDACTED
06.12.2017,CHILDREN'S SERVICES,REDACTED PERSONAL DATA,902.3,DISABILITY & HIV,PAYMENTS TO CARERS,2102755139,REDACTED
06.12.2017,CHILDREN'S SERVICES,REDACTED PERSONAL DATA,806.08,DISABILITY & HIV,PAYMENTS TO CARERS,2102755140,REDACTED
06.12.2017,CHILDREN'S SERVICES,REDACTED PERSONAL DATA,806.08,DISABILITY & HIV,PAYMENTS TO CARERS,2102755141,REDACTED
06.12.2017,CHILDREN'S SERVICES,REDACTED PERSONAL DATA,806.08,DISABILITY & HIV,PAYMENTS TO CARERS,2102755142,REDACTED
06.12.2017,CHILDREN'S SERVICES,REDACTED PERSONAL DATA,"-2,500.00",DISABILITY & HIV,PAYMENTS TO CARERS,2102755143,REDACTED
06.12.2017,CHILDREN'S SERVICES,REDACTED PERSONAL DATA,712.3,DISABILITY & HIV,PAYMENTS TO CARERS,2102755144,REDACTED
06.12.2017,CHILDREN'S SERVICES,REDACTED PERSONAL DATA,682.3,DISABILITY & HIV,PAYMENTS TO CARERS,2102755145,REDACTED
06.12.2017,CHILDREN'S SERVICES,REDACTED PERSONAL DATA,806.08,DISABILITY & HIV,PAYMENTS TO CARERS,2102755146,REDACTED
06.12.2017,CHILDREN'S SERVICES,REDACTED PERSONAL DATA,858.12,DISABILITY & HIV,PAYMENTS TO CARERS,2102755149,REDACTED
06.12.2017,CHILDREN'S SERVICES,REDACTED PERSONAL DATA,806.08,DISABILITY & HIV,PAYMENTS TO CARERS,2102755150,REDACTED
06.12.2017,CHILDREN'S SERVICES,REDACTED PERSONAL DATA,806.08,DISABILITY & HIV,PAYMENTS TO CARERS,2102755151,REDACTED
06.12.2017,CHILDREN'S SERVICES,REDACTED PERSONAL DATA,888.12,DISABILITY & HIV,PAYMENTS TO CARERS,2102755152,REDACTED
06.12.2017,CHILDREN'S SERVICES,REDACTED PERSONAL DATA,682.3,DISABILITY & HIV,PAYMENTS TO CARERS,2102755153,REDACTED
06.12.2017,CHILDREN'S SERVICES,REDACTED PERSONAL DATA,806.08,DISABILITY & HIV,PAYMENTS TO CARERS,2102755154,REDACTED
06.12.2017,CHILDREN'S SERVICES,REDACTED PERSONAL DATA,776.08,DISABILITY & HIV,PAYMENTS TO CARERS,2102755155,REDACTED
06.12.2017,CHILDREN'S SERVICES,REDACTED PERSONAL DATA,712.3,DISABILITY & HIV,PAYMENTS TO CARERS,2102755157,REDACTED
06.12.2017,CHILDREN'S SERVICES,REDACTED PERSONAL DATA,806.08,DISABILITY & HIV,PAYMENTS TO CARERS,2102755158,REDACTED
06.12.2017,CHILDREN'S SERVICES,REDACTED PERSONAL DATA,798.12,DISABILITY & HIV,PAYMENTS TO CARERS,2102755159,REDACTED
06.12.2017,CHILDREN'S SERVICES,REDACTED PERSONAL DATA,806.08,DISABILITY & HIV,PAYMENTS TO CARERS,2102755160,REDACTED
06.12.2017,CHILDREN'S SERVICES,REDACTED PERSONAL DATA,682.3,DISABILITY & HIV,PAYMENTS TO CARERS,2102755161,REDACTED
06.12.2017,CHILDREN'S SERVICES,REDACTED PERSONAL DATA,712.3,DISABILITY & HIV,PAYMENTS TO CARERS,2102755162,REDACTED
06.12.2017,CHILDREN'S SERVICES,REDACTED PERSONAL DATA,798.12,DISABILITY & HIV,PAYMENTS TO CARERS,2102755165,REDACTED
06.12.2017,CHILDREN'S SERVICES,REDACTED PERSONAL DATA,665.34,DISABILITY & HIV,PAYMENTS TO CARERS,2102755166,REDACTED
06.12.2017,CHILDREN'S SERVICES,REDACTED PERSONAL DATA,858.12,DISABILITY & HIV,PAYMENTS TO CARERS,2102755167,REDACTED
06.12.2017,CHILDREN'S SERVICES,REDACTED PERSONAL DATA,682.3,DISABILITY & HIV,PAYMENTS TO CARERS,2102755168,REDACTED
06.12.2017,CHILDREN'S SERVICES,REDACTED PERSONAL DATA,806.08,DISABILITY & HIV,PAYMENTS TO CARERS,2102755169,REDACTED
06.12.2017,CHILDREN'S SERVICES,REDACTED PERSONAL DATA,888.12,DISABILITY & HIV,PAYMENTS TO CARERS,2102755170,REDACTED
06.12.2017,CHILDREN'S SERVICES,REDACTED PERSONAL DATA,682.3,DISABILITY & HIV,PAYMENTS TO CARERS,2102755171,REDACTED
06.12.2017,CHILDREN'S SERVICES,REDACTED PERSONAL DATA,776.08,DISABILITY & HIV,PAYMENTS TO CARERS,2102755172,REDACTED
06.12.2017,CHILDREN'S SERVICES,REDACTED PERSONAL DATA,798.12,DISABILITY & HIV,PAYMENTS TO CARERS,2102755173,REDACTED
06.12.2017,CHILDREN'S SERVICES,REDACTED PERSONAL DATA,817.4,DISABILITY & HIV,PAYMENTS TO CARERS,2102755174,REDACTED
06.12.2017,CHILDREN'S SERVICES,REDACTED PERSONAL DATA,-332.61,DISABILITY & HIV,PAYMENTS TO CARERS,2102755176,REDACTED
06.12.2017,CHILDREN'S SERVICES,REDACTED PERSONAL DATA,798.12,DISABILITY & HIV,PAYMENTS TO CARERS,2102755177,REDACTED
06.12.2017,CHILDREN'S SERVICES,REDACTED PERSONAL DATA,-292.41,DISABILITY & HIV,PAYMENTS TO CARERS,2102755178,REDACTED
06.12.2017,CHILDREN'S SERVICES,REDACTED PERSONAL DATA,-305.27,DISABILITY & HIV,PAYMENTS TO CARERS,2102755179,REDACTED
06.12.2017,CHILDREN'S SERVICES,REDACTED PERSONAL DATA,806.08,DISABILITY & HIV,PAYMENTS TO CARERS,2102755180,REDACTED
06.12.2017,CHILDREN'S SERVICES,REDACTED PERSONAL DATA,806.08,DISABILITY & HIV,PAYMENTS TO CARERS,2102755183,REDACTED
06.12.2017,CHILDREN'S SERVICES,REDACTED PERSONAL DATA,712.3,DISABILITY & HIV,PAYMENTS TO CARERS,2102755184,REDACTED
06.12.2017,CHILDREN'S SERVICES,REDACTED PERSONAL DATA,813.12,DISABILITY & HIV,PAYMENTS TO CARERS,2102755185,REDACTED
06.12.2017,CHILDREN'S SERVICES,REDACTED PERSONAL DATA,806.08,DISABILITY & HIV,PAYMENTS TO CARERS,2102755187,REDACTED
06.12.2017,CHILDREN'S SERVICES,REDACTED PERSONAL DATA,888.12,DISABILITY & HIV,PAYMENTS TO CARERS,2102755188,REDACTED
06.12.2017,CHILDREN'S SERVICES,REDACTED PERSONAL DATA,806.08,DISABILITY & HIV,PAYMENTS TO CARERS,2102755191,REDACTED
06.12.2017,CHILDREN'S SERVICES,REDACTED PERSONAL DATA,806.08,DISABILITY & HIV,PAYMENTS TO CARERS,2102755192,REDACTED
06.12.2017,CHILDREN'S SERVICES,REDACTED PERSONAL DATA,776.08,DISABILITY & HIV,PAYMENTS TO CARERS,2102755193,REDACTED
06.12.2017,CHILDREN'S SERVICES,REDACTED PERSONAL DATA,682.3,DISABILITY & HIV,PAYMENTS TO CARERS,2102755194,REDACTED
06.12.2017,CHILDREN'S SERVICES,REDACTED PERSONAL DATA,"1,094.60",DISABILITY & HIV,PAYMENTS TO CARERS,2102755196,REDACTED
06.12.2017,CHILDREN'S SERVICES,REDACTED PERSONAL DATA,806.08,DISABILITY & HIV,PAYMENTS TO CARERS,2102755197,REDACTED
06.12.2017,CHILDREN'S SERVICES,REDACTED PERSONAL DATA,635.34,DISABILITY & HIV,PAYMENTS TO CARERS,2102755198,REDACTED
06.12.2017,CHILDREN'S SERVICES,REDACTED PERSONAL DATA,712.3,DISABILITY & HIV,PAYMENTS TO CARERS,2102755199,REDACTED
06.12.2017,CHILDREN'S SERVICES,REDACTED PERSONAL DATA,806.08,DISABILITY & HIV,PAYMENTS TO CARERS,2102755200,REDACTED
06.12.2017,CHILDREN'S SERVICES,REDACTED PERSONAL DATA,712.3,DISABILITY & HIV,PAYMENTS TO CARERS,2102755201,REDACTED
06.12.2017,CHILDREN'S SERVICES,REDACTED PERSONAL DATA,806.08,DISABILITY & HIV,PAYMENTS TO CARERS,2102755202,REDACTED
06.12.2017,CHILDREN'S SERVICES,REDACTED PERSONAL DATA,991.42,DISABILITY & HIV,PAYMENTS TO CARERS,2102755204,REDACTED
06.12.2017,CHILDREN'S SERVICES,REDACTED PERSONAL DATA,776.08,DISABILITY & HIV,PAYMENTS TO CARERS,2102755205,REDACTED
06.12.2017,CHILDREN'S SERVICES,REDACTED PERSONAL DATA,888.12,DISABILITY & HIV,PAYMENTS TO CARERS,2102755206,REDACTED
06.12.2017,CHILDREN'S SERVICES,REDACTED PERSONAL DATA,798.12,DISABILITY & HIV,PAYMENTS TO CARERS,2102755207,REDACTED
06.12.2017,CHILDREN'S SERVICES,REDACTED PERSONAL DATA,798.12,DISABILITY & HIV,PAYMENTS TO CARERS,2102755209,REDACTED
06.12.2017,CHILDREN'S SERVICES,REDACTED PERSONAL DATA,"1,158.12",DISABILITY & HIV,PAYMENTS TO CARERS,2102755210,REDACTED
06.12.2017,CHILDREN'S SERVICES,REDACTED PERSONAL DATA,682.3,DISABILITY & HIV,PAYMENTS TO CARERS,2102755211,REDACTED
06.12.2017,CHILDREN'S SERVICES,REDACTED PERSONAL DATA,742.3,DISABILITY & HIV,PAYMENTS TO CARERS,2102755212,REDACTED
06.12.2017,CHILDREN'S SERVICES,REDACTED PERSONAL DATA,635.34,DISABILITY & HIV,PAYMENTS TO CARERS,2102755213,REDACTED
06.12.2017,CHILDREN'S SERVICES,REDACTED PERSONAL DATA,"1,294.60",DISABILITY & HIV,PAYMENTS TO CARERS,2102755215,REDACTED
06.12.2017,CHILDREN'S SERVICES,REDACTED PERSONAL DATA,806.08,DISABILITY & HIV,PAYMENTS TO CARERS,2102755216,REDACTED
06.12.2017,CHILDREN'S SERVICES,REDACTED PERSONAL DATA,776.08,DISABILITY & HIV,PAYMENTS TO CARERS,2102755217,REDACTED
06.12.2017,CHILDREN'S SERVICES,REDACTED PERSONAL DATA,712.3,DISABILITY & HIV,PAYMENTS TO CARERS,2102755218,REDACTED
06.12.2017,CHILDREN'S SERVICES,REDACTED PERSONAL DATA,781.93,DISABILITY & HIV,PAYMENTS TO CARERS,2102755220,REDACTED
06.12.2017,CHILDREN'S SERVICES,REDACTED PERSONAL DATA,735.53,DISABILITY & HIV,PAYMENTS TO CARERS,2102755221,REDACTED
06.12.2017,CHILDREN'S SERVICES,REDACTED PERSONAL DATA,806.08,DISABILITY & HIV,PAYMENTS TO CARERS,2102755222,REDACTED
06.12.2017,CHILDREN'S SERVICES,REDACTED PERSONAL DATA,806.08,DISABILITY & HIV,PAYMENTS TO CARERS,2102755223,REDACTED
06.12.2017,CHILDREN'S SERVICES,REDACTED PERSONAL DATA,665.34,DISABILITY & HIV,PAYMENTS TO CARERS,2102755224,REDACTED
06.12.2017,CHILDREN'S SERVICES,REDACTED PERSONAL DATA,776.08,DISABILITY & HIV,PAYMENTS TO CARERS,2102755227,REDACTED
06.12.2017,CHILDREN'S SERVICES,REDACTED PERSONAL DATA,665.34,DISABILITY & HIV,PAYMENTS TO CARERS,2102755229,REDACTED
06.12.2017,CHILDREN'S SERVICES,REDACTED PERSONAL DATA,712.3,DISABILITY & HIV,PAYMENTS TO CARERS,2102755230,REDACTED
06.12.2017,CHILDREN'S SERVICES,REDACTED PERSONAL DATA,924.2,DISABILITY & HIV,PAYMENTS TO CARERS,2102755232,REDACTED
06.12.2017,CHILDREN'S SERVICES,REDACTED PERSONAL DATA,855.2,DISABILITY & HIV,PAYMENTS TO CARERS,2102755234,REDACTED
06.12.2017,CHILDREN'S SERVICES,REDACTED PERSONAL DATA,888.12,DISABILITY & HIV,PAYMENTS TO CARERS,2102755235,REDACTED
06.12.2017,CHILDREN'S SERVICES,REDACTED PERSONAL DATA,888.12,DISABILITY & HIV,PAYMENTS TO CARERS,2102755236,REDACTED
06.12.2017,CHILDREN'S SERVICES,REDACTED PERSONAL DATA,902.3,DISABILITY & HIV,PAYMENTS TO CARERS,2102755237,REDACTED
06.12.2017,CHILDREN'S SERVICES,REDACTED PERSONAL DATA,876.4,DISABILITY & HIV,PAYMENTS TO CARERS,2102755238,REDACTED
06.12.2017,CHILDREN'S SERVICES,REDACTED PERSONAL DATA,806.08,DISABILITY & HIV,PAYMENTS TO CARERS,2102755239,REDACTED
06.12.2017,CHILDREN'S SERVICES,REDACTED PERSONAL DATA,635.34,DISABILITY & HIV,PAYMENTS TO CARERS,2102755240,REDACTED
06.12.2017,CHILDREN'S SERVICES,REDACTED PERSONAL DATA,798.12,DISABILITY & HIV,PAYMENTS TO CARERS,2102755242,REDACTED
06.12.2017,CHILDREN'S SERVICES,REDACTED PERSONAL DATA,858.12,DISABILITY & HIV,PAYMENTS TO CARERS,2102755244,REDACTED
06.12.2017,CHILDREN'S SERVICES,REDACTED PERSONAL DATA,496,DISABILITY & HIV,PAYMENTS TO CARERS,2102755248,REDACTED
06.12.2017,CHILDREN'S SERVICES,REDACTED PERSONAL DATA,265.8,DISABILITY & HIV,PAYMENTS TO CARERS,2102755249,REDACTED
06.12.2017,CHILDREN'S SERVICES,REDACTED PERSONAL DATA,300,DISABILITY & HIV,PAYMENTS TO CARERS,2102755250,REDACTED
06.12.2017,CHILDREN'S SERVICES,REDACTED PERSONAL DATA,464,DISABILITY & HIV,PAYMENTS TO CARERS,2102755252,REDACTED
06.12.2017,CHILDREN'S SERVICES,REDACTED PERSONAL DATA,672,DISABILITY & HIV,PAYMENTS TO CARERS,2102755254,REDACTED
06.12.2017,CHILDREN'S SERVICES,REDACTED PERSONAL DATA,432,DISABILITY & HIV,PAYMENTS TO CARERS,2102755258,REDACTED
06.12.2017,CHILDREN'S SERVICES,REDACTED PERSONAL DATA,604,DISABILITY & HIV,PAYMENTS TO CARERS,2102755260,REDACTED
06.12.2017,CHILDREN'S SERVICES,REDACTED PERSONAL DATA,600,DISABILITY & HIV,PAYMENTS TO CARERS,2102755268,REDACTED
06.12.2017,CHILDREN'S SERVICES,REDACTED PERSONAL DATA,556.99,DISABILITY & HIV,PAYMENTS TO CARERS,2102755273,REDACTED
06.12.2017,CHILDREN'S SERVICES,BRITISH GAS BUSINESS,257.52,EDUC&PARTICIPATION & TRAINING TEAM,GAS,5902280314,1000054825
06.12.2017,CHILDREN'S SERVICES,TARGET PSYCHOLOGY LTD,270.45,FAMILY ASSESSMENTS,RESIDENTIAL CARE,5902280385,1000080254
06.12.2017,CHILDREN'S SERVICES,REDACTED PERSONAL DATA,300,FRIENDS & FAMILY FOSTERING,ADDITIONAL PAYMENTS TO AGENCIES/CARERS,2102754974,REDACTED
06.12.2017,CHILDREN'S SERVICES,REDACTED PERSONAL DATA,300,FRIENDS & FAMILY FOSTERING,ADDITIONAL PAYMENTS TO AGENCIES/CARERS,2102754986,REDACTED
06.12.2017,CHILDREN'S SERVICES,REDACTED PERSONAL DATA,300,FRIENDS & FAMILY FOSTERING,ADDITIONAL PAYMENTS TO AGENCIES/CARERS,2102754990,REDACTED
06.12.2017,CHILDREN'S SERVICES,REDACTED PERSONAL DATA,582.3,FRIENDS & FAMILY FOSTERING,PAYMENTS TO CARERS,2102754957,REDACTED
06.12.2017,CHILDREN'S SERVICES,REDACTED PERSONAL DATA,329.42,FRIENDS & FAMILY FOSTERING,PAYMENTS TO CARERS,2102754958,REDACTED
06.12.2017,CHILDREN'S SERVICES,REDACTED PERSONAL DATA,682.3,FRIENDS & FAMILY FOSTERING,PAYMENTS TO CARERS,2102754959,REDACTED
06.12.2017,CHILDREN'S SERVICES,REDACTED PERSONAL DATA,776.08,FRIENDS & FAMILY FOSTERING,PAYMENTS TO CARERS,2102754960,REDACTED
06.12.2017,CHILDREN'S SERVICES,REDACTED PERSONAL DATA,476.08,FRIENDS & FAMILY FOSTERING,PAYMENTS TO CARERS,2102754961,REDACTED
06.12.2017,CHILDREN'S SERVICES,REDACTED PERSONAL DATA,682.3,FRIENDS & FAMILY FOSTERING,PAYMENTS TO CARERS,2102754963,REDACTED
06.12.2017,CHILDREN'S SERVICES,REDACTED PERSONAL DATA,578.12,FRIENDS & FAMILY FOSTERING,PAYMENTS TO CARERS,2102754964,REDACTED
06.12.2017,CHILDREN'S SERVICES,REDACTED PERSONAL DATA,476.08,FRIENDS & FAMILY FOSTERING,PAYMENTS TO CARERS,2102754965,REDACTED
06.12.2017,CHILDREN'S SERVICES,REDACTED PERSONAL DATA,776.08,FRIENDS & FAMILY FOSTERING,PAYMENTS TO CARERS,2102754966,REDACTED
06.12.2017,CHILDREN'S SERVICES,REDACTED PERSONAL DATA,776.08,FRIENDS & FAMILY FOSTERING,PAYMENTS TO CARERS,2102754967,REDACTED
06.12.2017,CHILDREN'S SERVICES,REDACTED PERSONAL DATA,476.08,FRIENDS & FAMILY FOSTERING,PAYMENTS TO CARERS,2102754968,REDACTED
06.12.2017,CHILDREN'S SERVICES,REDACTED PERSONAL DATA,682.3,FRIENDS & FAMILY FOSTERING,PAYMENTS TO CARERS,2102754969,REDACTED
06.12.2017,CHILDREN'S SERVICES,REDACTED PERSONAL DATA,476.08,FRIENDS & FAMILY FOSTERING,PAYMENTS TO CARERS,2102754970,REDACTED
06.12.2017,CHILDREN'S SERVICES,REDACTED PERSONAL DATA,682.3,FRIENDS & FAMILY FOSTERING,PAYMENTS TO CARERS,2102754971,REDACTED
06.12.2017,CHILDREN'S SERVICES,REDACTED PERSONAL DATA,776.08,FRIENDS & FAMILY FOSTERING,PAYMENTS TO CARERS,2102754972,REDACTED
06.12.2017,CHILDREN'S SERVICES,REDACTED PERSONAL DATA,682.3,FRIENDS & FAMILY FOSTERING,PAYMENTS TO CARERS,2102754973,REDACTED
06.12.2017,CHILDREN'S SERVICES,REDACTED PERSONAL DATA,776.08,FRIENDS & FAMILY FOSTERING,PAYMENTS TO CARERS,2102754975,REDACTED
06.12.2017,CHILDREN'S SERVICES,REDACTED PERSONAL DATA,768.12,FRIENDS & FAMILY FOSTERING,PAYMENTS TO CARERS,2102754976,REDACTED
06.12.2017,CHILDREN'S SERVICES,REDACTED PERSONAL DATA,335.34,FRIENDS & FAMILY FOSTERING,PAYMENTS TO CARERS,2102754978,REDACTED
06.12.2017,CHILDREN'S SERVICES,REDACTED PERSONAL DATA,682.3,FRIENDS & FAMILY FOSTERING,PAYMENTS TO CARERS,2102754979,REDACTED
06.12.2017,CHILDREN'S SERVICES,REDACTED PERSONAL DATA,767.66,FRIENDS & FAMILY FOSTERING,PAYMENTS TO CARERS,2102754980,REDACTED
06.12.2017,CHILDREN'S SERVICES,REDACTED PERSONAL DATA,635.34,FRIENDS & FAMILY FOSTERING,PAYMENTS TO CARERS,2102754981,REDACTED
06.12.2017,CHILDREN'S SERVICES,REDACTED PERSONAL DATA,682.3,FRIENDS & FAMILY FOSTERING,PAYMENTS TO CARERS,2102754982,REDACTED
06.12.2017,CHILDREN'S SERVICES,REDACTED PERSONAL DATA,682.3,FRIENDS & FAMILY FOSTERING,PAYMENTS TO CARERS,2102754983,REDACTED
06.12.2017,CHILDREN'S SERVICES,REDACTED PERSONAL DATA,382.3,FRIENDS & FAMILY FOSTERING,PAYMENTS TO CARERS,2102754984,REDACTED
06.12.2017,CHILDREN'S SERVICES,REDACTED PERSONAL DATA,682.3,FRIENDS & FAMILY FOSTERING,PAYMENTS TO CARERS,2102754985,REDACTED
06.12.2017,CHILDREN'S SERVICES,REDACTED PERSONAL DATA,476.08,FRIENDS & FAMILY FOSTERING,PAYMENTS TO CARERS,2102754987,REDACTED
06.12.2017,CHILDREN'S SERVICES,REDACTED PERSONAL DATA,682.3,FRIENDS & FAMILY FOSTERING,PAYMENTS TO CARERS,2102754988,REDACTED
06.12.2017,CHILDREN'S SERVICES,REDACTED PERSONAL DATA,582.3,FRIENDS & FAMILY FOSTERING,PAYMENTS TO CARERS,2102754989,REDACTED
06.12.2017,CHILDREN'S SERVICES,REDACTED PERSONAL DATA,476.08,FRIENDS & FAMILY FOSTERING,PAYMENTS TO CARERS,2102754991,REDACTED
06.12.2017,CHILDREN'S SERVICES,REDACTED PERSONAL DATA,682.3,FRIENDS & FAMILY FOSTERING,PAYMENTS TO CARERS,2102754992,REDACTED
06.12.2017,CHILDREN'S SERVICES,REDACTED PERSONAL DATA,682.3,FRIENDS & FAMILY FOSTERING,PAYMENTS TO CARERS,2102754993,REDACTED
06.12.2017,CHILDREN'S SERVICES,REDACTED PERSONAL DATA,"2,203.66",FRIENDS & FAMILY FOSTERING,PAYMENTS TO CARERS,2102754994,REDACTED
06.12.2017,CHILDREN'S SERVICES,RPMUSIC,450,LEA MUSIC SERVICE(310) - 5018566,CONSULTANTS SERVICES,5902280326,1000073207
06.12.2017,CHILDREN'S SERVICES,OMEGA MUSIC (UK) LTD,440,LEA MUSIC SERVICE(310) - 5018566,EQUIPMENT PURCHASE & REPAIR,5902280315,1000045628
06.12.2017,CHILDREN'S SERVICES,REDACTED PERSONAL DATA,"2,000.00",LEAVING CARE GRANT,OTHER PAYMENTS FOR CLIENTS,2102754857,REDACTED
06.12.2017,CHILDREN'S SERVICES,HM COURTS & TRIBUNALS SERVICE,"2,055.00",LEGAL,LEGAL FEES & COURT COSTS,2102755571,1000075260
06.12.2017,CHILDREN'S SERVICES,HM COURTS & TRIBUNALS SERVICE,"2,055.00",LEGAL,LEGAL FEES & COURT COSTS,2102755572,1000075260
06.12.2017,CHILDREN'S SERVICES,HM COURTS & TRIBUNALS SERVICE,"2,055.00",LEGAL,LEGAL FEES & COURT COSTS,2102755573,1000075260
06.12.2017,CHILDREN'S SERVICES,HM COURTS & TRIBUNALS SERVICE,"2,055.00",LEGAL,LEGAL FEES & COURT COSTS,2102755580,1000075260
06.12.2017,CHILDREN'S SERVICES,HM COURTS & TRIBUNALS SERVICE,"2,055.00",LEGAL,LEGAL FEES & COURT COSTS,2102755581,1000075260
06.12.2017,CHILDREN'S SERVICES,HM COURTS & TRIBUNALS SERVICE,"2,055.00",LEGAL,LEGAL FEES & COURT COSTS,2102755594,1000075260
06.12.2017,CHILDREN'S SERVICES,HM COURTS & TRIBUNALS SERVICE,"2,055.00",LEGAL,LEGAL FEES & COURT COSTS,2102755618,1000075260
06.12.2017,CHILDREN'S SERVICES,HM COURTS & TRIBUNALS SERVICE,"2,055.00",LEGAL,LEGAL FEES & COURT COSTS,2102755622,1000075260
06.12.2017,CHILDREN'S SERVICES,HM COURTS & TRIBUNALS SERVICE,"2,055.00",LEGAL,LEGAL FEES & COURT COSTS,2102755623,1000075260
06.12.2017,CHILDREN'S SERVICES,PEOPLE PLUS,924.91,PLACEMENTS FOR CHILDREN WITH SPEC NEEDS,PAYMENTS TO CLIENTS (DIRECT PAYMENTS),2102755274,1000061886
06.12.2017,CHILDREN'S SERVICES,YOUTH JUSTICE BOARD FOR ENGLAND & WALES,955,REMAND - YDA CUSTODY,RESIDENTIAL CARE,5902280367,1000034787
06.12.2017,CHILDREN'S SERVICES,YOUTH JUSTICE BOARD FOR ENGLAND & WALES,"3,056.00",REMAND - YDA CUSTODY,RESIDENTIAL CARE,5902280368,1000034787
06.12.2017,CHILDREN'S SERVICES,YOUTH JUSTICE BOARD FOR ENGLAND & WALES,-382,REMAND - YDA CUSTODY,RESIDENTIAL CARE,5902280390,1000034787
06.12.2017,CHILDREN'S SERVICES,YOUTH JUSTICE BOARD FOR ENGLAND & WALES,"4,824.00",REMAND - YDA SECURE,RESIDENTIAL CARE,5902280369,1000034787
06.12.2017,CHILDREN'S SERVICES,YOUTH JUSTICE BOARD FOR ENGLAND & WALES,536,REMAND - YDA SECURE,RESIDENTIAL CARE,5902280370,1000034787
06.12.2017,CHILDREN'S SERVICES,YOUTH JUSTICE BOARD FOR ENGLAND & WALES,"16,080.00",REMAND - YDA SECURE,RESIDENTIAL CARE,5902280371,1000034787
06.12.2017,CHILDREN'S SERVICES,REDACTED PERSONAL DATA,269.08,RESIDENCE ORDERS,PAYMENTS TO CARERS,2102754742,REDACTED
06.12.2017,CHILDREN'S SERVICES,REDACTED PERSONAL DATA,264.16,RESIDENCE ORDERS,PAYMENTS TO CARERS,2102754781,REDACTED
06.12.2017,CHILDREN'S SERVICES,CREATING CARE CHOICES LTD,"15,000.00",RESIDENTIAL,RESIDENTIAL CARE,2102754880,1000076738
06.12.2017,CHILDREN'S SERVICES,HOLIBROOK HOUSE LTD,"11,185.71",RESIDENTIAL,RESIDENTIAL CARE,2102754881,1000067873
06.12.2017,CHILDREN'S SERVICES,CREATING CARE CHOICES LTD,"18,000.00",RESIDENTIAL,RESIDENTIAL CARE,2102754882,1000076738
06.12.2017,CHILDREN'S SERVICES,CREATING CARE CHOICES LTD,"18,000.00",RESIDENTIAL,RESIDENTIAL CARE,2102754883,1000076738
06.12.2017,CHILDREN'S SERVICES,NORTH LAKES CHILDRENS SERVICES,"9,452.10",RESIDENTIAL,RESIDENTIAL CARE,2102754884,1000059568
06.12.2017,CHILDREN'S SERVICES,LIFELONG FAMILY LINIKS,367.5,S & FAM SUPP - PRAC GRP A SET 14-16,OTHER PAYMENTS FOR CLIENTS,5902280363,1000069342
06.12.2017,CHILDREN'S SERVICES,ARGOS BUSINESS SOLUTIONS LTD,302.01,S & FAM SUPP - PRAC GRP B SET 17-19,OTHER PAYMENTS FOR CLIENTS,5902280374,1000001734
06.12.2017,CHILDREN'S SERVICES,FUTURE FOUNDATIONS LTD,427.71,S24 CLA,EXTERNAL AGENCIES AND BODIES,2102745729,1000063272
06.12.2017,CHILDREN'S SERVICES,FUTURE FOUNDATIONS LTD,"3,175.28",S24 CLA,EXTERNAL AGENCIES AND BODIES,2102745745,1000063272
06.12.2017,CHILDREN'S SERVICES,FUTURE FOUNDATIONS LTD,"-7,712.39",S24 CLA,EXTERNAL AGENCIES AND BODIES,2102745770,1000063272
06.12.2017,CHILDREN'S SERVICES,FUTURE FOUNDATIONS LTD,778,S24 CLA,EXTERNAL AGENCIES AND BODIES,2102745773,1000063272
06.12.2017,CHILDREN'S SERVICES,FUTURE FOUNDATIONS LTD,"3,103.75",S24 CLA,EXTERNAL AGENCIES AND BODIES,2102745777,1000063272
06.12.2017,CHILDREN'S SERVICES,YOUNG FUTURES,"-1,087.80",S24 CLA,EXTERNAL AGENCIES AND BODIES,2102754908,1000059563
06.12.2017,CHILDREN'S SERVICES,YOUNG FUTURES,-874.2,S24 CLA,EXTERNAL AGENCIES AND BODIES,2102754909,1000059563
06.12.2017,CHILDREN'S SERVICES,YOUNG FUTURES,"2,142.90",S24 CLA,EXTERNAL AGENCIES AND BODIES,2102754910,1000059563
06.12.2017,CHILDREN'S SERVICES,FUTURE FOUNDATIONS LTD,"3,072.85",S24 CLA,EXTERNAL AGENCIES AND BODIES,2102754912,1000063272
06.12.2017,CHILDREN'S SERVICES,YOUNG FUTURES,"1,920.00",S24 CLA,EXTERNAL AGENCIES AND BODIES,2102754914,1000059563
06.12.2017,CHILDREN'S SERVICES,YOUNG FUTURES,"2,700.00",S24 CLA,EXTERNAL AGENCIES AND BODIES,2102754919,1000059563
06.12.2017,CHILDREN'S SERVICES,FUTURE FOUNDATIONS LTD,"1,667.14",S24 CLA,EXTERNAL AGENCIES AND BODIES,2102754920,1000063272
06.12.2017,CHILDREN'S SERVICES,FUTURE FOUNDATIONS LTD,"2,802.85",S24 CLA,EXTERNAL AGENCIES AND BODIES,2102754921,1000063272
06.12.2017,CHILDREN'S SERVICES,FUTURE FOUNDATIONS LTD,654,S24 CLA,EXTERNAL AGENCIES AND BODIES,2102754923,1000063272
06.12.2017,CHILDREN'S SERVICES,YOUNG FUTURES,"-1,809.31",S24 CLA,EXTERNAL AGENCIES AND BODIES,2102754924,1000059563
06.12.2017,CHILDREN'S SERVICES,YOUNG FUTURES,"3,857.10",S24 CLA,EXTERNAL AGENCIES AND BODIES,2102754927,1000059563
06.12.2017,CHILDREN'S SERVICES,YOUNG FUTURES,-874.2,S24 CLA,EXTERNAL AGENCIES AND BODIES,2102754928,1000059563
06.12.2017,CHILDREN'S SERVICES,TLK PROPERTY & INVESTMENT LTD,"1,080.00",S24 CLA,EXTERNAL AGENCIES AND BODIES,2102754931,1000065661
06.12.2017,CHILDREN'S SERVICES,YOUNG FUTURES,"3,257.10",S24 CLA,EXTERNAL AGENCIES AND BODIES,2102754932,1000059563
06.12.2017,CHILDREN'S SERVICES,TLK PROPERTY & INVESTMENT LTD,"1,080.00",S24 CLA,EXTERNAL AGENCIES AND BODIES,2102754933,1000065661
06.12.2017,CHILDREN'S SERVICES,YOUNG FUTURES,"2,142.90",S24 CLA,EXTERNAL AGENCIES AND BODIES,2102754934,1000059563
06.12.2017,CHILDREN'S SERVICES,CORNERSTONE CARE PARTNERSHIP LTD,"1,379.10",S24 CLA,EXTERNAL AGENCIES AND BODIES,2102754937,1000078888
06.12.2017,CHILDREN'S SERVICES,YOUNG FUTURES,"3,600.00",S24 CLA,EXTERNAL AGENCIES AND BODIES,2102754940,1000059563
06.12.2017,CHILDREN'S SERVICES,YOUNG FUTURES,-874.2,S24 CLA,EXTERNAL AGENCIES AND BODIES,2102754942,1000059563
06.12.2017,CHILDREN'S SERVICES,YOUNG FUTURES,"1,920.00",S24 CLA,EXTERNAL AGENCIES AND BODIES,2102754943,1000059563
06.12.2017,CHILDREN'S SERVICES,YOUNG FUTURES,"1,428.40",S24 CLA,EXTERNAL AGENCIES AND BODIES,2102754944,1000059563
06.12.2017,CHILDREN'S SERVICES,KRJ CARE SERVICES,"5,249.86",S24 CLA,EXTERNAL AGENCIES AND BODIES,2102754948,1000078922
06.12.2017,CHILDREN'S SERVICES,FUTURE FOUNDATIONS LTD,"1,864.28",S24 CLA,EXTERNAL AGENCIES AND BODIES,2102754949,1000063272
06.12.2017,CHILDREN'S SERVICES,YOUNG FUTURES,"2,700.00",S24 CLA,EXTERNAL AGENCIES AND BODIES,2102754950,1000059563
06.12.2017,CHILDREN'S SERVICES,YOUNG FUTURES,-874.2,S24 CLA,EXTERNAL AGENCIES AND BODIES,2102754951,1000059563
06.12.2017,CHILDREN'S SERVICES,FUTURE FOUNDATIONS LTD,555.71,S24 CLA,EXTERNAL AGENCIES AND BODIES,2102754953,1000063272
06.12.2017,CHILDREN'S SERVICES,YOUNG FUTURES,-526.5,S24 CLA,EXTERNAL AGENCIES AND BODIES,2102754955,1000059563
06.12.2017,CHILDREN'S SERVICES,FUTURE FOUNDATIONS LTD,"4,277.14",SEMI INDEPENDENT,EXTERNAL AGENCIES AND BODIES,2102754885,1000063272
06.12.2017,CHILDREN'S SERVICES,CAMERON SUPPORT SERVICES LTD,"4,368.83",SEMI INDEPENDENT,EXTERNAL AGENCIES AND BODIES,2102754886,1000079059
06.12.2017,CHILDREN'S SERVICES,FUTURE FOUNDATIONS LTD,"4,277.13",SEMI INDEPENDENT,EXTERNAL AGENCIES AND BODIES,2102754887,1000063272
06.12.2017,CHILDREN'S SERVICES,FUTURE FOUNDATIONS LTD,"4,277.14",SEMI INDEPENDENT,EXTERNAL AGENCIES AND BODIES,2102754890,1000063272
06.12.2017,CHILDREN'S SERVICES,FRESH START SUPPORT LTD,"13,714.29",SEMI INDEPENDENT,EXTERNAL AGENCIES AND BODIES,2102754891,1000070537
06.12.2017,CHILDREN'S SERVICES,CAMERON SUPPORT SERVICES LTD,"4,368.83",SEMI INDEPENDENT,EXTERNAL AGENCIES AND BODIES,2102754893,1000079059
06.12.2017,CHILDREN'S SERVICES,CAMERON SUPPORT SERVICES LTD,"4,227.90",SEMI INDEPENDENT,EXTERNAL AGENCIES AND BODIES,2102754894,1000079059
06.12.2017,CHILDREN'S SERVICES,CAMERON SUPPORT SERVICES LTD,"4,227.90",SEMI INDEPENDENT,EXTERNAL AGENCIES AND BODIES,2102754895,1000079059
06.12.2017,CHILDREN'S SERVICES,FUTURE FOUNDATIONS LTD,"4,277.13",SEMI INDEPENDENT,EXTERNAL AGENCIES AND BODIES,2102754896,1000063272
06.12.2017,CHILDREN'S SERVICES,YOUNG FUTURES,"2,142.60",SEMI INDEPENDENT,EXTERNAL AGENCIES AND BODIES,2102754899,1000059563
06.12.2017,CHILDREN'S SERVICES,FUTURE FOUNDATIONS LTD,"7,059.71",SEMI INDEPENDENT,EXTERNAL AGENCIES AND BODIES,2102754900,1000063272
06.12.2017,CHILDREN'S SERVICES,FUTURE FOUNDATIONS LTD,"4,277.14",SEMI INDEPENDENT,EXTERNAL AGENCIES AND BODIES,2102754902,1000063272
06.12.2017,CHILDREN'S SERVICES,FUTURE FOUNDATIONS LTD,"4,277.14",SEMI INDEPENDENT,EXTERNAL AGENCIES AND BODIES,2102754903,1000063272
06.12.2017,CHILDREN'S SERVICES,SILVER BIRCH CARE LTD,"16,268.57",SEMI INDEPENDENT,EXTERNAL AGENCIES AND BODIES,2102754926,1000076525
06.12.2017,CHILDREN'S SERVICES,SILVER BIRCH CARE LTD,"3,642.86",SEMI INDEPENDENT,EXTERNAL AGENCIES AND BODIES,2102754941,1000076525
06.12.2017,CHILDREN'S SERVICES,SILVER BIRCH CARE LTD,"3,535.71",SEMI INDEPENDENT,EXTERNAL AGENCIES AND BODIES,2102754954,1000076525
06.12.2017,CHILDREN'S SERVICES,FUTURE FOUNDATIONS LTD,257.15,SEMI INDEPENDENT,OTHER PAYMENTS FOR CLIENTS,2102754888,1000063272
06.12.2017,CHILDREN'S SERVICES,FUTURE FOUNDATIONS LTD,257.15,SEMI INDEPENDENT,OTHER PAYMENTS FOR CLIENTS,2102754897,1000063272
06.12.2017,CHILDREN'S SERVICES,FUTURE FOUNDATIONS LTD,257.14,SEMI INDEPENDENT,OTHER PAYMENTS FOR CLIENTS,2102754898,1000063272
06.12.2017,CHILDREN'S SERVICES,FUTURE FOUNDATIONS LTD,265.71,SEMI INDEPENDENT,OTHER PAYMENTS FOR CLIENTS,2102754901,1000063272
06.12.2017,CHILDREN'S SERVICES,SILVER BIRCH CARE LTD,437.14,SEMI INDEPENDENT,OTHER PAYMENTS FOR CLIENTS,2102754922,1000076525
06.12.2017,CHILDREN'S SERVICES,SILVER BIRCH CARE LTD,257.14,SEMI INDEPENDENT,OTHER PAYMENTS FOR CLIENTS,2102754935,1000076525
06.12.2017,CHILDREN'S SERVICES,SILVER BIRCH CARE LTD,257.14,SEMI INDEPENDENT,OTHER PAYMENTS FOR CLIENTS,2102754946,1000076525
06.12.2017,CHILDREN'S SERVICES,REDACTED PERSONAL DATA,360,SEMI INDEPENDENT,OTHER PAYMENTS FOR CLIENTS,2102754817,REDACTED
06.12.2017,CHILDREN'S SERVICES,REDACTED PERSONAL DATA,269.08,SPECIAL GUARDIANSHIP,PAYMENTS TO CARERS,2102754530,REDACTED
06.12.2017,CHILDREN'S SERVICES,REDACTED PERSONAL DATA,350,SPECIAL GUARDIANSHIP,PAYMENTS TO CARERS,2102754558,REDACTED
06.12.2017,CHILDREN'S SERVICES,REDACTED PERSONAL DATA,525,SPECIAL GUARDIANSHIP,PAYMENTS TO CARERS,2102754582,REDACTED
06.12.2017,CHILDREN'S SERVICES,REDACTED PERSONAL DATA,433.36,SPECIAL GUARDIANSHIP,PAYMENTS TO CARERS,2102754628,REDACTED
06.12.2017,CHILDREN'S SERVICES,REDACTED PERSONAL DATA,525,SPECIAL GUARDIANSHIP,PAYMENTS TO CARERS,2102754648,REDACTED
06.12.2017,CHILDREN'S SERVICES,REDACTED PERSONAL DATA,276.1,SPECIAL GUARDIANSHIP,PAYMENTS TO CARERS,2102754662,REDACTED
06.12.2017,CHILDREN'S SERVICES,REDACTED PERSONAL DATA,525,SPECIAL GUARDIANSHIP,PAYMENTS TO CARERS,2102754739,REDACTED
06.12.2017,CHILDREN'S SERVICES,REDACTED PERSONAL DATA,269.08,SPECIAL GUARDIANSHIP,PAYMENTS TO CARERS,2102754778,REDACTED
06.12.2017,CHILDREN'S SERVICES,REDACTED PERSONAL DATA,303.97,SPECIAL GUARDIANSHIP,PAYMENTS TO CARERS,2102754785,REDACTED
06.12.2017,CHILDREN'S SERVICES,REDACTED PERSONAL DATA,263.71,SPECIAL GUARDIANSHIP,PAYMENTS TO CARERS,2102754795,REDACTED
06.12.2017,CHILDREN'S SERVICES,REDACTED PERSONAL DATA,354.59,SPECIAL GUARDIANSHIP,PAYMENTS TO CARERS,2102754806,REDACTED
06.12.2017,CHILDREN'S SERVICES,REDACTED PERSONAL DATA,268.36,SPECIAL GUARDIANSHIP,PAYMENTS TO CARERS,2102754807,REDACTED
06.12.2017,CHILDREN'S SERVICES,ANCHOR FOSTERCARE,"4,167.60",STAYING PUT,EXTERNAL AGENCIES AND BODIES,2102754904,1000065675
06.12.2017,CHILDREN'S SERVICES,COMPASS FOSTERING LONDON LTD,"1,789.20",STAYING PUT,EXTERNAL AGENCIES AND BODIES,2102754905,1000057908
06.12.2017,CHILDREN'S SERVICES,AFFINITY FOSTERING SERVICES LTD,"1,692.90",STAYING PUT,EXTERNAL AGENCIES AND BODIES,2102754907,1000073184
06.12.2017,CHILDREN'S SERVICES,AFFINITY FOSTERING SERVICES LTD,"1,692.90",STAYING PUT,EXTERNAL AGENCIES AND BODIES,2102754915,1000073184
06.12.2017,CHILDREN'S SERVICES,REDACTED PERSONAL DATA,500,STAYING PUT,PAYMENTS TO CARERS,2102754998,REDACTED
06.12.2017,CHILDREN'S SERVICES,REDACTED PERSONAL DATA,500,STAYING PUT,PAYMENTS TO CARERS,2102755006,REDACTED
06.12.2017,CHILDREN'S SERVICES,REDACTED PERSONAL DATA,500,STAYING PUT,PAYMENTS TO CARERS,2102755011,REDACTED
06.12.2017,CHILDREN'S SERVICES,REDACTED PERSONAL DATA,798.12,STAYING PUT,PAYMENTS TO CARERS,2102755025,REDACTED
06.12.2017,CHILDREN'S SERVICES,REDACTED PERSONAL DATA,500,STAYING PUT,PAYMENTS TO CARERS,2102755039,REDACTED
06.12.2017,CHILDREN'S SERVICES,REDACTED PERSONAL DATA,500,STAYING PUT,PAYMENTS TO CARERS,2102755062,REDACTED
06.12.2017,CHILDREN'S SERVICES,REDACTED PERSONAL DATA,500,STAYING PUT,PAYMENTS TO CARERS,2102755063,REDACTED
06.12.2017,CHILDREN'S SERVICES,REDACTED PERSONAL DATA,500,STAYING PUT,PAYMENTS TO CARERS,2102755083,REDACTED
06.12.2017,CHILDREN'S SERVICES,REDACTED PERSONAL DATA,500,STAYING PUT,PAYMENTS TO CARERS,2102755086,REDACTED
06.12.2017,CHILDREN'S SERVICES,REDACTED PERSONAL DATA,500,STAYING PUT,PAYMENTS TO CARERS,2102755088,REDACTED
06.12.2017,CHILDREN'S SERVICES,REDACTED PERSONAL DATA,500,STAYING PUT,PAYMENTS TO CARERS,2102755091,REDACTED
06.12.2017,CHILDREN'S SERVICES,REDACTED PERSONAL DATA,"1,107.14",STAYING PUT,PAYMENTS TO CARERS,2102755113,REDACTED
06.12.2017,CHILDREN'S SERVICES,REDACTED PERSONAL DATA,500,STAYING PUT,PAYMENTS TO CARERS,2102755116,REDACTED
06.12.2017,CHILDREN'S SERVICES,REDACTED PERSONAL DATA,500,STAYING PUT,PAYMENTS TO CARERS,2102755124,REDACTED
06.12.2017,CHILDREN'S SERVICES,REDACTED PERSONAL DATA,500,STAYING PUT,PAYMENTS TO CARERS,2102755127,REDACTED
06.12.2017,CHILDREN'S SERVICES,REDACTED PERSONAL DATA,500,STAYING PUT,PAYMENTS TO CARERS,2102755133,REDACTED
06.12.2017,CHILDREN'S SERVICES,REDACTED PERSONAL DATA,500,STAYING PUT,PAYMENTS TO CARERS,2102755147,REDACTED
06.12.2017,CHILDREN'S SERVICES,REDACTED PERSONAL DATA,500,STAYING PUT,PAYMENTS TO CARERS,2102755163,REDACTED
06.12.2017,CHILDREN'S SERVICES,REDACTED PERSONAL DATA,500,STAYING PUT,PAYMENTS TO CARERS,2102755164,REDACTED
06.12.2017,CHILDREN'S SERVICES,REDACTED PERSONAL DATA,500,STAYING PUT,PAYMENTS TO CARERS,2102755181,REDACTED
06.12.2017,CHILDREN'S SERVICES,REDACTED PERSONAL DATA,373.46,STAYING PUT,PAYMENTS TO CARERS,2102755182,REDACTED
06.12.2017,CHILDREN'S SERVICES,REDACTED PERSONAL DATA,500,STAYING PUT,PAYMENTS TO CARERS,2102755186,REDACTED
06.12.2017,CHILDREN'S SERVICES,REDACTED PERSONAL DATA,500,STAYING PUT,PAYMENTS TO CARERS,2102755226,REDACTED
06.12.2017,CHILDREN'S SERVICES,REDACTED PERSONAL DATA,500,STAYING PUT,PAYMENTS TO CARERS,2102755231,REDACTED
06.12.2017,CHILDREN'S SERVICES,REDACTED PERSONAL DATA,500,STAYING PUT,PAYMENTS TO CARERS,2102755245,REDACTED
06.12.2017,CHILDREN'S SERVICES,YOUNG FUTURES,-874.2,UASC SECTION 24,EXTERNAL AGENCIES AND BODIES,2102754911,1000059563
06.12.2017,CHILDREN'S SERVICES,STEP AHEAD SERVICES LTD,434.32,UASC SECTION 24,EXTERNAL AGENCIES AND BODIES,2102754913,1000036544
06.12.2017,CHILDREN'S SERVICES,YOUNG FUTURES,"2,142.90",UASC SECTION 24,EXTERNAL AGENCIES AND BODIES,2102754918,1000059563
06.12.2017,CHILDREN'S SERVICES,STEP AHEAD SERVICES LTD,"1,682.99",UASC SECTION 24,EXTERNAL AGENCIES AND BODIES,2102754939,1000036544
06.12.2017,CHILDREN'S SERVICES,YOUNG FUTURES,"2,142.90",UASC SECTION 24,EXTERNAL AGENCIES AND BODIES,2102754945,1000059563
06.12.2017,CHILDREN'S SERVICES,REDACTED PERSONAL DATA,"1,750.00",UNIVERSITY SUPPORT,RESIDENTIAL CARE,2102754823,REDACTED
06.12.2017,COMMUNITIES,THAMES REACH EMPOLYMENT ACADEMY,476,COMMUNITY COUNCILS TEAM,HIRE OF FACILITIES AND EQUIPMENT,5902280303,1000071468
06.12.2017,COMMUNITIES,THE BLUE ELEPHANT THEATRE,"3,250.00",JOINT SECURITY INITIATIVES,GRANTS,5902280304,1000007570
06.12.2017,CUSTOMER EXPERIENCE HGF,MADEIRA FLOWER LTD T/A MARIAS KITCHEN,358,HEAD OF CUSTOMER EXPERIENCE,REFRESHMENTS FOR MEETINGS,5902279325,1000058840
06.12.2017,CUSTOMER EXPERIENCE HGF,HM COURTS & TRIBUNALS SERVICE,255,HOMELESS & HOUSING OPTIONS MGT,LEGAL FEES & COURT COSTS,2102755569,1000075260
06.12.2017,ELECTORAL SVCES,FINANCIAL DATA MANAGEMENT PLC,"3,594.43",ELECTORAL REGISTRATION,POSTAGES,5902280438,1000031759
06.12.2017,ELECTORAL SVCES,FINANCIAL DATA MANAGEMENT PLC,"2,574.82",ELECTORAL REGISTRATION,POSTAGES,5902280439,1000031759
06.12.2017,ELECTORAL SVCES,FINANCIAL DATA MANAGEMENT PLC,"6,319.34",ELECTORAL REGISTRATION,POSTAGES,5902280440,1000031759
06.12.2017,ELECTORAL SVCES,FINANCIAL DATA MANAGEMENT PLC,782.43,ELECTORAL REGISTRATION,PRINTING,5902280331,1000031759
06.12.2017,ELECTORAL SVCES,FINANCIAL DATA MANAGEMENT PLC,"2,076.82",ELECTORAL REGISTRATION,PRINTING,5902280437,1000031759
06.12.2017,ENVIRONMENT AND LEISURE,TGMS LTD,"1,700.00",CAPITAL PS (LEISURE),CONSTRUCTION FEES  - EXTERNAL,5902280403,1000066904
06.12.2017,ENVIRONMENT AND LEISURE,HARRISON DESIGN DEVELOPMENT LTD,"3,270.00",CAPITAL PS (LEISURE),CONSTRUCTION FEES  - EXTERNAL,5902280405,1000066896
06.12.2017,ENVIRONMENT AND LEISURE,TGMS LTD,570,CAPITAL PS (LEISURE),CONSTRUCTION FEES  - EXTERNAL,5902280407,1000066904
06.12.2017,ENVIRONMENT AND SOCIAL REGENERATION,PPG ARCHITECTURAL COATINGS,299.6,STORES,CREDITORS -GR/IR CLEARING ACCOUNT,5902280420,11063178
06.12.2017,ENVIRONMENT AND SOCIAL REGENERATION,PPG ARCHITECTURAL COATINGS,304,STORES,CREDITORS -GR/IR CLEARING ACCOUNT,5902280420,11063178
06.12.2017,ENVIRONMENT AND SOCIAL REGENERATION,PPG ARCHITECTURAL COATINGS,467.5,STORES,CREDITORS -GR/IR CLEARING ACCOUNT,5902280420,11063178
06.12.2017,ENVIRONMENT AND SOCIAL REGENERATION,PPG ARCHITECTURAL COATINGS,467.5,STORES,CREDITORS -GR/IR CLEARING ACCOUNT,5902280420,11063178
06.12.2017,ENVIRONMENT AND SOCIAL REGENERATION,PPG ARCHITECTURAL COATINGS,688.8,STORES,CREDITORS -GR/IR CLEARING ACCOUNT,5902280420,11063178
06.12.2017,ENVIRONMENT AND SOCIAL REGENERATION,THAMESMEAD BUSINESS SERVICES  LTD,339.12,STORES,CREDITORS -GR/IR CLEARING ACCOUNT,5902280422,1011709
06.12.2017,ENVIRONMENT AND SOCIAL REGENERATION,SMI GROUP,317,STORES,CREDITORS -GR/IR CLEARING ACCOUNT,5902280430,1000076606
06.12.2017,ENVIRONMENT AND SOCIAL REGENERATION,SMI GROUP,377,STORES,CREDITORS -GR/IR CLEARING ACCOUNT,5902280430,1000076606
06.12.2017,ENVIRONMENT DIRECTORATE,POSTURITE (UK) LTD,683.62,PARKING OVERHEADS,FURNITURE PURCHASE & REPAIR,5902280423,11015468
06.12.2017,ENVIRONMENT DIRECTORATE,GLASDON UK LIMITED,"1,000.00",STREET CLEANING-GENERAL,MATERIALS,5902280343,1024073
06.12.2017,HOUSING,EURO CONTRACTS (LONDON) LTD,"2,046.00",EUROCONTRACTS,MANUAL CREDITORS,5902280327,1000060089
06.12.2017,HOUSING AND MODERNISATION,STAFFINFO,"4,543.00",CUSTOMER SUPPORT,MISCELLANEOUS EXPENSES,INTERNATIONAL PAYMENT,-
06.12.2017,HOUSING HRA,KEEPMOAT REGENERATION (APOLLO) LTD,"53,422.69",CAPITAL PS (HRA),CONSTRUCTION FEES  - EXTERNAL,5902280361,1000013358
06.12.2017,HOUSING HRA,POTTER RAPER AND PARTNERS,"3,103.05",CAPITAL PS (HRA),CONSTRUCTION MAIN CONTRACT -CERTIFICATED,5902280308,1009369
06.12.2017,LEISURE DIRECTORATE,GLS EDUCATIONAL SUPPLIES LTD,299.98,BURGESS SPORTS CENTRE,OTHER CLEANING,5902280359,1318282
06.12.2017,LEISURE DIRECTORATE,GLS EDUCATIONAL SUPPLIES LTD,685.67,BURGESS SPORTS CENTRE,OTHER CLEANING,5902280408,1318282
06.12.2017,LEISURE DIRECTORATE,KENT COUNTY COUNCIL - LASER,"1,092.64",CANADA WATER LIBRARY,GAS,5902280401,1000012926
06.12.2017,LEISURE DIRECTORATE,ACTIVE COMMUNITIES NETWORK LTD,"6,667.00",GRANTS COMMISSIONING,GRANTS,5902280328,1000057408
06.12.2017,LEISURE DIRECTORATE,THE OXFORD & BERMONDSEY CLUB,"7,167.00",GRANTS COMMISSIONING,GRANTS,5902280353,1698761
06.12.2017,LEISURE DIRECTORATE,DOG KENNEL HILL ADVENTURE PLAYGROUND LTD,"7,167.00",GRANTS COMMISSIONING,GRANTS,5902280366,11134529
06.12.2017,LEISURE DIRECTORATE,GROVE VALE YOUTH CLUB,"1,250.00",GRANTS COMMISSIONING,GRANTS,5902280376,1173906
06.12.2017,LEISURE DIRECTORATE,BETHWIN ROAD ADVENTURE PLAYGROUND,"7,167.00",GRANTS COMMISSIONING,GRANTS,5902280406,1087842
06.12.2017,LEISURE DIRECTORATE,WESTPOINT TELEVISION,532,LOCAL HISTORY LIBRARY,EQUIPMENT PURCHASE & REPAIR,5902280330,1000078957
06.12.2017,LEISURE DIRECTORATE,ZAUN LTD,520,PECKHAM RYE AREA TEAM,OTHER R&M,5902280411,1000030488
06.12.2017,LEISURE DIRECTORATE,BOOKSCAN LIBRARY SERVICES,517.37,STOCK SERVICES,BOOKS & PUBLICATIONS,5902280329,1001312
06.12.2017,LEISURE DIRECTORATE,ASKEWS & HOLTS LIBRARY SERVICES LTD,"1,051.20",STOCK SERVICES,BOOKS & PUBLICATIONS,5902280332,1494168
06.12.2017,LEISURE DIRECTORATE,ASKEWS & HOLTS LIBRARY SERVICES LTD,"4,487.18",STOCK SERVICES,BOOKS & PUBLICATIONS,5902280335,1494168
06.12.2017,MODERNISATION HGF,TFL TELESALES / OYSTER FULFILMENT,700,160 TOOLEY ST.,PUBLIC TRANSPORT,5902280750,1000059727
06.12.2017,MODERNISATION HGF,TFL TELESALES / OYSTER FULFILMENT,-700,160 TOOLEY ST.,PUBLIC TRANSPORT,5902280775,1000059727
06.12.2017,MODERNISATION HGF,ELIESHA TRAINING LTD,"1,585.00",ORG TRANSFORMATION,TRAINING,5902280357,1000079900
06.12.2017,MODERNISATION HGF,KIER FACILITIES SERVICES LTD,"129,790.08",PLANNED FM SERVICES BY KIER,BUILDING R&M,5902280298,1000040603
06.12.2017,MODERNISATION HGF,KIER FACILITIES SERVICES LTD,"3,909.83",PLANNED FM SERVICES BY KIER,BUILDING R&M,5902280301,1000040603
06.12.2017,MODERNISATION HGF,BRITISH TELECOM,"17,617.19",TECHNOLOGY,DATA COMMUNICATIONS,5902280394,1088091
06.12.2017,MODERNISATION HGF,BRITISH TELECOM,"26,175.73",TECHNOLOGY,DATA COMMUNICATIONS,5902280397,1088091
06.12.2017,PLANNING AND TRANSPORT,HM COURTS & TRIBUNALS SERVICE,255,S106 & CIL ADMINISTRATION,LEGAL FEES & COURT COSTS,2102755565,1000075260
06.12.2017,REGENERATION,TREE SHEPHERD LTD,"5,675.00",MASTER PLAN-H/WAY & TRANS INTERCHANGE,PROFESSIONAL FEES,5902280322,1000076895
06.12.2017,RESIDENT SERVICES,HM COURTS & TRIBUNALS SERVICE,355,OPERATIONS/OFFICES ACCOMMODATION,LEGAL FEES & COURT COSTS,2102755583,1000075260
06.12.2017,RESIDENT SERVICES,HM COURTS & TRIBUNALS SERVICE,355,OPERATIONS/OFFICES ACCOMMODATION,LEGAL FEES & COURT COSTS,2102755585,1000075260
06.12.2017,RESIDENT SERVICES,HM COURTS & TRIBUNALS SERVICE,355,OPERATIONS/OFFICES ACCOMMODATION,LEGAL FEES & COURT COSTS,2102755586,1000075260
06.12.2017,RESIDENT SERVICES,HM COURTS & TRIBUNALS SERVICE,355,OPERATIONS/OFFICES ACCOMMODATION,LEGAL FEES & COURT COSTS,2102755591,1000075260
06.12.2017,RESIDENT SERVICES,HM COURTS & TRIBUNALS SERVICE,355,OPERATIONS/OFFICES ACCOMMODATION,LEGAL FEES & COURT COSTS,2102755619,1000075260
06.12.2017,RESIDENT SERVICES,HM COURTS & TRIBUNALS SERVICE,355,OPERATIONS/OFFICES ACCOMMODATION,LEGAL FEES & COURT COSTS,2102755620,1000075260
06.12.2017,RESIDENT SERVICES,APCOA PARKING (UK) LTD,"10,136.62",PARKING CONTROL,OTHER CONTRACTORS,5902280360,1718645
06.12.2017,RESIDENT SERVICES,D SINGH PROPERTIES LTD,"2,232.00",TA PLACEMENTS,EXTERNAL AGENCIES AND BODIES,5902280355,1000068030
06.12.2017,SOUTHWARK BUILDING SERVICES,PEARSON GLAZING LIMITED,270,ROTHERHITHE DAY TO DAY - WET TRADER,MATERIALS,5902280418,1891977
06.12.2017,SOUTHWARK BUILDING SERVICES,VPS (UK) LTD,268.9,VOIDS OVERHEADS,SECURITY SERVICES,5902280380,1000040614
07.12.2017,ADULT SOCIAL CARE,REDACTED PERSONAL DATA,500,APPOINTEESHIPS,OTHER PAYMENTS FOR CLIENTS,5902280517,REDACTED
07.12.2017,ADULT SOCIAL CARE,REDACTED PERSONAL DATA,"1,125.12",LD LTS 18-64,SUPPORTED LIVING,2102755291,REDACTED
07.12.2017,ADULT SOCIAL CARE,REDACTED PERSONAL DATA,"3,682.28",LD LTS 18-64,SUPPORTED LIVING,2102755518,REDACTED
07.12.2017,ADULT SOCIAL CARE,ALZHEIMER'S SOCIETY,"10,365.00",LOCAL COMMUNITY OFFER,EXTERNAL AGENCIES AND BODIES,5902208090,1000005179
07.12.2017,ADULT SOCIAL CARE,ALZHEIMER'S SOCIETY,"7,250.00",LOCAL COMMUNITY OFFER,EXTERNAL AGENCIES AND BODIES,5902208091,1000005179
07.12.2017,ADULT SOCIAL CARE,ALZHEIMER'S SOCIETY,"8,250.00",LOCAL COMMUNITY OFFER,EXTERNAL AGENCIES AND BODIES,5902208091,1000005179
07.12.2017,ADULT SOCIAL CARE,ALZHEIMER'S SOCIETY,"20,000.00",LOCAL COMMUNITY OFFER,EXTERNAL AGENCIES AND BODIES,5902208092,1000005179
07.12.2017,ADULT SOCIAL CARE,ALZHEIMER'S SOCIETY,"-10,365.00",LOCAL COMMUNITY OFFER,EXTERNAL AGENCIES AND BODIES,5902280848,1000005179
07.12.2017,ADULT SOCIAL CARE,YOUTH GRACES (UK) LTD,665.3,MEM LTS 65+,HOMECARE - C&V,2102755340,1000072524
07.12.2017,ADULT SOCIAL CARE,METRO HOMECARE LTD,441.28,MEM LTS 65+,HOMECARE - SPOT,2102755330,1000070695
07.12.2017,ADULT SOCIAL CARE,YOUTH GRACES (UK) LTD,261.98,MEM LTS 65+,HOMECARE - SPOT,2102755513,1000072524
07.12.2017,ADULT SOCIAL CARE,METRO HOMECARE LTD,944.62,MH LTS 18-64,HOMECARE - SPOT,2102755524,1000070695
07.12.2017,ADULT SOCIAL CARE,HOPE WORLDWIDE,"2,340.00",MH LTS 18-64,PLACEMENTS - REHAB,2102755516,1000047835
07.12.2017,ADULT SOCIAL CARE,METRO HOMECARE LTD,337.86,MH LTS 65+,HOMECARE - C&V,2102755322,1000070695
07.12.2017,ADULT SOCIAL CARE,METRO HOMECARE LTD,965.3,MH LTS 65+,HOMECARE - C&V,2102755528,1000070695
07.12.2017,ADULT SOCIAL CARE,METRO HOMECARE LTD,268.91,MH LTS 65+,HOMECARE - SPOT,2102755297,1000070695
07.12.2017,ADULT SOCIAL CARE,METRO HOMECARE LTD,434.39,MH LTS 65+,HOMECARE - SPOT,2102755306,1000070695
07.12.2017,ADULT SOCIAL CARE,YOUTH GRACES (UK) LTD,263.16,MH LTS 65+,HOMECARE - SPOT,2102755377,1000072524
07.12.2017,ADULT SOCIAL CARE,METRO HOMECARE LTD,448.18,MH LTS 65+,HOMECARE - SPOT,2102755531,1000070695
07.12.2017,ADULT SOCIAL CARE,METRO HOMECARE LTD,337.86,PHY LTS 18-64,HOMECARE - C&V,2102755317,1000070695
07.12.2017,ADULT SOCIAL CARE,YOUTH GRACES (UK) LTD,279.24,PHY LTS 18-64,HOMECARE - C&V,2102755497,1000072524
07.12.2017,ADULT SOCIAL CARE,YOUTH GRACES (UK) LTD,413.68,PHY LTS 18-64,HOMECARE - C&V,2102755512,1000072524
07.12.2017,ADULT SOCIAL CARE,METRO HOMECARE LTD,358.54,PHY LTS 18-64,HOMECARE - SPOT,2102755293,1000070695
07.12.2017,ADULT SOCIAL CARE,METRO HOMECARE LTD,317.17,PHY LTS 18-64,HOMECARE - SPOT,2102755295,1000070695
07.12.2017,ADULT SOCIAL CARE,METRO HOMECARE LTD,275.8,PHY LTS 18-64,HOMECARE - SPOT,2102755301,1000070695
07.12.2017,ADULT SOCIAL CARE,METRO HOMECARE LTD,262.01,PHY LTS 18-64,HOMECARE - SPOT,2102755302,1000070695
07.12.2017,ADULT SOCIAL CARE,METRO HOMECARE LTD,482.65,PHY LTS 18-64,HOMECARE - SPOT,2102755311,1000070695
07.12.2017,ADULT SOCIAL CARE,METRO HOMECARE LTD,317.17,PHY LTS 18-64,HOMECARE - SPOT,2102755314,1000070695
07.12.2017,ADULT SOCIAL CARE,YOUTH GRACES (UK) LTD,462.04,PHY LTS 18-64,HOMECARE - SPOT,2102755348,1000072524
07.12.2017,ADULT SOCIAL CARE,YOUTH GRACES (UK) LTD,420.76,PHY LTS 18-64,HOMECARE - SPOT,2102755363,1000072524
07.12.2017,ADULT SOCIAL CARE,YOUTH GRACES (UK) LTD,261.98,PHY LTS 18-64,HOMECARE - SPOT,2102755491,1000072524
07.12.2017,ADULT SOCIAL CARE,METRO HOMECARE LTD,406.81,PHY LTS 18-64,HOMECARE - SPOT,2102755522,1000070695
07.12.2017,ADULT SOCIAL CARE,METRO HOMECARE LTD,"1,351.42",PHY LTS 18-64,HOMECARE - SPOT,2102755533,1000070695
07.12.2017,ADULT SOCIAL CARE,YOUTH GRACES (UK) LTD,555.1,PHY LTS 65+,HOMECARE - C&V,2102755350,1000072524
07.12.2017,ADULT SOCIAL CARE,METRO HOMECARE LTD,337.86,PHY LTS 65+,HOMECARE - C&V,2102755527,1000070695
07.12.2017,ADULT SOCIAL CARE,METRO HOMECARE LTD,648.13,PHY LTS 65+,HOMECARE - SPOT,2102755296,1000070695
07.12.2017,ADULT SOCIAL CARE,METRO HOMECARE LTD,275.8,PHY LTS 65+,HOMECARE - SPOT,2102755300,1000070695
07.12.2017,ADULT SOCIAL CARE,METRO HOMECARE LTD,434.39,PHY LTS 65+,HOMECARE - SPOT,2102755305,1000070695
07.12.2017,ADULT SOCIAL CARE,METRO HOMECARE LTD,"1,027.36",PHY LTS 65+,HOMECARE - SPOT,2102755307,1000070695
07.12.2017,ADULT SOCIAL CARE,METRO HOMECARE LTD,"1,103.20",PHY LTS 65+,HOMECARE - SPOT,2102755308,1000070695
07.12.2017,ADULT SOCIAL CARE,METRO HOMECARE LTD,310.28,PHY LTS 65+,HOMECARE - SPOT,2102755309,1000070695
07.12.2017,ADULT SOCIAL CARE,METRO HOMECARE LTD,910.14,PHY LTS 65+,HOMECARE - SPOT,2102755310,1000070695
07.12.2017,ADULT SOCIAL CARE,METRO HOMECARE LTD,337.86,PHY LTS 65+,HOMECARE - SPOT,2102755312,1000070695
07.12.2017,ADULT SOCIAL CARE,METRO HOMECARE LTD,386.12,PHY LTS 65+,HOMECARE - SPOT,2102755313,1000070695
07.12.2017,ADULT SOCIAL CARE,METRO HOMECARE LTD,565.39,PHY LTS 65+,HOMECARE - SPOT,2102755315,1000070695
07.12.2017,ADULT SOCIAL CARE,METRO HOMECARE LTD,379.23,PHY LTS 65+,HOMECARE - SPOT,2102755318,1000070695
07.12.2017,ADULT SOCIAL CARE,METRO HOMECARE LTD,386.12,PHY LTS 65+,HOMECARE - SPOT,2102755320,1000070695
07.12.2017,ADULT SOCIAL CARE,METRO HOMECARE LTD,429.49,PHY LTS 65+,HOMECARE - SPOT,2102755334,1000070695
07.12.2017,ADULT SOCIAL CARE,METRO HOMECARE LTD,337.86,PHY LTS 65+,HOMECARE - SPOT,2102755336,1000070695
07.12.2017,ADULT SOCIAL CARE,METRO HOMECARE LTD,551.6,PHY LTS 65+,HOMECARE - SPOT,2102755338,1000070695
07.12.2017,ADULT SOCIAL CARE,YOUTH GRACES (UK) LTD,434.56,PHY LTS 65+,HOMECARE - SPOT,2102755346,1000072524
07.12.2017,ADULT SOCIAL CARE,YOUTH GRACES (UK) LTD,503.41,PHY LTS 65+,HOMECARE - SPOT,2102755371,1000072524
07.12.2017,ADULT SOCIAL CARE,YOUTH GRACES (UK) LTD,675.78,PHY LTS 65+,HOMECARE - SPOT,2102755383,1000072524
07.12.2017,ADULT SOCIAL CARE,YOUTH GRACES (UK) LTD,331,PHY LTS 65+,HOMECARE - SPOT,2102755387,1000072524
07.12.2017,ADULT SOCIAL CARE,YOUTH GRACES (UK) LTD,255.2,PHY LTS 65+,HOMECARE - SPOT,2102755397,1000072524
07.12.2017,ADULT SOCIAL CARE,YOUTH GRACES (UK) LTD,282.66,PHY LTS 65+,HOMECARE - SPOT,2102755409,1000072524
07.12.2017,ADULT SOCIAL CARE,YOUTH GRACES (UK) LTD,399.91,PHY LTS 65+,HOMECARE - SPOT,2102755411,1000072524
07.12.2017,ADULT SOCIAL CARE,METRO HOMECARE LTD,475.76,PHY LTS 65+,HOMECARE - SPOT,2102755521,1000070695
07.12.2017,ADULT SOCIAL CARE,METRO HOMECARE LTD,317.17,PHY LTS 65+,HOMECARE - SPOT,2102755526,1000070695
07.12.2017,ADULT SOCIAL CARE,METRO HOMECARE LTD,310.28,PHY LTS 65+,HOMECARE - SPOT,2102755534,1000070695
07.12.2017,ADULT SOCIAL CARE,METRO HOMECARE LTD,979.09,PHY LTS 65+,HOMECARE - SPOT,2102755535,1000070695
07.12.2017,ADULT SOCIAL CARE,METRO HOMECARE LTD,"1,061.83",PHY LTS 65+,HOMECARE - SPOT,2102755537,1000070695
07.12.2017,ADULT SOCIAL CARE,METRO HOMECARE LTD,337.86,PHY LTS 65+,HOMECARE - SPOT,2102755538,1000070695
07.12.2017,ADULT SOCIAL CARE,4SONS CARE ASSESSMENT LTD,411,SAFEGUARDING TEAM,OTHER CONTRACTORS,5902279876,1000074727
07.12.2017,ADULT SOCIAL CARE,METRO HOMECARE LTD,282.7,SEN LTS 18-64,HOMECARE - SPOT,2102755294,1000070695
07.12.2017,ADULT SOCIAL CARE,METRO HOMECARE LTD,544.71,SOCIAL ISOLATION,HOMECARE - SPOT,2102755520,1000070695
07.12.2017,ADULT SOCIAL CARE,THE PROVIDENCE PROJECTS REHAB GROUP,"2,395.71",SUB LTS 18-64,PLACEMENTS - REHAB,2102755292,1000032991
07.12.2017,ADULT SOCIAL CARE,KAIROS COMMUNITY TRUST,"7,200.00",SUB LTS 18-64,PLACEMENTS - REHAB,2102755517,1000025479
07.12.2017,ASSET MANAGEMENT,TOTAL HYGIENE LTD,295,ADAPTATIONS,BUILDING R&M,5902280689,1793628
07.12.2017,ASSET MANAGEMENT,MALCOLM G SANKEY,960,DISREPAIR,LEGAL FEES & COURT COSTS,2102689093,1000057822
07.12.2017,ASSET MANAGEMENT,MALCOLM G SANKEY,420,DISREPAIR,LEGAL FEES & COURT COSTS,2102689095,1000057822
07.12.2017,ASSET MANAGEMENT,MALCOLM G SANKEY,420,DISREPAIR,LEGAL FEES & COURT COSTS,2102689096,1000057822
07.12.2017,ASSET MANAGEMENT,MALCOLM G SANKEY,420,DISREPAIR,LEGAL FEES & COURT COSTS,2102689097,1000057822
07.12.2017,ASSET MANAGEMENT,MALCOLM G SANKEY,420,DISREPAIR,LEGAL FEES & COURT COSTS,2102707308,1000057822
07.12.2017,ASSET MANAGEMENT,MALCOLM G SANKEY,600,DISREPAIR,LEGAL FEES & COURT COSTS,2102707309,1000057822
07.12.2017,ASSET MANAGEMENT,MALCOLM G SANKEY,-420,DISREPAIR,LEGAL FEES & COURT COSTS,2102756029,1000057822
07.12.2017,ASSET MANAGEMENT,ESENDEX LTD,"7,000.00",ENG CONTRACTS (NORTH),DATA COMMUNICATIONS,5902279322,1000056911
07.12.2017,ASSET MANAGEMENT,SCS TECHNOLOGIES LTD,"1,767.26",ENG CONTRACTS (NORTH),TV AERIALS R&M,5902280597,1000069919
07.12.2017,CENTRAL FUNCTIONS,KENT COUNTY COUNCIL - LASER,"10,701.64",HEATING ACCOUNT,ELECTRICITY,5902279680,1000012926
07.12.2017,CENTRAL FUNCTIONS,KENT COUNTY COUNCIL - LASER,"47,562.98",HEATING ACCOUNT,ELECTRICITY,5902279680,1000012926
07.12.2017,CHIEF EXECUTIVE,NEILCOTT SPECIAL WORKS LTD,"321,949.67",CAPITAL PS (REGEN),CONSTRUCTION FEES,2102755654,3000000770
07.12.2017,CHIEF EXECUTIVE,NEILCOTT SPECIAL WORKS LTD,"354,011.22",CAPITAL PS (REGEN),CONSTRUCTION FEES,2102755655,3000000770
07.12.2017,CHIEF EXECUTIVE,SANCHEZ BENTON ARCHITECTS LTD,"1,500.00",CAPITAL PS (REGEN),CONSTRUCTION FEES - ARCHITECT,5902280634,1000080367
07.12.2017,CHIEF EXECUTIVE,CONWAY AECOM LTD,"43,309.36",CAPITAL PS (REGEN),CONSTRUCTION SUB CONTRACT -CERTIFICATED,2102755653,3000001595
07.12.2017,CHIEF EXECUTIVE'S OFFICE,EAST DULWICH COMMUNITY CENTRE,380,MEMBERS EXPENSES,HIRE OF ROOMS/HALLS,5902280481,1968633
07.12.2017,CHILDREN AND ADULT,FAITHFUL & GOULD,"36,044.75",CAPITAL PS (EDUCATION),CONSTRUCTION FEES  - EXTERNAL,5902280603,1000061390
07.12.2017,CHILDREN AND ADULT,CBS MAINTENANCE SERVICES LTD,"6,531.97",CAPITAL PS (EDUCATION),CONSTRUCTION MAIN CONTRACT,2102755561,3000001518
07.12.2017,CHILDREN AND ADULT,CBS MAINTENANCE SERVICES LTD,"6,693.63",CAPITAL PS (EDUCATION),CONSTRUCTION MAIN CONTRACT,2102755562,3000001518
07.12.2017,CHILDREN AND ADULT,CORELOGIC LTD,"11,500.00",CAPITAL PS (STRAT SERV),ICT ACQUISITION,5902280486,1000074359
07.12.2017,CHILDREN AND ADULT,DE BOORDER SCHOOTS,820.25,LEGAL,LEGAL & COURT FEES,INTERNATIONAL PAYMENT,-
07.12.2017,CHILDREN'S SERVICES,PETE CRONIN PHOTOGRAPHY & VIDEO,775,ADOPTION PLACEMENTS & INTER AGENCY,EXTERNAL AGENCIES AND BODIES,5902280541,1000049115
07.12.2017,CHILDREN'S SERVICES,REDACTED PERSONAL DATA,279,BISHOPS HOUSE EARLY YEARS CENTRE,ENVIRONMENT NON-SPECIFIC GRANTS,5902280386,REDACTED
07.12.2017,CHILDREN'S SERVICES,INTERSERVE HEALTHCARE,257.62,HOME 2 SCHOOL TRANSPORT,AGENCY STAFF,5902280467,1000049612
07.12.2017,CHILDREN'S SERVICES,INTERSERVE HEALTHCARE,534.5,HOME 2 SCHOOL TRANSPORT,AGENCY STAFF,5902280471,1000049612
07.12.2017,CHILDREN'S SERVICES,TRANSPORT TRADING LTD,"-4,651.10",HOME 2 SCHOOL TRANSPORT,PUBLIC TRANSPORT,2102754266,11252077
07.12.2017,CHILDREN'S SERVICES,TRANSPORT TRADING LTD,"-3,611.10",HOME 2 SCHOOL TRANSPORT,PUBLIC TRANSPORT,2102754267,11252077
07.12.2017,CHILDREN'S SERVICES,TRANSPORT TRADING LTD,"-1,466.40",HOME 2 SCHOOL TRANSPORT,PUBLIC TRANSPORT,5902246086,11252077
07.12.2017,CHILDREN'S SERVICES,TRANSPORT TRADING LTD,-681,HOME 2 SCHOOL TRANSPORT,PUBLIC TRANSPORT,5902246086,11252077
07.12.2017,CHILDREN'S SERVICES,TRANSPORT TRADING LTD,"-4,356.00",HOME 2 SCHOOL TRANSPORT,PUBLIC TRANSPORT,5902246396,11252077
07.12.2017,CHILDREN'S SERVICES,TRANSPORT TRADING LTD,"-1,323.30",HOME 2 SCHOOL TRANSPORT,PUBLIC TRANSPORT,5902246396,11252077
07.12.2017,CHILDREN'S SERVICES,TRANSPORT TRADING LTD,-944.1,HOME 2 SCHOOL TRANSPORT,PUBLIC TRANSPORT,5902246396,11252077
07.12.2017,CHILDREN'S SERVICES,TRANSPORT TRADING LTD,530.1,HOME 2 SCHOOL TRANSPORT,PUBLIC TRANSPORT,5902258499,11252077
07.12.2017,CHILDREN'S SERVICES,TRANSPORT TRADING LTD,"1,014.90",HOME 2 SCHOOL TRANSPORT,PUBLIC TRANSPORT,5902258499,11252077
07.12.2017,CHILDREN'S SERVICES,TRANSPORT TRADING LTD,"1,649.00",HOME 2 SCHOOL TRANSPORT,PUBLIC TRANSPORT,5902258499,11252077
07.12.2017,CHILDREN'S SERVICES,TRANSPORT TRADING LTD,"2,904.00",HOME 2 SCHOOL TRANSPORT,PUBLIC TRANSPORT,5902258499,11252077
07.12.2017,COMMUNITIES,ACE FAST LETTINGS LTD,"1,050.00",NO RECOURSE TO PUBLIC FUNDS,ACCOMMODATION CHARGES,5902280466,1000076780
07.12.2017,COMMUNITIES,NORBURY PROPERTY SERVICES,"5,130.00",NO RECOURSE TO PUBLIC FUNDS,ACCOMMODATION CHARGES,5902280476,1000075566
07.12.2017,COMMUNITIES,WILLOW ESTATE AGENTS (LONDON) LTD,"10,146.00",NO RECOURSE TO PUBLIC FUNDS,ACCOMMODATION CHARGES,5902280482,1000060607
07.12.2017,COMMUNITIES,HOMELY HOUSING LTD,"57,731.00",NO RECOURSE TO PUBLIC FUNDS,ACCOMMODATION CHARGES,5902280489,1000050013
07.12.2017,COMMUNITIES,FINEFAIR LTD,"3,739.20",NO RECOURSE TO PUBLIC FUNDS,ACCOMMODATION CHARGES,5902280502,1000075570
07.12.2017,COMMUNITIES,PPROPERTYPLACEBOOK LTD,"24,846.00",NO RECOURSE TO PUBLIC FUNDS,ACCOMMODATION CHARGES,5902280520,1000077817
07.12.2017,COMMUNITIES,GROVE HOTEL LTD,"1,650.00",NO RECOURSE TO PUBLIC FUNDS,ACCOMMODATION CHARGES,5902280522,1000043663
07.12.2017,COMMUNITIES,D SINGH PROPERTIES LTD,"4,470.00",NO RECOURSE TO PUBLIC FUNDS,ACCOMMODATION CHARGES,5902280526,1000068030
07.12.2017,COMMUNITIES,GOLDSTONE ESTATES LTD,"12,240.00",NO RECOURSE TO PUBLIC FUNDS,ACCOMMODATION CHARGES,5902280567,1000076548
07.12.2017,COMMUNITIES,CYBERSTYLE LETTINGS LTD,"2,010.00",NO RECOURSE TO PUBLIC FUNDS,ACCOMMODATION CHARGES,5902280577,1000079319
07.12.2017,COMMUNITIES,A & M PROPERTY AND CONSTRUCTION LTD,"7,940.00",NO RECOURSE TO PUBLIC FUNDS,ACCOMMODATION CHARGES,5902280580,1000014564
07.12.2017,COMMUNITIES,RS REAL ESTATE LTD,"9,000.00",NO RECOURSE TO PUBLIC FUNDS,ACCOMMODATION CHARGES,5902280587,1000072485
07.12.2017,COMMUNITIES,EDEN ESTATES LONDON LTD,"1,680.00",NO RECOURSE TO PUBLIC FUNDS,ACCOMMODATION CHARGES,5902280666,1000061217
07.12.2017,COMMUNITIES,EDEN ESTATES LONDON LTD,"1,050.00",NO RECOURSE TO PUBLIC FUNDS,ACCOMMODATION CHARGES,5902280679,1000061217
07.12.2017,COMMUNITIES,CROWN HOUSING LTD,"10,530.00",NO RECOURSE TO PUBLIC FUNDS,ACCOMMODATION CHARGES,5902280696,1000075070
07.12.2017,COMMUNITIES,STENFORD PROPERTY LTD,"1,230.00",NO RECOURSE TO PUBLIC FUNDS,SECTION 17 PAYMENTS TO AGENCIES/CARERS,5902280523,1000074759
07.12.2017,CUSTOMER EXPERIENCE HGF,VEOLIA ES (UK)LTD,"1,000.00",COMPLAINTS,COMPUTER MAINTENANCE,5902280525,1824835
07.12.2017,CUSTOMER EXPERIENCE HGF,IMPERIAL COLLEGE PROJECTS LTD,600,CORONER'S,PROFESSIONAL FEES,5902280701,1000080106
07.12.2017,CUSTOMER EXPERIENCE HGF,IMPERIAL COLLEGE PROJECTS LTD,448,CORONER'S,PROFESSIONAL FEES,5902280702,1000080106
07.12.2017,CUSTOMER EXPERIENCE HGF,IMPERIAL COLLEGE PROJECTS LTD,448,CORONER'S,PROFESSIONAL FEES,5902280703,1000080106
07.12.2017,CUSTOMER EXPERIENCE HGF,KENT COUNTY COUNCIL - LASER,"2,648.24",CUSTOMER SUPPORT,ELECTRICITY,5902280533,1000012926
07.12.2017,CUSTOMER EXPERIENCE HGF,JAMES MARTIN MUGWANYA T/A JOHN SMITH REMOVALS,535,HOMELESS PROJECTS,EXTERNAL AGENCIES AND BODIES,5902280508,1000078552
07.12.2017,CUSTOMER EXPERIENCE HGF,SOUTH OF THE RIVER INVESTMENTS LTD,"115,339.00",NIGHTLY TA (NSC),EXTERNAL AGENCIES AND BODIES,5902280441,1000073638
07.12.2017,ENVIRONMENT AND LEISURE,ROBINSON LOW FRANCIS LLP,"2,820.00",CAPITAL PS (LEISURE),CONSTRUCTION FEES  - EXTERNAL,5902280451,1000079930
07.12.2017,ENVIRONMENT AND LEISURE,ROBINSON LOW FRANCIS LLP,"3,097.25",CAPITAL PS (LEISURE),CONSTRUCTION FEES  - EXTERNAL,5902280451,1000079930
07.12.2017,ENVIRONMENT AND LEISURE,ERECT ARCHITECTURE LTD,"1,501.50",CAPITAL PS (LEISURE),CONSTRUCTION FEES  - EXTERNAL,5902280699,1000078487
07.12.2017,ENVIRONMENT AND LEISURE,BLAKEDOWN LANDSCAPES,"6,685.45",CAPITAL PS (LEISURE),CONSTRUCTION MAIN CONTRACT,2102755560,4005399
07.12.2017,ENVIRONMENT AND LEISURE,WARWICK LANDSCAPING LTD,"14,617.88",CAPITAL PS (LEISURE),CONSTRUCTION MAIN CONTRACT,2102755563,3000001705
07.12.2017,ENVIRONMENT DIRECTORATE,DAWSON RENTALS SWEEPERS,700.64,COMMERCIAL VEH CTRL A/C,HIRED VEHICLES,5902280556,1000068168
07.12.2017,ENVIRONMENT DIRECTORATE,DAWSON RENTALS SWEEPERS,"1,499.36",COMMERCIAL VEH CTRL A/C,HIRED VEHICLES,5902280556,1000068168
07.12.2017,ENVIRONMENT DIRECTORATE,DAWSON RENTALS SWEEPERS,"2,200.00",COMMERCIAL VEH CTRL A/C,HIRED VEHICLES,5902280568,1000068168
07.12.2017,ENVIRONMENT DIRECTORATE,DAWSON RENTALS SWEEPERS,"2,200.00",COMMERCIAL VEH CTRL A/C,HIRED VEHICLES,5902280572,1000068168
07.12.2017,ENVIRONMENT DIRECTORATE,LCV HIRE SOLUTIONS LTD,321.3,COMMERCIAL VEH CTRL A/C,HIRED VEHICLES,5902280596,1000071973
07.12.2017,ENVIRONMENT DIRECTORATE,ENTERPRISE FLEX E RENT,"1,276.00",COMMERCIAL VEH CTRL A/C,HIRED VEHICLES,5902280608,1000069585
07.12.2017,ENVIRONMENT DIRECTORATE,LCV HIRE SOLUTIONS LTD,321.3,COMMERCIAL VEH CTRL A/C,HIRED VEHICLES,5902280610,1000071973
07.12.2017,ENVIRONMENT DIRECTORATE,GULLIVERS TRUCK HIRE LTD,875,COMMERCIAL VEH CTRL A/C,HIRED VEHICLES,5902280627,1000052656
07.12.2017,ENVIRONMENT DIRECTORATE,GULLIVERS TRUCK HIRE LTD,915,COMMERCIAL VEH CTRL A/C,HIRED VEHICLES,5902280631,1000052656
07.12.2017,ENVIRONMENT DIRECTORATE,GULLIVERS TRUCK HIRE LTD,630,COMMERCIAL VEH CTRL A/C,HIRED VEHICLES,5902280635,1000052656
07.12.2017,ENVIRONMENT DIRECTORATE,GULLIVERS TRUCK HIRE LTD,630,COMMERCIAL VEH CTRL A/C,HIRED VEHICLES,5902280639,1000052656
07.12.2017,ENVIRONMENT DIRECTORATE,GULLIVERS TRUCK HIRE LTD,550,COMMERCIAL VEH CTRL A/C,HIRED VEHICLES,5902280643,1000052656
07.12.2017,ENVIRONMENT DIRECTORATE,SCOT GROUP LIMITED,388.09,COMMERCIAL VEH CTRL A/C,HIRED VEHICLES,5902280645,1709512
07.12.2017,ENVIRONMENT DIRECTORATE,SCOT GROUP LIMITED,378.56,COMMERCIAL VEH CTRL A/C,HIRED VEHICLES,5902280648,1709512
07.12.2017,ENVIRONMENT DIRECTORATE,SCOT GROUP LIMITED,378.56,COMMERCIAL VEH CTRL A/C,HIRED VEHICLES,5902280652,1709512
07.12.2017,ENVIRONMENT DIRECTORATE,DAWSON RENTALS SWEEPERS,"2,200.00",COMMERCIAL VEH CTRL A/C,HIRED VEHICLES,5902280654,1000068168
07.12.2017,ENVIRONMENT DIRECTORATE,SCOT GROUP LIMITED,336.32,COMMERCIAL VEH CTRL A/C,HIRED VEHICLES,5902280655,1709512
07.12.2017,ENVIRONMENT DIRECTORATE,DAWSON RENTALS SWEEPERS,609.49,COMMERCIAL VEH CTRL A/C,HIRED VEHICLES,5902280665,1000068168
07.12.2017,ENVIRONMENT DIRECTORATE,R J MOTORS LIMITED,393.71,COMMERCIAL VEH CTRL A/C,VEHICLE REPAIRS & MAINTENANCE,5902280542,1000047106
07.12.2017,ENVIRONMENT DIRECTORATE,R J MOTORS LIMITED,675.72,COMMERCIAL VEH CTRL A/C,VEHICLE REPAIRS & MAINTENANCE,5902280544,1000047106
07.12.2017,ENVIRONMENT DIRECTORATE,R J MOTORS LIMITED,435.7,COMMERCIAL VEH CTRL A/C,VEHICLE REPAIRS & MAINTENANCE,5902280546,1000047106
07.12.2017,ENVIRONMENT DIRECTORATE,R J MOTORS LIMITED,431.99,COMMERCIAL VEH CTRL A/C,VEHICLE REPAIRS & MAINTENANCE,5902280549,1000047106
07.12.2017,ENVIRONMENT DIRECTORATE,R J MOTORS LIMITED,468.11,COMMERCIAL VEH CTRL A/C,VEHICLE REPAIRS & MAINTENANCE,5902280551,1000047106
07.12.2017,ENVIRONMENT DIRECTORATE,R J MOTORS LIMITED,253.32,COMMERCIAL VEH CTRL A/C,VEHICLE REPAIRS & MAINTENANCE,5902280561,1000047106
07.12.2017,ENVIRONMENT DIRECTORATE,T H WHITE LIMITED,742.22,COMMERCIAL VEH CTRL A/C,VEHICLE REPAIRS & MAINTENANCE,5902280612,1000049793
07.12.2017,F & C S EXCLUDING CORPORATE BUDGETS,SOUTHWARK CATHEDRAL ENTERPRISES LTD,"1,590.00",ADMINISTRATIVE SUPPORT,TRAINING,5902279892,1000011453
07.12.2017,F & C S EXCLUDING CORPORATE BUDGETS,SULION LTD,"1,190.00",ADMINISTRATIVE SUPPORT,TRAINING,5902280309,1000072690
07.12.2017,F & C S EXCLUDING CORPORATE BUDGETS,CABINET OFFICE,"1,850.00",ANTI-FRAUD AND INTERNAL AUDIT,SUBSCRIPTIONS,5902279062,1000078189
07.12.2017,F & C S EXCLUDING CORPORATE BUDGETS,CABINET OFFICE,"-1,850.00",ANTI-FRAUD AND INTERNAL AUDIT,SUBSCRIPTIONS,5902280815,1000078189
07.12.2017,F & C S EXCLUDING CORPORATE BUDGETS,MALCOLM G SANKEY,420,ANTI-FRAUD AND INVESTIGATIONS,LEGAL FEES & COURT COSTS,2102707310,1000057822
07.12.2017,F & C S EXCLUDING CORPORATE BUDGETS,CAPITA BUSINESS SERVICES LTD,"35,071.68",CAPITA,OTHER CONTRACTORS,5902280479,1000049446
07.12.2017,F & C S EXCLUDING CORPORATE BUDGETS,SWISS POST SOLUTIONS LTD,-995,PAYMENTS CONTROL,OFFICE EXPENSES,2102747552,1000073459
07.12.2017,F & C S EXCLUDING CORPORATE BUDGETS,SWISS POST SOLUTIONS LTD,-255,PAYMENTS CONTROL,OFFICE EXPENSES,2102747553,1000073459
07.12.2017,F & C S EXCLUDING CORPORATE BUDGETS,VALUEADDING.COM LTD,"5,824.00",PROJECTS,OTHER CONTRACTORS,5902280469,1000066730
07.12.2017,HOUSING,DUCTCLEAN (UK) LTD,"103,323.89",DUCTCLEAN,MANUAL CREDITORS,2102755552,3000001635
07.12.2017,HOUSING,OCO LIMITED,"502,552.69",PAYMENTS CONTROL ACCOUNT - OCO,MANUAL CREDITORS,5902280164,1006066
07.12.2017,HOUSING,SCCI ALPHATRACK LTD,"89,947.06",SCCI ALPHATRACK,MANUAL CREDITORS,5902280623,1000071955
07.12.2017,HOUSING HRA,MORGAN SINDALL PLC,"843,140.00",CAPITAL PS (HRA),CONSTR'N SUB CONTRACT - NON CERTIFICATED,2102755564,3000001556
07.12.2017,HOUSING HRA,A & E ELKINS LTD,"63,025.02",CAPITAL PS (HRA),CONSTRUCTION MAIN CONTRACT -CERTIFICATED,2102755656,4012501
07.12.2017,HOUSING HRA,A & E ELKINS LTD,"122,806.47",CAPITAL PS (HRA),CONSTRUCTION MAIN CONTRACT -CERTIFICATED,2102755657,4012501
07.12.2017,LEISURE DIRECTORATE,NPOWER,253.31,BLUE ANCHOR LIBRARY,ELECTRICITY,5902280579,1000055441
07.12.2017,LEISURE DIRECTORATE,EDF ENERGY PLC,354.05,BRANDON LIBRARY,ELECTRICITY,5902280536,1008746
07.12.2017,LEISURE DIRECTORATE,L&M CONTRACTORS LLP,600,CEMETERIES,GROUNDS MAINTENANCE,2102755553,3000001945
07.12.2017,LEISURE DIRECTORATE,CONSTANTINE LIMITED,"3,474.26",COLLECTIONS MANAGEMENT,OFFICE EXPENSES,5902280527,11202702
07.12.2017,LEISURE DIRECTORATE,TECHNICAL SURFACES,315,DAMILOLA TAYLOR CENTRE,GROUNDS MAINTENANCE,5902280498,1000011451
07.12.2017,LEISURE DIRECTORATE,JOHN LINDO,350,DAMILOLA TAYLOR CENTRE,MATERIALS,5902280607,1000080366
07.12.2017,LEISURE DIRECTORATE,SOMERVILLE YOUTH & PLAY PROVISION,"6,830.33",GRANTS COMMISSIONING,GRANTS,5902280698,1000080341
07.12.2017,LEISURE DIRECTORATE,BOOKSCAN LIBRARY SERVICES,360.83,STOCK SERVICES,BOOKS & PUBLICATIONS,5902280480,1001312
07.12.2017,MODERNISATION HGF,RED R DESIGN,425,IT MANAGEMENT,CONSULTANTS SERVICES,5902280558,1000035984
07.12.2017,MODERNISATION HGF,COMENSURA LTD,"3,510.68",MONTHLY ADMIN FEE,AGENCY STAFF,5902280519,1000051261
07.12.2017,MODERNISATION HGF,COMENSURA LTD,"450,151.61",WEEKLY PAYMENTS,AGENCY STAFF,5902280519,1000051261
07.12.2017,REGENERATION,GERALD EVE LLP,"1,875.00",MISC INDUSTRIAL PROPERTIES,PROFESSIONAL FEES,5902279875,1000077002
07.12.2017,RESIDENT SERVICES,MALCOLM G SANKEY,420,OPERATIONS/OFFICES ACCOMMODATION,LEGAL FEES & COURT COSTS,2102689094,1000057822
07.12.2017,RESIDENT SERVICES,MALCOLM G SANKEY,420,OPERATIONS/OFFICES ACCOMMODATION,LEGAL FEES & COURT COSTS,2102707311,1000057822
07.12.2017,RESIDENT SERVICES,TFL TELESALES / OYSTER FULFILMENT,"4,275.00",OPERATIONS/OFFICES ACCOMMODATION,PUBLIC TRANSPORT,5902280465,1000059727
07.12.2017,RESIDENT SERVICES,PEABODY TRUST,"14,242.67",PRIVATE SERVICE CHARGES,SERVICE CHARGES,5902280575,11275862
07.12.2017,RESIDENT SERVICES,MALCOLM G SANKEY,"1,440.00",SPECIAL INVESTIGATIONS,LEGAL FEES & COURT COSTS,2102707307,1000057822
07.12.2017,RESIDENT SERVICES,NPOWER,263.95,SPECIAL NEEDS HOSTELS,ELECTRICITY,5902280391,1000032342
07.12.2017,RESIDENT SERVICES,KENT COUNTY COUNCIL - LASER,392.12,TA HOSTELS,ELECTRICITY,5902280640,1000012926
07.12.2017,RESIDENT SERVICES,BRITISH GAS TRADING LTD,294.9,TA HOSTELS,GAS,5902280697,1000055977
07.12.2017,SOUTHWARK BUILDING SERVICES,TRAVIS PERKINS,330.95,BERMONDSEY DAY TO DAY - ELECTRICIAN,MATERIALS,5902280458,1514319
07.12.2017,SOUTHWARK BUILDING SERVICES,TRAVIS PERKINS,330.95,BERMONDSEY DAY TO DAY - ELECTRICIAN,MATERIALS,5902280460,1514319
07.12.2017,SOUTHWARK BUILDING SERVICES,TRAVIS PERKINS,330.95,BERMONDSEY DAY TO DAY - ELECTRICIAN,MATERIALS,5902280461,1514319
07.12.2017,SOUTHWARK BUILDING SERVICES,EDMUNDSON ELECTRICAL LTD,331.63,ELECTRICAL TEAM - ELECTRICIAN,MATERIALS,5902280677,1000066568
07.12.2017,SOUTHWARK BUILDING SERVICES,TRAVIS PERKINS,330.95,ROTHERHITHE DAY TO DAY - ELECTRICIAN,MATERIALS,5902280446,1514319
07.12.2017,SOUTHWARK BUILDING SERVICES,"BROWNING, JONES & MORRIS LTD",726,STORES/LOGISTICS,MATERIALS,5902280650,1027429
07.12.2017,SOUTHWARK BUILDING SERVICES,"BROWNING, JONES & MORRIS LTD",299.5,STORES/LOGISTICS,MATERIALS,5902280656,1027429
08.12.2017,ADULT SOCIAL CARE,NASH CARE HOME LTD,500,APPOINTEESHIPS,OTHER PAYMENTS FOR CLIENTS,2102749293,1000080362
08.12.2017,ADULT SOCIAL CARE,REDACTED PERSONAL DATA,264.8,APPOINTEESHIPS,OTHER PAYMENTS FOR CLIENTS,5902280798,REDACTED
08.12.2017,ADULT SOCIAL CARE,PEOPLE PLUS,584.74,CONTINUING CARE PERSONAL BUDGETS DR,RECOVERABLE COSTS INCL. HEALTH,2102755989,1000061886
08.12.2017,ADULT SOCIAL CARE,LEONARD CHESHIRE DISABILITY,"2,732.67",DIR OF ASC,PROFESSIONAL FEES,2102756223,1000049763
08.12.2017,ADULT SOCIAL CARE,HHG (ST. OLAVE'S HOUSE),479.3,DIR OF ASC,PROFESSIONAL FEES,2102756224,1000049509
08.12.2017,ADULT SOCIAL CARE,AUDIT CARE,"21,132.96",DIR OF ASC,PROFESSIONAL FEES,2102756226,1000056872
08.12.2017,ADULT SOCIAL CARE,WESTWOOD HOUSING ASSOCIATION LTD,"3,333.67",DIR OF ASC,PROFESSIONAL FEES,2102756227,11038005
08.12.2017,ADULT SOCIAL CARE,SERVITE HOUSES,"1,476.77",DIR OF ASC,PROFESSIONAL FEES,2102756228,11165541
08.12.2017,ADULT SOCIAL CARE,FAMILY CARE CO,472.04,DIR OF ASC,PROFESSIONAL FEES,2102756229,1000041115
08.12.2017,ADULT SOCIAL CARE,WHITE HOUSE NURSING HOME,634.16,DIR OF ASC,PROFESSIONAL FEES,2102756230,1000050112
08.12.2017,ADULT SOCIAL CARE,KLEARWATER SUPPORTED HOMES LTD,328.3,DIR OF ASC,PROFESSIONAL FEES,2102756231,1000052176
08.12.2017,ADULT SOCIAL CARE,CHOICE LIFESTYLES,"6,601.64",DIR OF ASC,PROFESSIONAL FEES,2102756232,1000060055
08.12.2017,ADULT SOCIAL CARE,EVER GREEN CARE CENTRE,"5,991.75",DIR OF ASC,PROFESSIONAL FEES,2102756234,1000043885
08.12.2017,ADULT SOCIAL CARE,EVER GREEN CARE CENTRE,"-2,263.54",HDTS NURSING PLACEMENT OPSS,NURSING PLACEMENTS FEES,2102390583,1000043885
08.12.2017,ADULT SOCIAL CARE,EVER GREEN CARE CENTRE,"-2,430.86",HDTS NURSING PLACEMENT OPSS,NURSING PLACEMENTS FEES,2102390587,1000043885
08.12.2017,ADULT SOCIAL CARE,EVER GREEN CARE CENTRE,"-2,649.64",HDTS NURSING PLACEMENT OPSS,NURSING PLACEMENTS FEES,2102390591,1000043885
08.12.2017,ADULT SOCIAL CARE,EVER GREEN CARE CENTRE,-627,HDTS NURSING PLACEMENT OPSS,RECOVERABLE COSTS INCL. HEALTH,2102390584,1000043885
08.12.2017,ADULT SOCIAL CARE,EVER GREEN CARE CENTRE,-455.57,HDTS NURSING PLACEMENT OPSS,RECOVERABLE COSTS INCL. HEALTH,2102390588,1000043885
08.12.2017,ADULT SOCIAL CARE,EVER GREEN CARE CENTRE,-455.57,HDTS NURSING PLACEMENT OPSS,RECOVERABLE COSTS INCL. HEALTH,2102390592,1000043885
08.12.2017,ADULT SOCIAL CARE,WHITE HOUSE NURSING HOME,-824.57,HDTS NURSING PLACEMENT OPSS,RESIDENTIAL CARE,2101479464,1000050112
08.12.2017,ADULT SOCIAL CARE,HHG (ST. OLAVE'S HOUSE),648.01,ICTN NURSING PLACEMENTS,MANDATORY FLEXILBLE FEES & CHARGES,2101370140,1000049509
08.12.2017,ADULT SOCIAL CARE,HHG (ST. OLAVE'S HOUSE),-663.72,ICTN NURSING PLACEMENTS,NURSING PLACEMENTS FEES,2101370139,1000049509
08.12.2017,ADULT SOCIAL CARE,EVER GREEN CARE CENTRE,425.2,ICTN NURSING PLACEMENTS,NURSING PLACEMENTS FEES,2101617597,1000043885
08.12.2017,ADULT SOCIAL CARE,HHG (ST. OLAVE'S HOUSE),"-3,168.29",ICTN NURSING PLACEMENTS,RESIDENTIAL CARE,2101370138,1000049509
08.12.2017,ADULT SOCIAL CARE,DERWENT LODGE CARE CENTRE,-409.89,ICTN NURSING PLACEMENTS,RESIDENTIAL CARE,2101650573,1000052942
08.12.2017,ADULT SOCIAL CARE,TRUECARE HAVEN SUPPORT LTD,"1,712.50",LD LTS 18-64,HOMECARE - SPOT,2102755976,1000078974
08.12.2017,ADULT SOCIAL CARE,MIHOMECARE LTD,646.76,MEM LTS 65+,HOMECARE - C&V,2102755990,1000042594
08.12.2017,ADULT SOCIAL CARE,MIHOMECARE LTD,987.16,MEM LTS 65+,HOMECARE - C&V,2102755992,1000042594
08.12.2017,ADULT SOCIAL CARE,MIHOMECARE LTD,987.16,MEM LTS 65+,HOMECARE - C&V,2102755995,1000042594
08.12.2017,ADULT SOCIAL CARE,MIHOMECARE LTD,987.16,MEM LTS 65+,HOMECARE - C&V,2102755999,1000042594
08.12.2017,ADULT SOCIAL CARE,MIHOMECARE LTD,978.65,MEM LTS 65+,HOMECARE - C&V,2102756000,1000042594
08.12.2017,ADULT SOCIAL CARE,MIHOMECARE LTD,987.16,MEM LTS 65+,HOMECARE - C&V,2102756004,1000042594
08.12.2017,ADULT SOCIAL CARE,MIHOMECARE LTD,987.16,MEM LTS 65+,HOMECARE - C&V,2102756006,1000042594
